Workbook

Sheet allgemein
A1: Konstanten
A2: Abtastrate | B2: 60 | C2: s
A3: Drücke
A4: p_WL | B4: =5*100000/10^6 -> 0.5 | C4: MPa
A5: p_ZL | B5: =5*100000/10^6 -> 0.5 | C5: MPa
A7: Kollektorflächen
A8: A_LBHTAR | B8: =2*6.4 -> 12.8 | C8: m2
A9: A_LBHT | B9: =A_LBHTAR -> 12.8 | C9: m2
A10: A_VFK 990 | B10: =6*2.02 -> 12.12 | C10: m2
A11: A_VTK 1140 | B11: =2*4 -> 8 | C11: m2
A12: A_Kollektorfeld | B12: =SUM(B8:B11) -> 45.72 | C12: m2

Sheet Berechnungstabelle
B1: -8 | C1: Jahr | D1: Monat | E1: Tag | F1: Uhrzeit | H1: Uhrzeit
B2: Auswertungszeitraum | C2: 2015 | D2: 12 | E2: 3 | F2: 05:00:00 | G2: bis | H2: 18:00:00 | J2: =DATE($C$2,$D$2,$E$2)+$F$2 -> 2015-12-03T05:00:00 | K2: =DATE($C$2,$D$2,$E$2)+$H$2 -> 2015-12-03T18:00:00 | AF2: Nutzungsgrad = | AG2: =SUM(Qpkt_KF_spez)/(SUM(G_g_Pyr)*A_Kollektorfeld) -> 0.006414636161
B3: zu öffnende Tabelle | C3: =C2 & "_" &IF(LEN(D2)=1,"0" &D2,D2) &"_schedA.csv" -> 2015_12_schedA.csv | AF3: erste kennzahl: Nutzungsgrad des Kollektorfeldes | AH3: =SUM(Q_TW_solar,Q_SZ)/SUM(Q_TW_solar,Q_SZ,Q_TW_FW,Q_Z_FW) -> 0.07189217821 | AI3: =SUM(Q_TW_solar)/SUM(Q_TW_solar,Q_TW_FW) -> 0.1075097386 | AJ3: =SUM(Q_SZ)/SUM(Q_SZ,Q_Z_FW) -> 0.04856932998
S4: =24*60*31 -> 44640 | AF4: =SUM(Qpkt_KF_spez)/SUM(G_g_Pyr) -> 0.2932771653
AF5: =IF(SUM(V_5)=0, 0, SUMIFS(Qpkt_KF_spez,V_5,">0")/SUMIFS(G_g_Pyr,V_5,">0")) -> 0.3485547645 | AG5: =IF(SUM(V_5)=0, 0, SUMIFS(Qpkt_LBHTAR_spez,V_5,">0")/SUMIFS(G_g_Pyr,V_5,">0")) -> 0.3354556075 | AH5: =IF(SUM(V_5)=0, 0, SUMIFS(Qpkt_LBHT_spez,V_5,">0")/SUMIFS(G_g_Pyr,V_5,">0")) -> 0.2721409253 | AI5: =IF(SUM(V_5)=0, 0, SUMIFS(Qpkt_VFK990_spez,V_5,">0")/SUMIFS(G_g_Pyr,V_5,">0")) -> 0.2735613214 | AJ5: =IF(SUM(V_5)=0, 0, SUMIFS(Qpkt_VTK1140_spez,V_5,">0")/SUMIFS(G_g_Pyr,V_5,">0")) -> 0.7171249216
A6: 1
A8: =IF(A12="","",COLUMN()) -> 1 | B8: =IF(B12="","",COLUMN()) -> 2 | C8: 3 | D8: 4 | E8: 5 | F8: 6 | G8: 7 | H8: 8 | I8: 9 | J8: 10 | K8: 11 | L8: 12 | M8: 13 | N8: 14 | O8: 15 | P8: 16 | Q8: 17 | R8: 18 | S8: 19 | T8: 20 | U8: 21 | V8: 22 | W8: 23 | X8: 24 | Y8: 25 | Z8: 26 | AA8: 27 | AB8: 28 | AC8: 29 | AD8: 30 | AE8: 31 | AF8: 32 | AG8: 33 | AH8: 34 | AI8: 35 | AJ8: 36 | AK8: 37 | AL8: 38 | AM8: 39 | AN8: 40 | AO8: 41
A9: Messdaten | AF9: berechnungen …..
A10: Zeit | D10: Globalstr. | F10: Solarkreis | I10: Kollektoraustritte | M10: Volumenströme | Q10: Speicher | T10: Frischwasser solar | Y10: Frischwasser FW | AB10: Zirkulation | AF10: Kollektorfeld | AG10: Trinkwasservorwärmung
A11: tt/mm/jj | B11: hh:mm:ss | C11: [tt.mm.jjjj hh:mm:ss] | D11: [W/m²] | E11: [W/m²] | F11: [°C] | G11: [°C] | H11: [l] | I11: [°C] | J11: [°C] | K11: [°C] | L11: [°C] | M11: [l] | N11: [l] | O11: [l] | P11: [l] | Q11: [°C] | R11: [°C] | S11: [°C] | T11: [°C] | U11: [°C] | V11: [°C] | W11: [°C] | X11: [l] | Y11: [°C] | Z11: [°C] | AA11: [l] | AB11: [°C] | AC11: [°C] | AD11: [°C] | AE11: [l] | AF11: W/m² | AG11: W | AH11: W
A12: Datum | B12: Uhrzeit | C12: Zeit | D12: G_g_Si | E12: G_g_Pyr | F12: T_9 | G12: T_10 | H12: V_5 | I12: T_2 | J12: T_4 | K12: T_6 | L12: T_8 | M12: V_2 | N12: V_3 | O12: V_4 | P12: V_1 | Q12: TS1U | R12: TS2U | S12: TS2O | T12: T_13 | U12: T_14 | V12: TVL_PWT | W12: TRL_PWT | X12: V_7 | Y12: T_17 | Z12: T_18 | AA12: V_6 | AB12: T_11 | AC12: T_19 | AD12: T_20 | AE12: V_9 | AF12: Qpkt_KF_spez | AG12: Q_TW_solar | AH12: Q_SZ | AI12: Speicherverlust | AJ12: Q_TW_FW | AK12: Q_Z_FW | AL12: Qpkt_LBHTAR_spez | AM12: Qpkt_LBHT_spez | AN12: Qpkt_VFK990_spez | AO12: Qpkt_VTK1140_spez
A13: 2015-12-03 | B13: 05:01:00 | C13: =Datum+Uhrzeit -> 2015-12-03T05:01:00 | D13: -0.0326 | E13: 18.357 | F13: 29.1 | G13: 29.1 | H13: 0 | I13: 8.2 | J13: 8.2 | K13: 7.9 | L13: 8 | M13: 0 | N13: 0 | O13: 0 | P13: 0 | Q13: 18.1 | R13: 22.3 | S13: 29.1 | T13: 26.3 | U13: 25.8 | V13: 27 | W13: 27.2 | X13: 0 | Y13: 60 | Z13: 61.1 | AA13: 30 | AB13: 54.8 | AC13: 55.1 | AD13: 59.7 | AE13: 40 | AF13: =3776*V_5/60*(T_10-T_9)/A_Kollektorfeld -> 0 | AG13: =4128*V_7/60*(T_14-T_13) -> 0 | AH13: =4128/60*V_9*(T_19-T_11) -> 825.6 | AI13: =Q_SZ+Q_TW_solar-Qpkt_KF_spez -> 825.6 | AJ13: =4128/60*V_6*(T_18-T_17) -> 2270.4 | AK13: =4128/60*V_9*(T_20-T_19) -> 12659.2 | AL13: =3776*V_1/60*(T_2-T_9)/A_LBHTAR -> 0 | AM13: =3776*V_2/60*(T_4-T_9)/A_LBHT -> 0 | AN13: =3776*V_3/60*(T_6-T_9)/A_VFK_990 -> 0 | AO13: =3776*V_4/60*(T_8-T_9)/A_VTK_1140 -> 0
A14: 2015-12-03 | B14: 05:02:00 | C14: =Datum+Uhrzeit -> 2015-12-03T05:02:00 | D14: -0.0299 | E14: 18.985 | F14: 29.1 | G14: 29.1 | H14: 0 | I14: 8.2 | J14: 8.2 | K14: 7.9 | L14: 8 | M14: 0 | N14: 0 | O14: 0 | P14: 0 | Q14: 18.1 | R14: 22.3 | S14: 29.1 | T14: 26.3 | U14: 25.8 | V14: 27 | W14: 27.2 | X14: 0 | Y14: 60 | Z14: 61 | AA14: 30 | AB14: 54.8 | AC14: 55.1 | AD14: 59.7 | AE14: 50 | AF14: =3776*V_5/60*(T_10-T_9)/A_Kollektorfeld -> 0 | AG14: =4128*V_7/60*(T_14-T_13) -> 0 | AH14: =4128/60*V_9*(T_19-T_11) -> 1032 | AI14: =Q_SZ+Q_TW_solar-Qpkt_KF_spez -> 1032 | AJ14: =4128/60*V_6*(T_18-T_17) -> 2064 | AK14: =4128/60*V_9*(T_20-T_19) -> 15824 | AL14: =3776*V_1/60*(T_2-T_9)/A_LBHTAR -> 0 | AM14: =3776*V_2/60*(T_4-T_9)/A_LBHT -> 0 | AN14: =3776*V_3/60*(T_6-T_9)/A_VFK_990 -> 0 | AO14: =3776*V_4/60*(T_8-T_9)/A_VTK_1140 -> 0
A15: 2015-12-03 | B15: 05:03:00 | C15: =Datum+Uhrzeit -> 2015-12-03T05:03:00 | D15: -0.0339 | E15: 18.974 | F15: 29.1 | G15: 29.1 | H15: 0 | I15: 8.2 | J15: 8.2 | K15: 7.9 | L15: 8 | M15: 0 | N15: 0 | O15: 0 | P15: 0 | Q15: 18.1 | R15: 22.3 | S15: 29.1 | T15: 26.3 | U15: 25.8 | V15: 27 | W15: 27.2 | X15: 0 | Y15: 60 | Z15: 61.1 | AA15: 20 | AB15: 54.8 | AC15: 55.1 | AD15: 59.8 | AE15: 50 | AF15: =3776*V_5/60*(T_10-T_9)/A_Kollektorfeld -> 0 | AG15: =4128*V_7/60*(T_14-T_13) -> 0 | AH15: =4128/60*V_9*(T_19-T_11) -> 1032 | AI15: =Q_SZ+Q_TW_solar-Qpkt_KF_spez -> 1032 | AJ15: =4128/60*V_6*(T_18-T_17) -> 1513.6 | AK15: =4128/60*V_9*(T_20-T_19) -> 16168 | AL15: =3776*V_1/60*(T_2-T_9)/A_LBHTAR -> 0 | AM15: =3776*V_2/60*(T_4-T_9)/A_LBHT -> 0 | AN15: =3776*V_3/60*(T_6-T_9)/A_VFK_990 -> 0 | AO15: =3776*V_4/60*(T_8-T_9)/A_VTK_1140 -> 0
A16: 2015-12-03 | B16: 05:04:00 | C16: =Datum+Uhrzeit -> 2015-12-03T05:04:00 | D16: -0.0338 | E16: 19.355 | F16: 29.1 | G16: 29.1 | H16: 0 | I16: 8.2 | J16: 8.2 | K16: 7.9 | L16: 8 | M16: 0 | N16: 0 | O16: 0 | P16: 0 | Q16: 18.1 | R16: 22.3 | S16: 29.1 | T16: 26.3 | U16: 25.8 | V16: 27 | W16: 27.2 | X16: 0 | Y16: 60 | Z16: 61.1 | AA16: 30 | AB16: 54.8 | AC16: 55.1 | AD16: 59.7 | AE16: 40 | AF16: =3776*V_5/60*(T_10-T_9)/A_Kollektorfeld -> 0 | AG16: =4128*V_7/60*(T_14-T_13) -> 0 | AH16: =4128/60*V_9*(T_19-T_11) -> 825.6 | AI16: =Q_SZ+Q_TW_solar-Qpkt_KF_spez -> 825.6 | AJ16: =4128/60*V_6*(T_18-T_17) -> 2270.4 | AK16: =4128/60*V_9*(T_20-T_19) -> 12659.2 | AL16: =3776*V_1/60*(T_2-T_9)/A_LBHTAR -> 0 | AM16: =3776*V_2/60*(T_4-T_9)/A_LBHT -> 0 | AN16: =3776*V_3/60*(T_6-T_9)/A_VFK_990 -> 0 | AO16: =3776*V_4/60*(T_8-T_9)/A_VTK_1140 -> 0
A17: 2015-12-03 | B17: 05:05:00 | C17: =Datum+Uhrzeit -> 2015-12-03T05:05:00 | D17: -0.039 | E17: 16.33 | F17: 29.1 | G17: 29.1 | H17: 0 | I17: 8.2 | J17: 8.2 | K17: 7.9 | L17: 8 | M17: 0 | N17: 0 | O17: 0 | P17: 0 | Q17: 18.1 | R17: 22.3 | S17: 29.1 | T17: 26.3 | U17: 25.8 | V17: 27 | W17: 27.2 | X17: 0 | Y17: 60 | Z17: 60.9 | AA17: 30 | AB17: 54.8 | AC17: 55.1 | AD17: 59.6 | AE17: 50 | AF17: =3776*V_5/60*(T_10-T_9)/A_Kollektorfeld -> 0 | AG17: =4128*V_7/60*(T_14-T_13) -> 0 | AH17: =4128/60*V_9*(T_19-T_11) -> 1032 | AI17: =Q_SZ+Q_TW_solar-Qpkt_KF_spez -> 1032 | AJ17: =4128/60*V_6*(T_18-T_17) -> 1857.6 | AK17: =4128/60*V_9*(T_20-T_19) -> 15480 | AL17: =3776*V_1/60*(T_2-T_9)/A_LBHTAR -> 0 | AM17: =3776*V_2/60*(T_4-T_9)/A_LBHT -> 0 | AN17: =3776*V_3/60*(T_6-T_9)/A_VFK_990 -> 0 | AO17: =3776*V_4/60*(T_8-T_9)/A_VTK_1140 -> 0
A18: 2015-12-03 | B18: 05:06:00 | C18: =Datum+Uhrzeit -> 2015-12-03T05:06:00 | D18: -0.03 | E18: 19.499 | F18: 29.1 | G18: 29.1 | H18: 0 | I18: 8.2 | J18: 8.2 | K18: 7.9 | L18: 8 | M18: 0 | N18: 0 | O18: 0 | P18: 0 | Q18: 18.1 | R18: 22.3 | S18: 29.1 | T18: 26.3 | U18: 25.8 | V18: 27 | W18: 27.2 | X18: 0 | Y18: 60 | Z18: 61 | AA18: 30 | AB18: 54.8 | AC18: 55.1 | AD18: 59.7 | AE18: 50 | AF18: =3776*V_5/60*(T_10-T_9)/A_Kollektorfeld -> 0 | AG18: =4128*V_7/60*(T_14-T_13) -> 0 | AH18: =4128/60*V_9*(T_19-T_11) -> 1032 | AI18: =Q_SZ+Q_TW_solar-Qpkt_KF_spez -> 1032 | AJ18: =4128/60*V_6*(T_18-T_17) -> 2064 | AK18: =4128/60*V_9*(T_20-T_19) -> 15824 | AL18: =3776*V_1/60*(T_2-T_9)/A_LBHTAR -> 0 | AM18: =3776*V_2/60*(T_4-T_9)/A_LBHT -> 0 | AN18: =3776*V_3/60*(T_6-T_9)/A_VFK_990 -> 0 | AO18: =3776*V_4/60*(T_8-T_9)/A_VTK_1140 -> 0
A19: 2015-12-03 | B19: 05:07:00 | C19: =Datum+Uhrzeit -> 2015-12-03T05:07:00 | D19: -0.0339 | E19: 18.676 | F19: 29.1 | G19: 29.1 | H19: 0 | I19: 8.2 | J19: 8.2 | K19: 7.9 | L19: 8 | M19: 0 | N19: 0 | O19: 0 | P19: 0 | Q19: 18.1 | R19: 22.3 | S19: 29.1 | T19: 26.3 | U19: 25.8 | V19: 27 | W19: 27.2 | X19: 0 | Y19: 60 | Z19: 61.1 | AA19: 30 | AB19: 54.9 | AC19: 55.1 | AD19: 59.8 | AE19: 40 | AF19: =3776*V_5/60*(T_10-T_9)/A_Kollektorfeld -> 0 | AG19: =4128*V_7/60*(T_14-T_13) -> 0 | AH19: =4128/60*V_9*(T_19-T_11) -> 550.4 | AI19: =Q_SZ+Q_TW_solar-Qpkt_KF_spez -> 550.4 | AJ19: =4128/60*V_6*(T_18-T_17) -> 2270.4 | AK19: =4128/60*V_9*(T_20-T_19) -> 12934.4 | AL19: =3776*V_1/60*(T_2-T_9)/A_LBHTAR -> 0 | AM19: =3776*V_2/60*(T_4-T_9)/A_LBHT -> 0 | AN19: =3776*V_3/60*(T_6-T_9)/A_VFK_990 -> 0 | AO19: =3776*V_4/60*(T_8-T_9)/A_VTK_1140 -> 0
A20: 2015-12-03 | B20: 05:08:00 | C20: =Datum+Uhrzeit -> 2015-12-03T05:08:00 | D20: -0.0287 | E20: 18.84 | F20: 29.1 | G20: 29.1 | H20: 0 | I20: 8.2 | J20: 8.2 | K20: 7.9 | L20: 8 | M20: 0 | N20: 0 | O20: 0 | P20: 0 | Q20: 18.1 | R20: 22.3 | S20: 29.1 | T20: 26.3 | U20: 25.8 | V20: 27 | W20: 27.2 | X20: 0 | Y20: 60 | Z20: 61.1 | AA20: 30 | AB20: 54.9 | AC20: 55.1 | AD20: 59.7 | AE20: 50 | AF20: =3776*V_5/60*(T_10-T_9)/A_Kollektorfeld -> 0 | AG20: =4128*V_7/60*(T_14-T_13) -> 0 | AH20: =4128/60*V_9*(T_19-T_11) -> 688 | AI20: =Q_SZ+Q_TW_solar-Qpkt_KF_spez -> 688 | AJ20: =4128/60*V_6*(T_18-T_17) -> 2270.4 | AK20: =4128/60*V_9*(T_20-T_19) -> 15824 | AL20: =3776*V_1/60*(T_2-T_9)/A_LBHTAR -> 0 | AM20: =3776*V_2/60*(T_4-T_9)/A_LBHT -> 0 | AN20: =3776*V_3/60*(T_6-T_9)/A_VFK_990 -> 0 | AO20: =3776*V_4/60*(T_8-T_9)/A_VTK_1140 -> 0
A21: 2015-12-03 | B21: 05:09:00 | C21: =Datum+Uhrzeit -> 2015-12-03T05:09:00 | D21: -0.0378 | E21: 16.865 | F21: 29.1 | G21: 29.1 | H21: 0 | I21: 8.2 | J21: 8.2 | K21: 7.9 | L21: 8 | M21: 0 | N21: 0 | O21: 0 | P21: 0 | Q21: 18.1 | R21: 22.3 | S21: 29.1 | T21: 26.3 | U21: 25.8 | V21: 27 | W21: 27.2 | X21: 0 | Y21: 60 | Z21: 61.1 | AA21: 30 | AB21: 54.8 | AC21: 55.1 | AD21: 59.8 | AE21: 50 | AF21: =3776*V_5/60*(T_10-T_9)/A_Kollektorfeld -> 0 | AG21: =4128*V_7/60*(T_14-T_13) -> 0 | AH21: =4128/60*V_9*(T_19-T_11) -> 1032 | AI21: =Q_SZ+Q_TW_solar-Qpkt_KF_spez -> 1032 | AJ21: =4128/60*V_6*(T_18-T_17) -> 2270.4 | AK21: =4128/60*V_9*(T_20-T_19) -> 16168 | AL21: =3776*V_1/60*(T_2-T_9)/A_LBHTAR -> 0 | AM21: =3776*V_2/60*(T_4-T_9)/A_LBHT -> 0 | AN21: =3776*V_3/60*(T_6-T_9)/A_VFK_990 -> 0 | AO21: =3776*V_4/60*(T_8-T_9)/A_VTK_1140 -> 0
A22: 2015-12-03 | B22: 05:10:00 | C22: =Datum+Uhrzeit -> 2015-12-03T05:10:00 | D22: -0.0327 | E22: 18.738 | F22: 29.1 | G22: 29.1 | H22: 0 | I22: 8.2 | J22: 8.3 | K22: 7.9 | L22: 8 | M22: 0 | N22: 0 | O22: 0 | P22: 0 | Q22: 18.1 | R22: 22.3 | S22: 29.1 | T22: 26.3 | U22: 25.8 | V22: 27 | W22: 27.2 | X22: 0 | Y22: 60 | Z22: 61.1 | AA22: 30 | AB22: 54.8 | AC22: 55.1 | AD22: 59.8 | AE22: 40 | AF22: =3776*V_5/60*(T_10-T_9)/A_Kollektorfeld -> 0 | AG22: =4128*V_7/60*(T_14-T_13) -> 0 | AH22: =4128/60*V_9*(T_19-T_11) -> 825.6 | AI22: =Q_SZ+Q_TW_solar-Qpkt_KF_spez -> 825.6 | AJ22: =4128/60*V_6*(T_18-T_17) -> 2270.4 | AK22: =4128/60*V_9*(T_20-T_19) -> 12934.4 | AL22: =3776*V_1/60*(T_2-T_9)/A_LBHTAR -> 0 | AM22: =3776*V_2/60*(T_4-T_9)/A_LBHT -> 0 | AN22: =3776*V_3/60*(T_6-T_9)/A_VFK_990 -> 0 | AO22: =3776*V_4/60*(T_8-T_9)/A_VTK_1140 -> 0
A23: 2015-12-03 | B23: 05:11:00 | C23: =Datum+Uhrzeit -> 2015-12-03T05:11:00 | D23: -0.0248 | E23: 19.694 | F23: 29.1 | G23: 29.1 | H23: 0 | I23: 8.2 | J23: 8.3 | K23: 7.9 | L23: 8 | M23: 0 | N23: 0 | O23: 0 | P23: 0 | Q23: 18.1 | R23: 22.3 | S23: 29.1 | T23: 26.3 | U23: 25.8 | V23: 27 | W23: 27.2 | X23: 1 | Y23: 60 | Z23: 61.2 | AA23: 20 | AB23: 54.8 | AC23: 55.1 | AD23: 59.9 | AE23: 50 | AF23: =3776*V_5/60*(T_10-T_9)/A_Kollektorfeld -> 0 | AG23: =4128*V_7/60*(T_14-T_13) -> -34.4 | AH23: =4128/60*V_9*(T_19-T_11) -> 1032 | AI23: =Q_SZ+Q_TW_solar-Qpkt_KF_spez -> 997.6 | AJ23: =4128/60*V_6*(T_18-T_17) -> 1651.2 | AK23: =4128/60*V_9*(T_20-T_19) -> 16512 | AL23: =3776*V_1/60*(T_2-T_9)/A_LBHTAR -> 0 | AM23: =3776*V_2/60*(T_4-T_9)/A_LBHT -> 0 | AN23: =3776*V_3/60*(T_6-T_9)/A_VFK_990 -> 0 | AO23: =3776*V_4/60*(T_8-T_9)/A_VTK_1140 -> 0
A24: 2015-12-03 | B24: 05:12:00 | C24: =Datum+Uhrzeit -> 2015-12-03T05:12:00 | D24: -0.0339 | E24: 17.781 | F24: 29.1 | G24: 29.1 | H24: 0 | I24: 8.2 | J24: 8.3 | K24: 8 | L24: 8 | M24: 0 | N24: 0 | O24: 0 | P24: 0 | Q24: 18.1 | R24: 22.3 | S24: 29.1 | T24: 26.3 | U24: 25.8 | V24: 27 | W24: 27.2 | X24: 0 | Y24: 60 | Z24: 61.3 | AA24: 30 | AB24: 54.8 | AC24: 55.1 | AD24: 59.9 | AE24: 50 | AF24: =3776*V_5/60*(T_10-T_9)/A_Kollektorfeld -> 0 | AG24: =4128*V_7/60*(T_14-T_13) -> 0 | AH24: =4128/60*V_9*(T_19-T_11) -> 1032 | AI24: =Q_SZ+Q_TW_solar-Qpkt_KF_spez -> 1032 | AJ24: =4128/60*V_6*(T_18-T_17) -> 2683.2 | AK24: =4128/60*V_9*(T_20-T_19) -> 16512 | AL24: =3776*V_1/60*(T_2-T_9)/A_LBHTAR -> 0 | AM24: =3776*V_2/60*(T_4-T_9)/A_LBHT -> 0 | AN24: =3776*V_3/60*(T_6-T_9)/A_VFK_990 -> 0 | AO24: =3776*V_4/60*(T_8-T_9)/A_VTK_1140 -> 0
A25: 2015-12-03 | B25: 05:13:00 | C25: =Datum+Uhrzeit -> 2015-12-03T05:13:00 | D25: -0.0339 | E25: 19.108 | F25: 29.1 | G25: 29.1 | H25: 0 | I25: 8.2 | J25: 8.3 | K25: 8 | L25: 8 | M25: 0 | N25: 0 | O25: 0 | P25: 0 | Q25: 18.1 | R25: 22.3 | S25: 29.1 | T25: 26.4 | U25: 25.8 | V25: 27 | W25: 27.2 | X25: 0 | Y25: 60 | Z25: 61.2 | AA25: 30 | AB25: 54.9 | AC25: 55.1 | AD25: 59.8 | AE25: 40 | AF25: =3776*V_5/60*(T_10-T_9)/A_Kollektorfeld -> 0 | AG25: =4128*V_7/60*(T_14-T_13) -> 0 | AH25: =4128/60*V_9*(T_19-T_11) -> 550.4 | AI25: =Q_SZ+Q_TW_solar-Qpkt_KF_spez -> 550.4 | AJ25: =4128/60*V_6*(T_18-T_17) -> 2476.8 | AK25: =4128/60*V_9*(T_20-T_19) -> 12934.4 | AL25: =3776*V_1/60*(T_2-T_9)/A_LBHTAR -> 0 | AM25: =3776*V_2/60*(T_4-T_9)/A_LBHT -> 0 | AN25: =3776*V_3/60*(T_6-T_9)/A_VFK_990 -> 0 | AO25: =3776*V_4/60*(T_8-T_9)/A_VTK_1140 -> 0
A26: 2015-12-03 | B26: 05:14:00 | C26: =Datum+Uhrzeit -> 2015-12-03T05:14:00 | D26: -0.0312 | E26: 19.498 | F26: 29.1 | G26: 29.1 | H26: 0 | I26: 8.3 | J26: 8.3 | K26: 8 | L26: 8 | M26: 0 | N26: 0 | O26: 0 | P26: 0 | Q26: 18.1 | R26: 22.3 | S26: 29.1 | T26: 26.4 | U26: 25.8 | V26: 27.1 | W26: 27.2 | X26: 0 | Y26: 60 | Z26: 61.2 | AA26: 30 | AB26: 54.8 | AC26: 55.1 | AD26: 59.9 | AE26: 50 | AF26: =3776*V_5/60*(T_10-T_9)/A_Kollektorfeld -> 0 | AG26: =4128*V_7/60*(T_14-T_13) -> 0 | AH26: =4128/60*V_9*(T_19-T_11) -> 1032 | AI26: =Q_SZ+Q_TW_solar-Qpkt_KF_spez -> 1032 | AJ26: =4128/60*V_6*(T_18-T_17) -> 2476.8 | AK26: =4128/60*V_9*(T_20-T_19) -> 16512 | AL26: =3776*V_1/60*(T_2-T_9)/A_LBHTAR -> 0 | AM26: =3776*V_2/60*(T_4-T_9)/A_LBHT -> 0 | AN26: =3776*V_3/60*(T_6-T_9)/A_VFK_990 -> 0 | AO26: =3776*V_4/60*(T_8-T_9)/A_VTK_1140 -> 0
A27: 2015-12-03 | B27: 05:15:00 | C27: =Datum+Uhrzeit -> 2015-12-03T05:15:00 | D27: -0.03 | E27: 18.018 | F27: 29.1 | G27: 29.1 | H27: 0 | I27: 8.3 | J27: 8.3 | K27: 8 | L27: 8 | M27: 0 | N27: 0 | O27: 0 | P27: 0 | Q27: 18.1 | R27: 22.3 | S27: 29.1 | T27: 26.4 | U27: 25.8 | V27: 27.1 | W27: 27.2 | X27: 0 | Y27: 60.1 | Z27: 61.3 | AA27: 30 | AB27: 54.8 | AC27: 55.1 | AD27: 59.9 | AE27: 50 | AF27: =3776*V_5/60*(T_10-T_9)/A_Kollektorfeld -> 0 | AG27: =4128*V_7/60*(T_14-T_13) -> 0 | AH27: =4128/60*V_9*(T_19-T_11) -> 1032 | AI27: =Q_SZ+Q_TW_solar-Qpkt_KF_spez -> 1032 | AJ27: =4128/60*V_6*(T_18-T_17) -> 2476.8 | AK27: =4128/60*V_9*(T_20-T_19) -> 16512 | AL27: =3776*V_1/60*(T_2-T_9)/A_LBHTAR -> 0 | AM27: =3776*V_2/60*(T_4-T_9)/A_LBHT -> 0 | AN27: =3776*V_3/60*(T_6-T_9)/A_VFK_990 -> 0 | AO27: =3776*V_4/60*(T_8-T_9)/A_VTK_1140 -> 0
A28: 2015-12-03 | B28: 05:16:00 | C28: =Datum+Uhrzeit -> 2015-12-03T05:16:00 | D28: -0.0275 | E28: 18.45 | F28: 29.1 | G28: 29.1 | H28: 0 | I28: 8.3 | J28: 8.3 | K28: 8 | L28: 8 | M28: 0 | N28: 0 | O28: 0 | P28: 0 | Q28: 18.1 | R28: 22.3 | S28: 29.1 | T28: 26.4 | U28: 25.8 | V28: 27.1 | W28: 27.2 | X28: 0 | Y28: 60.1 | Z28: 61.1 | AA28: 30 | AB28: 54.9 | AC28: 55.1 | AD28: 59.7 | AE28: 40 | AF28: =3776*V_5/60*(T_10-T_9)/A_Kollektorfeld -> 0 | AG28: =4128*V_7/60*(T_14-T_13) -> 0 | AH28: =4128/60*V_9*(T_19-T_11) -> 550.4 | AI28: =Q_SZ+Q_TW_solar-Qpkt_KF_spez -> 550.4 | AJ28: =4128/60*V_6*(T_18-T_17) -> 2064 | AK28: =4128/60*V_9*(T_20-T_19) -> 12659.2 | AL28: =3776*V_1/60*(T_2-T_9)/A_LBHTAR -> 0 | AM28: =3776*V_2/60*(T_4-T_9)/A_LBHT -> 0 | AN28: =3776*V_3/60*(T_6-T_9)/A_VFK_990 -> 0 | AO28: =3776*V_4/60*(T_8-T_9)/A_VTK_1140 -> 0
A29: 2015-12-03 | B29: 05:17:00 | C29: =Datum+Uhrzeit -> 2015-12-03T05:17:00 | D29: -0.0452 | E29: 18.451 | F29: 29.1 | G29: 29.1 | H29: 0 | I29: 8.3 | J29: 8.3 | K29: 8 | L29: 8.1 | M29: 0 | N29: 0 | O29: 0 | P29: 0 | Q29: 18.1 | R29: 22.3 | S29: 29.1 | T29: 26.4 | U29: 25.8 | V29: 27.1 | W29: 27.3 | X29: 0 | Y29: 60.1 | Z29: 61 | AA29: 30 | AB29: 54.9 | AC29: 55.1 | AD29: 59.6 | AE29: 50 | AF29: =3776*V_5/60*(T_10-T_9)/A_Kollektorfeld -> 0 | AG29: =4128*V_7/60*(T_14-T_13) -> 0 | AH29: =4128/60*V_9*(T_19-T_11) -> 688 | AI29: =Q_SZ+Q_TW_solar-Qpkt_KF_spez -> 688 | AJ29: =4128/60*V_6*(T_18-T_17) -> 1857.6 | AK29: =4128/60*V_9*(T_20-T_19) -> 15480 | AL29: =3776*V_1/60*(T_2-T_9)/A_LBHTAR -> 0 | AM29: =3776*V_2/60*(T_4-T_9)/A_LBHT -> 0 | AN29: =3776*V_3/60*(T_6-T_9)/A_VFK_990 -> 0 | AO29: =3776*V_4/60*(T_8-T_9)/A_VTK_1140 -> 0
A30: 2015-12-03 | B30: 05:18:00 | C30: =Datum+Uhrzeit -> 2015-12-03T05:18:00 | D30: -0.0427 | E30: 18.132 | F30: 29.2 | G30: 29.1 | H30: 0 | I30: 8.3 | J30: 8.3 | K30: 8 | L30: 8.1 | M30: 0 | N30: 0 | O30: 0 | P30: 0 | Q30: 18.1 | R30: 22.3 | S30: 29.1 | T30: 26.4 | U30: 25.8 | V30: 27.1 | W30: 27.3 | X30: 0 | Y30: 60.1 | Z30: 60.9 | AA30: 30 | AB30: 54.9 | AC30: 55.1 | AD30: 59.5 | AE30: 50 | AF30: =3776*V_5/60*(T_10-T_9)/A_Kollektorfeld -> 0 | AG30: =4128*V_7/60*(T_14-T_13) -> 0 | AH30: =4128/60*V_9*(T_19-T_11) -> 688 | AI30: =Q_SZ+Q_TW_solar-Qpkt_KF_spez -> 688 | AJ30: =4128/60*V_6*(T_18-T_17) -> 1651.2 | AK30: =4128/60*V_9*(T_20-T_19) -> 15136 | AL30: =3776*V_1/60*(T_2-T_9)/A_LBHTAR -> 0 | AM30: =3776*V_2/60*(T_4-T_9)/A_LBHT -> 0 | AN30: =3776*V_3/60*(T_6-T_9)/A_VFK_990 -> 0 | AO30: =3776*V_4/60*(T_8-T_9)/A_VTK_1140 -> 0
A31: 2015-12-03 | B31: 05:19:00 | C31: =Datum+Uhrzeit -> 2015-12-03T05:19:00 | D31: -0.0439 | E31: 19.181 | F31: 29.2 | G31: 29.1 | H31: 0 | I31: 8.3 | J31: 8.3 | K31: 8 | L31: 8.1 | M31: 0 | N31: 0 | O31: 0 | P31: 0 | Q31: 18.1 | R31: 22.3 | S31: 29.1 | T31: 26.4 | U31: 25.8 | V31: 27.1 | W31: 27.3 | X31: 0 | Y31: 60.1 | Z31: 60.9 | AA31: 20 | AB31: 54.9 | AC31: 55.1 | AD31: 59.5 | AE31: 40 | AF31: =3776*V_5/60*(T_10-T_9)/A_Kollektorfeld -> 0 | AG31: =4128*V_7/60*(T_14-T_13) -> 0 | AH31: =4128/60*V_9*(T_19-T_11) -> 550.4 | AI31: =Q_SZ+Q_TW_solar-Qpkt_KF_spez -> 550.4 | AJ31: =4128/60*V_6*(T_18-T_17) -> 1100.8 | AK31: =4128/60*V_9*(T_20-T_19) -> 12108.8 | AL31: =3776*V_1/60*(T_2-T_9)/A_LBHTAR -> 0 | AM31: =3776*V_2/60*(T_4-T_9)/A_LBHT -> 0 | AN31: =3776*V_3/60*(T_6-T_9)/A_VFK_990 -> 0 | AO31: =3776*V_4/60*(T_8-T_9)/A_VTK_1140 -> 0
A32: 2015-12-03 | B32: 05:20:00 | C32: =Datum+Uhrzeit -> 2015-12-03T05:20:00 | D32: -0.0452 | E32: 18.533 | F32: 29.2 | G32: 29.1 | H32: 0 | I32: 8.3 | J32: 8.3 | K32: 8 | L32: 8.1 | M32: 0 | N32: 0 | O32: 0 | P32: 0 | Q32: 18.1 | R32: 22.3 | S32: 29.1 | T32: 26.4 | U32: 25.8 | V32: 27.1 | W32: 27.3 | X32: 0 | Y32: 60.1 | Z32: 60.9 | AA32: 30 | AB32: 54.9 | AC32: 55.1 | AD32: 59.5 | AE32: 50 | AF32: =3776*V_5/60*(T_10-T_9)/A_Kollektorfeld -> 0 | AG32: =4128*V_7/60*(T_14-T_13) -> 0 | AH32: =4128/60*V_9*(T_19-T_11) -> 688 | AI32: =Q_SZ+Q_TW_solar-Qpkt_KF_spez -> 688 | AJ32: =4128/60*V_6*(T_18-T_17) -> 1651.2 | AK32: =4128/60*V_9*(T_20-T_19) -> 15136 | AL32: =3776*V_1/60*(T_2-T_9)/A_LBHTAR -> 0 | AM32: =3776*V_2/60*(T_4-T_9)/A_LBHT -> 0 | AN32: =3776*V_3/60*(T_6-T_9)/A_VFK_990 -> 0 | AO32: =3776*V_4/60*(T_8-T_9)/A_VTK_1140 -> 0
A33: 2015-12-03 | B33: 05:21:00 | C33: =Datum+Uhrzeit -> 2015-12-03T05:21:00 | D33: -0.0452 | E33: 18.523 | F33: 29.2 | G33: 29.1 | H33: 0 | I33: 8.3 | J33: 8.3 | K33: 8 | L33: 8.1 | M33: 0 | N33: 0 | O33: 0 | P33: 0 | Q33: 18.1 | R33: 22.3 | S33: 29.1 | T33: 26.4 | U33: 25.9 | V33: 27.1 | W33: 27.3 | X33: 0 | Y33: 60.1 | Z33: 60.9 | AA33: 30 | AB33: 54.9 | AC33: 55.1 | AD33: 59.5 | AE33: 50 | AF33: =3776*V_5/60*(T_10-T_9)/A_Kollektorfeld -> 0 | AG33: =4128*V_7/60*(T_14-T_13) -> 0 | AH33: =4128/60*V_9*(T_19-T_11) -> 688 | AI33: =Q_SZ+Q_TW_solar-Qpkt_KF_spez -> 688 | AJ33: =4128/60*V_6*(T_18-T_17) -> 1651.2 | AK33: =4128/60*V_9*(T_20-T_19) -> 15136 | AL33: =3776*V_1/60*(T_2-T_9)/A_LBHTAR -> 0 | AM33: =3776*V_2/60*(T_4-T_9)/A_LBHT -> 0 | AN33: =3776*V_3/60*(T_6-T_9)/A_VFK_990 -> 0 | AO33: =3776*V_4/60*(T_8-T_9)/A_VTK_1140 -> 0
A34: 2015-12-03 | B34: 05:22:00 | C34: =Datum+Uhrzeit -> 2015-12-03T05:22:00 | D34: -0.0478 | E34: 18.544 | F34: 29.2 | G34: 29.1 | H34: 0 | I34: 8.3 | J34: 8.3 | K34: 8 | L34: 8.1 | M34: 0 | N34: 0 | O34: 0 | P34: 0 | Q34: 18.1 | R34: 22.3 | S34: 29.1 | T34: 26.4 | U34: 25.9 | V34: 27.1 | W34: 27.3 | X34: 0 | Y34: 60.1 | Z34: 61 | AA34: 30 | AB34: 54.9 | AC34: 55.1 | AD34: 59.6 | AE34: 40 | AF34: =3776*V_5/60*(T_10-T_9)/A_Kollektorfeld -> 0 | AG34: =4128*V_7/60*(T_14-T_13) -> 0 | AH34: =4128/60*V_9*(T_19-T_11) -> 550.4 | AI34: =Q_SZ+Q_TW_solar-Qpkt_KF_spez -> 550.4 | AJ34: =4128/60*V_6*(T_18-T_17) -> 1857.6 | AK34: =4128/60*V_9*(T_20-T_19) -> 12384 | AL34: =3776*V_1/60*(T_2-T_9)/A_LBHTAR -> 0 | AM34: =3776*V_2/60*(T_4-T_9)/A_LBHT -> 0 | AN34: =3776*V_3/60*(T_6-T_9)/A_VFK_990 -> 0 | AO34: =3776*V_4/60*(T_8-T_9)/A_VTK_1140 -> 0
A35: 2015-12-03 | B35: 05:23:00 | C35: =Datum+Uhrzeit -> 2015-12-03T05:23:00 | D35: -0.0401 | E35: 19.243 | F35: 29.2 | G35: 29.1 | H35: 0 | I35: 8.3 | J35: 8.3 | K35: 8 | L35: 8.1 | M35: 0 | N35: 0 | O35: 0 | P35: 0 | Q35: 18.1 | R35: 22.3 | S35: 29.1 | T35: 26.4 | U35: 25.9 | V35: 27.1 | W35: 27.3 | X35: 0 | Y35: 60.1 | Z35: 61 | AA35: 30 | AB35: 54.9 | AC35: 55.1 | AD35: 59.7 | AE35: 50 | AF35: =3776*V_5/60*(T_10-T_9)/A_Kollektorfeld -> 0 | AG35: =4128*V_7/60*(T_14-T_13) -> 0 | AH35: =4128/60*V_9*(T_19-T_11) -> 688 | AI35: =Q_SZ+Q_TW_solar-Qpkt_KF_spez -> 688 | AJ35: =4128/60*V_6*(T_18-T_17) -> 1857.6 | AK35: =4128/60*V_9*(T_20-T_19) -> 15824 | AL35: =3776*V_1/60*(T_2-T_9)/A_LBHTAR -> 0 | AM35: =3776*V_2/60*(T_4-T_9)/A_LBHT -> 0 | AN35: =3776*V_3/60*(T_6-T_9)/A_VFK_990 -> 0 | AO35: =3776*V_4/60*(T_8-T_9)/A_VTK_1140 -> 0
A36: 2015-12-03 | B36: 05:24:00 | C36: =Datum+Uhrzeit -> 2015-12-03T05:24:00 | D36: -0.0415 | E36: 16.506 | F36: 29.2 | G36: 29.1 | H36: 0 | I36: 8.3 | J36: 8.3 | K36: 8 | L36: 8.1 | M36: 0 | N36: 0 | O36: 0 | P36: 0 | Q36: 18.2 | R36: 22.3 | S36: 29.1 | T36: 26.4 | U36: 25.9 | V36: 27.1 | W36: 27.3 | X36: 0 | Y36: 60.1 | Z36: 61 | AA36: 30 | AB36: 54.9 | AC36: 55.1 | AD36: 59.6 | AE36: 50 | AF36: =3776*V_5/60*(T_10-T_9)/A_Kollektorfeld -> 0 | AG36: =4128*V_7/60*(T_14-T_13) -> 0 | AH36: =4128/60*V_9*(T_19-T_11) -> 688 | AI36: =Q_SZ+Q_TW_solar-Qpkt_KF_spez -> 688 | AJ36: =4128/60*V_6*(T_18-T_17) -> 1857.6 | AK36: =4128/60*V_9*(T_20-T_19) -> 15480 | AL36: =3776*V_1/60*(T_2-T_9)/A_LBHTAR -> 0 | AM36: =3776*V_2/60*(T_4-T_9)/A_LBHT -> 0 | AN36: =3776*V_3/60*(T_6-T_9)/A_VFK_990 -> 0 | AO36: =3776*V_4/60*(T_8-T_9)/A_VTK_1140 -> 0
A37: 2015-12-03 | B37: 05:25:00 | C37: =Datum+Uhrzeit -> 2015-12-03T05:25:00 | D37: -0.0439 | E37: 19.654 | F37: 29.2 | G37: 29.1 | H37: 0 | I37: 8.3 | J37: 8.3 | K37: 8 | L37: 8.1 | M37: 0 | N37: 0 | O37: 0 | P37: 0 | Q37: 18.2 | R37: 22.3 | S37: 29.1 | T37: 26.4 | U37: 25.9 | V37: 27.1 | W37: 27.3 | X37: 0 | Y37: 60.1 | Z37: 61 | AA37: 30 | AB37: 54.9 | AC37: 55.2 | AD37: 59.7 | AE37: 40 | AF37: =3776*V_5/60*(T_10-T_9)/A_Kollektorfeld -> 0 | AG37: =4128*V_7/60*(T_14-T_13) -> 0 | AH37: =4128/60*V_9*(T_19-T_11) -> 825.6 | AI37: =Q_SZ+Q_TW_solar-Qpkt_KF_spez -> 825.6 | AJ37: =4128/60*V_6*(T_18-T_17) -> 1857.6 | AK37: =4128/60*V_9*(T_20-T_19) -> 12384 | AL37: =3776*V_1/60*(T_2-T_9)/A_LBHTAR -> 0 | AM37: =3776*V_2/60*(T_4-T_9)/A_LBHT -> 0 | AN37: =3776*V_3/60*(T_6-T_9)/A_VFK_990 -> 0 | AO37: =3776*V_4/60*(T_8-T_9)/A_VTK_1140 -> 0
A38: 2015-12-03 | B38: 05:26:00 | C38: =Datum+Uhrzeit -> 2015-12-03T05:26:00 | D38: -0.0427 | E38: 19.85 | F38: 29.2 | G38: 29.1 | H38: 0 | I38: 8.3 | J38: 8.3 | K38: 8 | L38: 8.1 | M38: 0 | N38: 0 | O38: 0 | P38: 0 | Q38: 18.2 | R38: 22.3 | S38: 29.1 | T38: 26.4 | U38: 25.9 | V38: 27.1 | W38: 27.3 | X38: 0 | Y38: 60.1 | Z38: 61.1 | AA38: 30 | AB38: 54.9 | AC38: 55.2 | AD38: 59.7 | AE38: 50 | AF38: =3776*V_5/60*(T_10-T_9)/A_Kollektorfeld -> 0 | AG38: =4128*V_7/60*(T_14-T_13) -> 0 | AH38: =4128/60*V_9*(T_19-T_11) -> 1032 | AI38: =Q_SZ+Q_TW_solar-Qpkt_KF_spez -> 1032 | AJ38: =4128/60*V_6*(T_18-T_17) -> 2064 | AK38: =4128/60*V_9*(T_20-T_19) -> 15480 | AL38: =3776*V_1/60*(T_2-T_9)/A_LBHTAR -> 0 | AM38: =3776*V_2/60*(T_4-T_9)/A_LBHT -> 0 | AN38: =3776*V_3/60*(T_6-T_9)/A_VFK_990 -> 0 | AO38: =3776*V_4/60*(T_8-T_9)/A_VTK_1140 -> 0
A39: 2015-12-03 | B39: 05:27:00 | C39: =Datum+Uhrzeit -> 2015-12-03T05:27:00 | D39: -0.0387 | E39: 19.644 | F39: 29.2 | G39: 29.1 | H39: 0 | I39: 8.3 | J39: 8.3 | K39: 8 | L39: 8.1 | M39: 0 | N39: 0 | O39: 0 | P39: 0 | Q39: 18.2 | R39: 22.3 | S39: 29.1 | T39: 26.4 | U39: 25.9 | V39: 27.1 | W39: 27.3 | X39: 0 | Y39: 60.1 | Z39: 61.1 | AA39: 20 | AB39: 54.9 | AC39: 55.2 | AD39: 59.7 | AE39: 50 | AF39: =3776*V_5/60*(T_10-T_9)/A_Kollektorfeld -> 0 | AG39: =4128*V_7/60*(T_14-T_13) -> 0 | AH39: =4128/60*V_9*(T_19-T_11) -> 1032 | AI39: =Q_SZ+Q_TW_solar-Qpkt_KF_spez -> 1032 | AJ39: =4128/60*V_6*(T_18-T_17) -> 1376 | AK39: =4128/60*V_9*(T_20-T_19) -> 15480 | AL39: =3776*V_1/60*(T_2-T_9)/A_LBHTAR -> 0 | AM39: =3776*V_2/60*(T_4-T_9)/A_LBHT -> 0 | AN39: =3776*V_3/60*(T_6-T_9)/A_VFK_990 -> 0 | AO39: =3776*V_4/60*(T_8-T_9)/A_VTK_1140 -> 0
A40: 2015-12-03 | B40: 05:28:00 | C40: =Datum+Uhrzeit -> 2015-12-03T05:28:00 | D40: -0.0387 | E40: 20.24 | F40: 29.2 | G40: 29.1 | H40: 0 | I40: 8.3 | J40: 8.4 | K40: 8 | L40: 8.1 | M40: 0 | N40: 0 | O40: 0 | P40: 0 | Q40: 18.2 | R40: 22.3 | S40: 29.1 | T40: 26.5 | U40: 25.9 | V40: 27.1 | W40: 27.3 | X40: 0 | Y40: 60.1 | Z40: 61.1 | AA40: 30 | AB40: 54.9 | AC40: 55.2 | AD40: 59.8 | AE40: 50 | AF40: =3776*V_5/60*(T_10-T_9)/A_Kollektorfeld -> 0 | AG40: =4128*V_7/60*(T_14-T_13) -> 0 | AH40: =4128/60*V_9*(T_19-T_11) -> 1032 | AI40: =Q_SZ+Q_TW_solar-Qpkt_KF_spez -> 1032 | AJ40: =4128/60*V_6*(T_18-T_17) -> 2064 | AK40: =4128/60*V_9*(T_20-T_19) -> 15824 | AL40: =3776*V_1/60*(T_2-T_9)/A_LBHTAR -> 0 | AM40: =3776*V_2/60*(T_4-T_9)/A_LBHT -> 0 | AN40: =3776*V_3/60*(T_6-T_9)/A_VFK_990 -> 0 | AO40: =3776*V_4/60*(T_8-T_9)/A_VTK_1140 -> 0
A41: 2015-12-03 | B41: 05:29:00 | C41: =Datum+Uhrzeit -> 2015-12-03T05:29:00 | D41: -0.0401 | E41: 19.325 | F41: 29.2 | G41: 29.1 | H41: 0 | I41: 8.3 | J41: 8.4 | K41: 8 | L41: 8.1 | M41: 0 | N41: 0 | O41: 0 | P41: 0 | Q41: 18.2 | R41: 22.3 | S41: 29.1 | T41: 26.5 | U41: 25.9 | V41: 27.1 | W41: 27.3 | X41: 0 | Y41: 60.1 | Z41: 61.1 | AA41: 30 | AB41: 54.9 | AC41: 55.2 | AD41: 59.8 | AE41: 40 | AF41: =3776*V_5/60*(T_10-T_9)/A_Kollektorfeld -> 0 | AG41: =4128*V_7/60*(T_14-T_13) -> 0 | AH41: =4128/60*V_9*(T_19-T_11) -> 825.6 | AI41: =Q_SZ+Q_TW_solar-Qpkt_KF_spez -> 825.6 | AJ41: =4128/60*V_6*(T_18-T_17) -> 2064 | AK41: =4128/60*V_9*(T_20-T_19) -> 12659.2 | AL41: =3776*V_1/60*(T_2-T_9)/A_LBHTAR -> 0 | AM41: =3776*V_2/60*(T_4-T_9)/A_LBHT -> 0 | AN41: =3776*V_3/60*(T_6-T_9)/A_VFK_990 -> 0 | AO41: =3776*V_4/60*(T_8-T_9)/A_VTK_1140 -> 0
A42: 2015-12-03 | B42: 05:30:00 | C42: =Datum+Uhrzeit -> 2015-12-03T05:30:00 | D42: -0.044 | E42: 19.675 | F42: 29.2 | G42: 29.1 | H42: 0 | I42: 8.3 | J42: 8.4 | K42: 8 | L42: 8.1 | M42: 0 | N42: 0 | O42: 0 | P42: 0 | Q42: 18.2 | R42: 22.3 | S42: 29.1 | T42: 26.5 | U42: 25.9 | V42: 27.1 | W42: 27.3 | X42: 0 | Y42: 60.1 | Z42: 61 | AA42: 30 | AB42: 54.9 | AC42: 55.2 | AD42: 59.6 | AE42: 50 | AF42: =3776*V_5/60*(T_10-T_9)/A_Kollektorfeld -> 0 | AG42: =4128*V_7/60*(T_14-T_13) -> 0 | AH42: =4128/60*V_9*(T_19-T_11) -> 1032 | AI42: =Q_SZ+Q_TW_solar-Qpkt_KF_spez -> 1032 | AJ42: =4128/60*V_6*(T_18-T_17) -> 1857.6 | AK42: =4128/60*V_9*(T_20-T_19) -> 15136 | AL42: =3776*V_1/60*(T_2-T_9)/A_LBHTAR -> 0 | AM42: =3776*V_2/60*(T_4-T_9)/A_LBHT -> 0 | AN42: =3776*V_3/60*(T_6-T_9)/A_VFK_990 -> 0 | AO42: =3776*V_4/60*(T_8-T_9)/A_VTK_1140 -> 0
A43: 2015-12-03 | B43: 05:31:00 | C43: =Datum+Uhrzeit -> 2015-12-03T05:31:00 | D43: -0.0454 | E43: 14.788 | F43: 29.2 | G43: 29.1 | H43: 0 | I43: 8.4 | J43: 8.4 | K43: 8.1 | L43: 8.1 | M43: 0 | N43: 0 | O43: 0 | P43: 0 | Q43: 18.2 | R43: 22.3 | S43: 29.1 | T43: 26.5 | U43: 25.9 | V43: 27.2 | W43: 27.3 | X43: 0 | Y43: 60.1 | Z43: 61 | AA43: 30 | AB43: 54.9 | AC43: 55.2 | AD43: 59.6 | AE43: 50 | AF43: =3776*V_5/60*(T_10-T_9)/A_Kollektorfeld -> 0 | AG43: =4128*V_7/60*(T_14-T_13) -> 0 | AH43: =4128/60*V_9*(T_19-T_11) -> 1032 | AI43: =Q_SZ+Q_TW_solar-Qpkt_KF_spez -> 1032 | AJ43: =4128/60*V_6*(T_18-T_17) -> 1857.6 | AK43: =4128/60*V_9*(T_20-T_19) -> 15136 | AL43: =3776*V_1/60*(T_2-T_9)/A_LBHTAR -> 0 | AM43: =3776*V_2/60*(T_4-T_9)/A_LBHT -> 0 | AN43: =3776*V_3/60*(T_6-T_9)/A_VFK_990 -> 0 | AO43: =3776*V_4/60*(T_8-T_9)/A_VTK_1140 -> 0
A44: 2015-12-03 | B44: 05:32:00 | C44: =Datum+Uhrzeit -> 2015-12-03T05:32:00 | D44: -0.0362 | E44: 13.129 | F44: 29.2 | G44: 29.1 | H44: 0 | I44: 8.4 | J44: 8.4 | K44: 8.1 | L44: 8.1 | M44: 0 | N44: 0 | O44: 0 | P44: 0 | Q44: 18.2 | R44: 22.3 | S44: 29.1 | T44: 26.5 | U44: 25.9 | V44: 27.2 | W44: 27.3 | X44: 0 | Y44: 60.1 | Z44: 61 | AA44: 30 | AB44: 54.9 | AC44: 55.2 | AD44: 59.7 | AE44: 40 | AF44: =3776*V_5/60*(T_10-T_9)/A_Kollektorfeld -> 0 | AG44: =4128*V_7/60*(T_14-T_13) -> 0 | AH44: =4128/60*V_9*(T_19-T_11) -> 825.6 | AI44: =Q_SZ+Q_TW_solar-Qpkt_KF_spez -> 825.6 | AJ44: =4128/60*V_6*(T_18-T_17) -> 1857.6 | AK44: =4128/60*V_9*(T_20-T_19) -> 12384 | AL44: =3776*V_1/60*(T_2-T_9)/A_LBHTAR -> 0 | AM44: =3776*V_2/60*(T_4-T_9)/A_LBHT -> 0 | AN44: =3776*V_3/60*(T_6-T_9)/A_VFK_990 -> 0 | AO44: =3776*V_4/60*(T_8-T_9)/A_VTK_1140 -> 0
A45: 2015-12-03 | B45: 05:33:00 | C45: =Datum+Uhrzeit -> 2015-12-03T05:33:00 | D45: -0.0389 | E45: 19.808 | F45: 29.2 | G45: 29.1 | H45: 0 | I45: 8.4 | J45: 8.4 | K45: 8.1 | L45: 8.1 | M45: 0 | N45: 0 | O45: 0 | P45: 0 | Q45: 18.2 | R45: 22.3 | S45: 29.1 | T45: 26.5 | U45: 25.9 | V45: 27.2 | W45: 27.3 | X45: 0 | Y45: 60.1 | Z45: 60.9 | AA45: 30 | AB45: 54.9 | AC45: 55.2 | AD45: 59.6 | AE45: 50 | AF45: =3776*V_5/60*(T_10-T_9)/A_Kollektorfeld -> 0 | AG45: =4128*V_7/60*(T_14-T_13) -> 0 | AH45: =4128/60*V_9*(T_19-T_11) -> 1032 | AI45: =Q_SZ+Q_TW_solar-Qpkt_KF_spez -> 1032 | AJ45: =4128/60*V_6*(T_18-T_17) -> 1651.2 | AK45: =4128/60*V_9*(T_20-T_19) -> 15136 | AL45: =3776*V_1/60*(T_2-T_9)/A_LBHTAR -> 0 | AM45: =3776*V_2/60*(T_4-T_9)/A_LBHT -> 0 | AN45: =3776*V_3/60*(T_6-T_9)/A_VFK_990 -> 0 | AO45: =3776*V_4/60*(T_8-T_9)/A_VTK_1140 -> 0
A46: 2015-12-03 | B46: 05:34:00 | C46: =Datum+Uhrzeit -> 2015-12-03T05:34:00 | D46: -0.0415 | E46: 17.101 | F46: 29.2 | G46: 29.1 | H46: 0 | I46: 8.4 | J46: 8.4 | K46: 8.1 | L46: 8.2 | M46: 0 | N46: 0 | O46: 0 | P46: 0 | Q46: 18.2 | R46: 22.3 | S46: 29.1 | T46: 26.5 | U46: 25.9 | V46: 27.2 | W46: 27.3 | X46: 0 | Y46: 60.1 | Z46: 61 | AA46: 30 | AB46: 55 | AC46: 55.2 | AD46: 59.6 | AE46: 50 | AF46: =3776*V_5/60*(T_10-T_9)/A_Kollektorfeld -> 0 | AG46: =4128*V_7/60*(T_14-T_13) -> 0 | AH46: =4128/60*V_9*(T_19-T_11) -> 688 | AI46: =Q_SZ+Q_TW_solar-Qpkt_KF_spez -> 688 | AJ46: =4128/60*V_6*(T_18-T_17) -> 1857.6 | AK46: =4128/60*V_9*(T_20-T_19) -> 15136 | AL46: =3776*V_1/60*(T_2-T_9)/A_LBHTAR -> 0 | AM46: =3776*V_2/60*(T_4-T_9)/A_LBHT -> 0 | AN46: =3776*V_3/60*(T_6-T_9)/A_VFK_990 -> 0 | AO46: =3776*V_4/60*(T_8-T_9)/A_VTK_1140 -> 0
A47: 2015-12-03 | B47: 05:35:00 | C47: =Datum+Uhrzeit -> 2015-12-03T05:35:00 | D47: -0.0413 | E47: 18.698 | F47: 29.2 | G47: 29.1 | H47: 0 | I47: 8.4 | J47: 8.4 | K47: 8.1 | L47: 8.2 | M47: 0 | N47: 0 | O47: 0 | P47: 0 | Q47: 18.2 | R47: 22.3 | S47: 29.1 | T47: 26.5 | U47: 25.9 | V47: 27.2 | W47: 27.3 | X47: 0 | Y47: 60.1 | Z47: 61 | AA47: 30 | AB47: 55 | AC47: 55.2 | AD47: 59.7 | AE47: 40 | AF47: =3776*V_5/60*(T_10-T_9)/A_Kollektorfeld -> 0 | AG47: =4128*V_7/60*(T_14-T_13) -> 0 | AH47: =4128/60*V_9*(T_19-T_11) -> 550.4 | AI47: =Q_SZ+Q_TW_solar-Qpkt_KF_spez -> 550.4 | AJ47: =4128/60*V_6*(T_18-T_17) -> 1857.6 | AK47: =4128/60*V_9*(T_20-T_19) -> 12384 | AL47: =3776*V_1/60*(T_2-T_9)/A_LBHTAR -> 0 | AM47: =3776*V_2/60*(T_4-T_9)/A_LBHT -> 0 | AN47: =3776*V_3/60*(T_6-T_9)/A_VFK_990 -> 0 | AO47: =3776*V_4/60*(T_8-T_9)/A_VTK_1140 -> 0
A48: 2015-12-03 | B48: 05:36:00 | C48: =Datum+Uhrzeit -> 2015-12-03T05:36:00 | D48: -0.0427 | E48: 19.644 | F48: 29.2 | G48: 29.1 | H48: 0 | I48: 8.4 | J48: 8.4 | K48: 8.1 | L48: 8.2 | M48: 0 | N48: 0 | O48: 0 | P48: 0 | Q48: 18.2 | R48: 22.3 | S48: 29.1 | T48: 26.5 | U48: 25.9 | V48: 27.2 | W48: 27.3 | X48: 0 | Y48: 60.1 | Z48: 61 | AA48: 30 | AB48: 55 | AC48: 55.2 | AD48: 59.7 | AE48: 50 | AF48: =3776*V_5/60*(T_10-T_9)/A_Kollektorfeld -> 0 | AG48: =4128*V_7/60*(T_14-T_13) -> 0 | AH48: =4128/60*V_9*(T_19-T_11) -> 688 | AI48: =Q_SZ+Q_TW_solar-Qpkt_KF_spez -> 688 | AJ48: =4128/60*V_6*(T_18-T_17) -> 1857.6 | AK48: =4128/60*V_9*(T_20-T_19) -> 15480 | AL48: =3776*V_1/60*(T_2-T_9)/A_LBHTAR -> 0 | AM48: =3776*V_2/60*(T_4-T_9)/A_LBHT -> 0 | AN48: =3776*V_3/60*(T_6-T_9)/A_VFK_990 -> 0 | AO48: =3776*V_4/60*(T_8-T_9)/A_VTK_1140 -> 0
A49: 2015-12-03 | B49: 05:37:00 | C49: =Datum+Uhrzeit -> 2015-12-03T05:37:00 | D49: -0.0439 | E49: 17.708 | F49: 29.2 | G49: 29.1 | H49: 0 | I49: 8.4 | J49: 8.4 | K49: 8.1 | L49: 8.2 | M49: 0 | N49: 0 | O49: 0 | P49: 0 | Q49: 18.2 | R49: 22.3 | S49: 29.1 | T49: 26.5 | U49: 25.9 | V49: 27.2 | W49: 27.3 | X49: 0 | Y49: 60.1 | Z49: 61 | AA49: 20 | AB49: 55 | AC49: 55.2 | AD49: 59.7 | AE49: 50 | AF49: =3776*V_5/60*(T_10-T_9)/A_Kollektorfeld -> 0 | AG49: =4128*V_7/60*(T_14-T_13) -> 0 | AH49: =4128/60*V_9*(T_19-T_11) -> 688 | AI49: =Q_SZ+Q_TW_solar-Qpkt_KF_spez -> 688 | AJ49: =4128/60*V_6*(T_18-T_17) -> 1238.4 | AK49: =4128/60*V_9*(T_20-T_19) -> 15480 | AL49: =3776*V_1/60*(T_2-T_9)/A_LBHTAR -> 0 | AM49: =3776*V_2/60*(T_4-T_9)/A_LBHT -> 0 | AN49: =3776*V_3/60*(T_6-T_9)/A_VFK_990 -> 0 | AO49: =3776*V_4/60*(T_8-T_9)/A_VTK_1140 -> 0
A50: 2015-12-03 | B50: 05:38:00 | C50: =Datum+Uhrzeit -> 2015-12-03T05:38:00 | D50: -0.044 | E50: 19.644 | F50: 29.2 | G50: 29.1 | H50: 0 | I50: 8.4 | J50: 8.4 | K50: 8.1 | L50: 8.2 | M50: 0 | N50: 0 | O50: 0 | P50: 0 | Q50: 18.2 | R50: 22.3 | S50: 29.1 | T50: 26.5 | U50: 25.9 | V50: 27.2 | W50: 27.4 | X50: 0 | Y50: 60.1 | Z50: 60.9 | AA50: 30 | AB50: 55 | AC50: 55.2 | AD50: 59.6 | AE50: 40 | AF50: =3776*V_5/60*(T_10-T_9)/A_Kollektorfeld -> 0 | AG50: =4128*V_7/60*(T_14-T_13) -> 0 | AH50: =4128/60*V_9*(T_19-T_11) -> 550.4 | AI50: =Q_SZ+Q_TW_solar-Qpkt_KF_spez -> 550.4 | AJ50: =4128/60*V_6*(T_18-T_17) -> 1651.2 | AK50: =4128/60*V_9*(T_20-T_19) -> 12108.8 | AL50: =3776*V_1/60*(T_2-T_9)/A_LBHTAR -> 0 | AM50: =3776*V_2/60*(T_4-T_9)/A_LBHT -> 0 | AN50: =3776*V_3/60*(T_6-T_9)/A_VFK_990 -> 0 | AO50: =3776*V_4/60*(T_8-T_9)/A_VTK_1140 -> 0
A51: 2015-12-03 | B51: 05:39:00 | C51: =Datum+Uhrzeit -> 2015-12-03T05:39:00 | D51: -0.0439 | E51: 17.33 | F51: 29.2 | G51: 29.1 | H51: 0 | I51: 8.4 | J51: 8.4 | K51: 8.1 | L51: 8.2 | M51: 0 | N51: 0 | O51: 0 | P51: 0 | Q51: 18.2 | R51: 22.4 | S51: 29.1 | T51: 26.5 | U51: 25.9 | V51: 27.2 | W51: 27.4 | X51: 0 | Y51: 60.1 | Z51: 60.9 | AA51: 30 | AB51: 55 | AC51: 55.2 | AD51: 59.5 | AE51: 50 | AF51: =3776*V_5/60*(T_10-T_9)/A_Kollektorfeld -> 0 | AG51: =4128*V_7/60*(T_14-T_13) -> 0 | AH51: =4128/60*V_9*(T_19-T_11) -> 688 | AI51: =Q_SZ+Q_TW_solar-Qpkt_KF_spez -> 688 | AJ51: =4128/60*V_6*(T_18-T_17) -> 1651.2 | AK51: =4128/60*V_9*(T_20-T_19) -> 14792 | AL51: =3776*V_1/60*(T_2-T_9)/A_LBHTAR -> 0 | AM51: =3776*V_2/60*(T_4-T_9)/A_LBHT -> 0 | AN51: =3776*V_3/60*(T_6-T_9)/A_VFK_990 -> 0 | AO51: =3776*V_4/60*(T_8-T_9)/A_VTK_1140 -> 0
A52: 2015-12-03 | B52: 05:40:00 | C52: =Datum+Uhrzeit -> 2015-12-03T05:40:00 | D52: -0.0452 | E52: 18.718 | F52: 29.2 | G52: 29.1 | H52: 0 | I52: 8.4 | J52: 8.4 | K52: 8.1 | L52: 8.2 | M52: 0 | N52: 0 | O52: 0 | P52: 0 | Q52: 18.2 | R52: 22.4 | S52: 29.1 | T52: 26.5 | U52: 26 | V52: 27.2 | W52: 27.4 | X52: 0 | Y52: 60.1 | Z52: 61 | AA52: 30 | AB52: 55 | AC52: 55.2 | AD52: 59.6 | AE52: 50 | AF52: =3776*V_5/60*(T_10-T_9)/A_Kollektorfeld -> 0 | AG52: =4128*V_7/60*(T_14-T_13) -> 0 | AH52: =4128/60*V_9*(T_19-T_11) -> 688 | AI52: =Q_SZ+Q_TW_solar-Qpkt_KF_spez -> 688 | AJ52: =4128/60*V_6*(T_18-T_17) -> 1857.6 | AK52: =4128/60*V_9*(T_20-T_19) -> 15136 | AL52: =3776*V_1/60*(T_2-T_9)/A_LBHTAR -> 0 | AM52: =3776*V_2/60*(T_4-T_9)/A_LBHT -> 0 | AN52: =3776*V_3/60*(T_6-T_9)/A_VFK_990 -> 0 | AO52: =3776*V_4/60*(T_8-T_9)/A_VTK_1140 -> 0
A53: 2015-12-03 | B53: 05:41:00 | C53: =Datum+Uhrzeit -> 2015-12-03T05:41:00 | D53: -0.0451 | E53: 19.089 | F53: 29.2 | G53: 29.1 | H53: 0 | I53: 8.4 | J53: 8.4 | K53: 8.1 | L53: 8.2 | M53: 0 | N53: 0 | O53: 0 | P53: 0 | Q53: 18.2 | R53: 22.4 | S53: 29.1 | T53: 26.5 | U53: 26 | V53: 27.2 | W53: 27.4 | X53: 0 | Y53: 60.1 | Z53: 60.9 | AA53: 30 | AB53: 55 | AC53: 55.2 | AD53: 59.6 | AE53: 40 | AF53: =3776*V_5/60*(T_10-T_9)/A_Kollektorfeld -> 0 | AG53: =4128*V_7/60*(T_14-T_13) -> 0 | AH53: =4128/60*V_9*(T_19-T_11) -> 550.4 | AI53: =Q_SZ+Q_TW_solar-Qpkt_KF_spez -> 550.4 | AJ53: =4128/60*V_6*(T_18-T_17) -> 1651.2 | AK53: =4128/60*V_9*(T_20-T_19) -> 12108.8 | AL53: =3776*V_1/60*(T_2-T_9)/A_LBHTAR -> 0 | AM53: =3776*V_2/60*(T_4-T_9)/A_LBHT -> 0 | AN53: =3776*V_3/60*(T_6-T_9)/A_VFK_990 -> 0 | AO53: =3776*V_4/60*(T_8-T_9)/A_VTK_1140 -> 0
A54: 2015-12-03 | B54: 05:42:00 | C54: =Datum+Uhrzeit -> 2015-12-03T05:42:00 | D54: -0.0452 | E54: 17.082 | F54: 29.2 | G54: 29.1 | H54: 0 | I54: 8.4 | J54: 8.4 | K54: 8.1 | L54: 8.2 | M54: 0 | N54: 0 | O54: 0 | P54: 0 | Q54: 18.2 | R54: 22.4 | S54: 29.1 | T54: 26.6 | U54: 26 | V54: 27.2 | W54: 27.4 | X54: 0 | Y54: 60.1 | Z54: 60.9 | AA54: 30 | AB54: 55 | AC54: 55.2 | AD54: 59.6 | AE54: 50 | AF54: =3776*V_5/60*(T_10-T_9)/A_Kollektorfeld -> 0 | AG54: =4128*V_7/60*(T_14-T_13) -> 0 | AH54: =4128/60*V_9*(T_19-T_11) -> 688 | AI54: =Q_SZ+Q_TW_solar-Qpkt_KF_spez -> 688 | AJ54: =4128/60*V_6*(T_18-T_17) -> 1651.2 | AK54: =4128/60*V_9*(T_20-T_19) -> 15136 | AL54: =3776*V_1/60*(T_2-T_9)/A_LBHTAR -> 0 | AM54: =3776*V_2/60*(T_4-T_9)/A_LBHT -> 0 | AN54: =3776*V_3/60*(T_6-T_9)/A_VFK_990 -> 0 | AO54: =3776*V_4/60*(T_8-T_9)/A_VTK_1140 -> 0
A55: 2015-12-03 | B55: 05:43:00 | C55: =Datum+Uhrzeit -> 2015-12-03T05:43:00 | D55: -0.0427 | E55: 16.68 | F55: 29.2 | G55: 29.2 | H55: 0 | I55: 8.4 | J55: 8.4 | K55: 8.1 | L55: 8.2 | M55: 0 | N55: 0 | O55: 0 | P55: 0 | Q55: 18.2 | R55: 22.4 | S55: 29.1 | T55: 26.6 | U55: 26 | V55: 27.2 | W55: 27.4 | X55: 0 | Y55: 60.1 | Z55: 61 | AA55: 30 | AB55: 54.9 | AC55: 55.2 | AD55: 59.6 | AE55: 50 | AF55: =3776*V_5/60*(T_10-T_9)/A_Kollektorfeld -> 0 | AG55: =4128*V_7/60*(T_14-T_13) -> 0 | AH55: =4128/60*V_9*(T_19-T_11) -> 1032 | AI55: =Q_SZ+Q_TW_solar-Qpkt_KF_spez -> 1032 | AJ55: =4128/60*V_6*(T_18-T_17) -> 1857.6 | AK55: =4128/60*V_9*(T_20-T_19) -> 15136 | AL55: =3776*V_1/60*(T_2-T_9)/A_LBHTAR -> 0 | AM55: =3776*V_2/60*(T_4-T_9)/A_LBHT -> 0 | AN55: =3776*V_3/60*(T_6-T_9)/A_VFK_990 -> 0 | AO55: =3776*V_4/60*(T_8-T_9)/A_VTK_1140 -> 0
A56: 2015-12-03 | B56: 05:44:00 | C56: =Datum+Uhrzeit -> 2015-12-03T05:44:00 | D56: -0.0452 | E56: 19.058 | F56: 29.2 | G56: 29.2 | H56: 0 | I56: 8.4 | J56: 8.4 | K56: 8.1 | L56: 8.2 | M56: 0 | N56: 0 | O56: 0 | P56: 0 | Q56: 18.2 | R56: 22.4 | S56: 29.1 | T56: 26.6 | U56: 26 | V56: 27.2 | W56: 27.4 | X56: 0 | Y56: 60.1 | Z56: 60.9 | AA56: 30 | AB56: 54.9 | AC56: 55.2 | AD56: 59.6 | AE56: 40 | AF56: =3776*V_5/60*(T_10-T_9)/A_Kollektorfeld -> 0 | AG56: =4128*V_7/60*(T_14-T_13) -> 0 | AH56: =4128/60*V_9*(T_19-T_11) -> 825.6 | AI56: =Q_SZ+Q_TW_solar-Qpkt_KF_spez -> 825.6 | AJ56: =4128/60*V_6*(T_18-T_17) -> 1651.2 | AK56: =4128/60*V_9*(T_20-T_19) -> 12108.8 | AL56: =3776*V_1/60*(T_2-T_9)/A_LBHTAR -> 0 | AM56: =3776*V_2/60*(T_4-T_9)/A_LBHT -> 0 | AN56: =3776*V_3/60*(T_6-T_9)/A_VFK_990 -> 0 | AO56: =3776*V_4/60*(T_8-T_9)/A_VTK_1140 -> 0
A57: 2015-12-03 | B57: 05:45:00 | C57: =Datum+Uhrzeit -> 2015-12-03T05:45:00 | D57: -0.0375 | E57: 16.485 | F57: 29.2 | G57: 29.2 | H57: 0 | I57: 8.4 | J57: 8.5 | K57: 8.1 | L57: 8.2 | M57: 0 | N57: 0 | O57: 0 | P57: 0 | Q57: 18.2 | R57: 22.4 | S57: 29.1 | T57: 26.6 | U57: 26 | V57: 27.2 | W57: 27.4 | X57: 0 | Y57: 60.1 | Z57: 60.9 | AA57: 30 | AB57: 54.9 | AC57: 55.2 | AD57: 59.6 | AE57: 50 | AF57: =3776*V_5/60*(T_10-T_9)/A_Kollektorfeld -> 0 | AG57: =4128*V_7/60*(T_14-T_13) -> 0 | AH57: =4128/60*V_9*(T_19-T_11) -> 1032 | AI57: =Q_SZ+Q_TW_solar-Qpkt_KF_spez -> 1032 | AJ57: =4128/60*V_6*(T_18-T_17) -> 1651.2 | AK57: =4128/60*V_9*(T_20-T_19) -> 15136 | AL57: =3776*V_1/60*(T_2-T_9)/A_LBHTAR -> 0 | AM57: =3776*V_2/60*(T_4-T_9)/A_LBHT -> 0 | AN57: =3776*V_3/60*(T_6-T_9)/A_VFK_990 -> 0 | AO57: =3776*V_4/60*(T_8-T_9)/A_VTK_1140 -> 0
A58: 2015-12-03 | B58: 05:46:00 | C58: =Datum+Uhrzeit -> 2015-12-03T05:46:00 | D58: -0.0422 | E58: 17.9 | F58: 29.2 | G58: 29.2 | H58: 0 | I58: 8.4 | J58: 8.5 | K58: 8.1 | L58: 8.2 | M58: 0 | N58: 0 | O58: 0 | P58: 0 | Q58: 18.2 | R58: 22.4 | S58: 29.1 | T58: 26.6 | U58: 26 | V58: 27.2 | W58: 27.4 | X58: 0 | Y58: 60.1 | Z58: 60.9 | AA58: 20 | AB58: 54.9 | AC58: 55.2 | AD58: 59.6 | AE58: 50 | AF58: =3776*V_5/60*(T_10-T_9)/A_Kollektorfeld -> 0 | AG58: =4128*V_7/60*(T_14-T_13) -> 0 | AH58: =4128/60*V_9*(T_19-T_11) -> 1032 | AI58: =Q_SZ+Q_TW_solar-Qpkt_KF_spez -> 1032 | AJ58: =4128/60*V_6*(T_18-T_17) -> 1100.8 | AK58: =4128/60*V_9*(T_20-T_19) -> 15136 | AL58: =3776*V_1/60*(T_2-T_9)/A_LBHTAR -> 0 | AM58: =3776*V_2/60*(T_4-T_9)/A_LBHT -> 0 | AN58: =3776*V_3/60*(T_6-T_9)/A_VFK_990 -> 0 | AO58: =3776*V_4/60*(T_8-T_9)/A_VTK_1140 -> 0
A59: 2015-12-03 | B59: 05:47:00 | C59: =Datum+Uhrzeit -> 2015-12-03T05:47:00 | D59: -0.0422 | E59: 17.838 | F59: 29.2 | G59: 29.2 | H59: 0 | I59: 8.4 | J59: 8.5 | K59: 8.2 | L59: 8.2 | M59: 0 | N59: 0 | O59: 0 | P59: 0 | Q59: 18.2 | R59: 22.4 | S59: 29.1 | T59: 26.6 | U59: 26 | V59: 27.2 | W59: 27.4 | X59: 0 | Y59: 60.1 | Z59: 60.9 | AA59: 30 | AB59: 54.9 | AC59: 55.2 | AD59: 59.6 | AE59: 40 | AF59: =3776*V_5/60*(T_10-T_9)/A_Kollektorfeld -> 0 | AG59: =4128*V_7/60*(T_14-T_13) -> 0 | AH59: =4128/60*V_9*(T_19-T_11) -> 825.6 | AI59: =Q_SZ+Q_TW_solar-Qpkt_KF_spez -> 825.6 | AJ59: =4128/60*V_6*(T_18-T_17) -> 1651.2 | AK59: =4128/60*V_9*(T_20-T_19) -> 12108.8 | AL59: =3776*V_1/60*(T_2-T_9)/A_LBHTAR -> 0 | AM59: =3776*V_2/60*(T_4-T_9)/A_LBHT -> 0 | AN59: =3776*V_3/60*(T_6-T_9)/A_VFK_990 -> 0 | AO59: =3776*V_4/60*(T_8-T_9)/A_VTK_1140 -> 0
A60: 2015-12-03 | B60: 05:48:00 | C60: =Datum+Uhrzeit -> 2015-12-03T05:48:00 | D60: -0.046 | E60: 18.743 | F60: 29.2 | G60: 29.2 | H60: 0 | I60: 8.5 | J60: 8.5 | K60: 8.2 | L60: 8.2 | M60: 0 | N60: 0 | O60: 0 | P60: 0 | Q60: 18.2 | R60: 22.4 | S60: 29.1 | T60: 26.6 | U60: 26 | V60: 27.2 | W60: 27.4 | X60: 0 | Y60: 60.1 | Z60: 60.9 | AA60: 30 | AB60: 54.9 | AC60: 55.2 | AD60: 59.6 | AE60: 50 | AF60: =3776*V_5/60*(T_10-T_9)/A_Kollektorfeld -> 0 | AG60: =4128*V_7/60*(T_14-T_13) -> 0 | AH60: =4128/60*V_9*(T_19-T_11) -> 1032 | AI60: =Q_SZ+Q_TW_solar-Qpkt_KF_spez -> 1032 | AJ60: =4128/60*V_6*(T_18-T_17) -> 1651.2 | AK60: =4128/60*V_9*(T_20-T_19) -> 15136 | AL60: =3776*V_1/60*(T_2-T_9)/A_LBHTAR -> 0 | AM60: =3776*V_2/60*(T_4-T_9)/A_LBHT -> 0 | AN60: =3776*V_3/60*(T_6-T_9)/A_VFK_990 -> 0 | AO60: =3776*V_4/60*(T_8-T_9)/A_VTK_1140 -> 0
A61: 2015-12-03 | B61: 05:49:00 | C61: =Datum+Uhrzeit -> 2015-12-03T05:49:00 | D61: -0.042 | E61: 18.959 | F61: 29.2 | G61: 29.2 | H61: 0 | I61: 8.5 | J61: 8.5 | K61: 8.2 | L61: 8.2 | M61: 0 | N61: 0 | O61: 0 | P61: 0 | Q61: 18.2 | R61: 22.4 | S61: 29.1 | T61: 26.6 | U61: 26 | V61: 27.2 | W61: 27.4 | X61: 0 | Y61: 60.1 | Z61: 60.9 | AA61: 30 | AB61: 54.9 | AC61: 55.2 | AD61: 59.5 | AE61: 50 | AF61: =3776*V_5/60*(T_10-T_9)/A_Kollektorfeld -> 0 | AG61: =4128*V_7/60*(T_14-T_13) -> 0 | AH61: =4128/60*V_9*(T_19-T_11) -> 1032 | AI61: =Q_SZ+Q_TW_solar-Qpkt_KF_spez -> 1032 | AJ61: =4128/60*V_6*(T_18-T_17) -> 1651.2 | AK61: =4128/60*V_9*(T_20-T_19) -> 14792 | AL61: =3776*V_1/60*(T_2-T_9)/A_LBHTAR -> 0 | AM61: =3776*V_2/60*(T_4-T_9)/A_LBHT -> 0 | AN61: =3776*V_3/60*(T_6-T_9)/A_VFK_990 -> 0 | AO61: =3776*V_4/60*(T_8-T_9)/A_VTK_1140 -> 0
A62: 2015-12-03 | B62: 05:50:00 | C62: =Datum+Uhrzeit -> 2015-12-03T05:50:00 | D62: -0.0461 | E62: 17.735 | F62: 29.2 | G62: 29.2 | H62: 0 | I62: 8.5 | J62: 8.5 | K62: 8.2 | L62: 8.2 | M62: 0 | N62: 0 | O62: 0 | P62: 0 | Q62: 18.2 | R62: 22.4 | S62: 29.1 | T62: 26.6 | U62: 26 | V62: 27.2 | W62: 27.4 | X62: 0 | Y62: 60.1 | Z62: 60.8 | AA62: 30 | AB62: 54.9 | AC62: 55.2 | AD62: 59.5 | AE62: 40 | AF62: =3776*V_5/60*(T_10-T_9)/A_Kollektorfeld -> 0 | AG62: =4128*V_7/60*(T_14-T_13) -> 0 | AH62: =4128/60*V_9*(T_19-T_11) -> 825.6 | AI62: =Q_SZ+Q_TW_solar-Qpkt_KF_spez -> 825.6 | AJ62: =4128/60*V_6*(T_18-T_17) -> 1444.8 | AK62: =4128/60*V_9*(T_20-T_19) -> 11833.6 | AL62: =3776*V_1/60*(T_2-T_9)/A_LBHTAR -> 0 | AM62: =3776*V_2/60*(T_4-T_9)/A_LBHT -> 0 | AN62: =3776*V_3/60*(T_6-T_9)/A_VFK_990 -> 0 | AO62: =3776*V_4/60*(T_8-T_9)/A_VTK_1140 -> 0
A63: 2015-12-03 | B63: 05:51:00 | C63: =Datum+Uhrzeit -> 2015-12-03T05:51:00 | D63: -0.0434 | E63: 16.683 | F63: 29.2 | G63: 29.2 | H63: 0 | I63: 8.5 | J63: 8.5 | K63: 8.2 | L63: 8.2 | M63: 0 | N63: 0 | O63: 0 | P63: 0 | Q63: 18.2 | R63: 22.4 | S63: 29.1 | T63: 26.6 | U63: 26 | V63: 27.2 | W63: 27.4 | X63: 1 | Y63: 60.1 | Z63: 60.9 | AA63: 30 | AB63: 54.9 | AC63: 55.2 | AD63: 59.6 | AE63: 50 | AF63: =3776*V_5/60*(T_10-T_9)/A_Kollektorfeld -> 0 | AG63: =4128*V_7/60*(T_14-T_13) -> -41.28 | AH63: =4128/60*V_9*(T_19-T_11) -> 1032 | AI63: =Q_SZ+Q_TW_solar-Qpkt_KF_spez -> 990.72 | AJ63: =4128/60*V_6*(T_18-T_17) -> 1651.2 | AK63: =4128/60*V_9*(T_20-T_19) -> 15136 | AL63: =3776*V_1/60*(T_2-T_9)/A_LBHTAR -> 0 | AM63: =3776*V_2/60*(T_4-T_9)/A_LBHT -> 0 | AN63: =3776*V_3/60*(T_6-T_9)/A_VFK_990 -> 0 | AO63: =3776*V_4/60*(T_8-T_9)/A_VTK_1140 -> 0
A64: 2015-12-03 | B64: 05:52:00 | C64: =Datum+Uhrzeit -> 2015-12-03T05:52:00 | D64: -0.0422 | E64: 17.169 | F64: 29.2 | G64: 29.2 | H64: 0 | I64: 8.5 | J64: 8.5 | K64: 8.2 | L64: 8.2 | M64: 0 | N64: 0 | O64: 0 | P64: 0 | Q64: 18.2 | R64: 22.4 | S64: 29.1 | T64: 26.6 | U64: 26 | V64: 27.2 | W64: 27.4 | X64: 0 | Y64: 60.1 | Z64: 60.9 | AA64: 30 | AB64: 54.9 | AC64: 55.2 | AD64: 59.5 | AE64: 50 | AF64: =3776*V_5/60*(T_10-T_9)/A_Kollektorfeld -> 0 | AG64: =4128*V_7/60*(T_14-T_13) -> 0 | AH64: =4128/60*V_9*(T_19-T_11) -> 1032 | AI64: =Q_SZ+Q_TW_solar-Qpkt_KF_spez -> 1032 | AJ64: =4128/60*V_6*(T_18-T_17) -> 1651.2 | AK64: =4128/60*V_9*(T_20-T_19) -> 14792 | AL64: =3776*V_1/60*(T_2-T_9)/A_LBHTAR -> 0 | AM64: =3776*V_2/60*(T_4-T_9)/A_LBHT -> 0 | AN64: =3776*V_3/60*(T_6-T_9)/A_VFK_990 -> 0 | AO64: =3776*V_4/60*(T_8-T_9)/A_VTK_1140 -> 0
A65: 2015-12-03 | B65: 05:53:00 | C65: =Datum+Uhrzeit -> 2015-12-03T05:53:00 | D65: -0.0407 | E65: 19.637 | F65: 29.2 | G65: 29.2 | H65: 0 | I65: 8.5 | J65: 8.5 | K65: 8.2 | L65: 8.2 | M65: 0 | N65: 0 | O65: 0 | P65: 0 | Q65: 18.2 | R65: 22.4 | S65: 29.1 | T65: 26.6 | U65: 26 | V65: 27.3 | W65: 27.4 | X65: 0 | Y65: 60.1 | Z65: 60.9 | AA65: 30 | AB65: 54.9 | AC65: 55.2 | AD65: 59.6 | AE65: 40 | AF65: =3776*V_5/60*(T_10-T_9)/A_Kollektorfeld -> 0 | AG65: =4128*V_7/60*(T_14-T_13) -> 0 | AH65: =4128/60*V_9*(T_19-T_11) -> 825.6 | AI65: =Q_SZ+Q_TW_solar-Qpkt_KF_spez -> 825.6 | AJ65: =4128/60*V_6*(T_18-T_17) -> 1651.2 | AK65: =4128/60*V_9*(T_20-T_19) -> 12108.8 | AL65: =3776*V_1/60*(T_2-T_9)/A_LBHTAR -> 0 | AM65: =3776*V_2/60*(T_4-T_9)/A_LBHT -> 0 | AN65: =3776*V_3/60*(T_6-T_9)/A_VFK_990 -> 0 | AO65: =3776*V_4/60*(T_8-T_9)/A_VTK_1140 -> 0
A66: 2015-12-03 | B66: 05:54:00 | C66: =Datum+Uhrzeit -> 2015-12-03T05:54:00 | D66: -0.0473 | E66: 18.959 | F66: 29.2 | G66: 29.2 | H66: 0 | I66: 8.5 | J66: 8.5 | K66: 8.2 | L66: 8.2 | M66: 0 | N66: 0 | O66: 0 | P66: 0 | Q66: 18.2 | R66: 22.4 | S66: 29.1 | T66: 26.6 | U66: 26 | V66: 27.3 | W66: 27.4 | X66: 0 | Y66: 60.1 | Z66: 60.9 | AA66: 30 | AB66: 54.9 | AC66: 55.2 | AD66: 59.6 | AE66: 50 | AF66: =3776*V_5/60*(T_10-T_9)/A_Kollektorfeld -> 0 | AG66: =4128*V_7/60*(T_14-T_13) -> 0 | AH66: =4128/60*V_9*(T_19-T_11) -> 1032 | AI66: =Q_SZ+Q_TW_solar-Qpkt_KF_spez -> 1032 | AJ66: =4128/60*V_6*(T_18-T_17) -> 1651.2 | AK66: =4128/60*V_9*(T_20-T_19) -> 15136 | AL66: =3776*V_1/60*(T_2-T_9)/A_LBHTAR -> 0 | AM66: =3776*V_2/60*(T_4-T_9)/A_LBHT -> 0 | AN66: =3776*V_3/60*(T_6-T_9)/A_VFK_990 -> 0 | AO66: =3776*V_4/60*(T_8-T_9)/A_VTK_1140 -> 0
A67: 2015-12-03 | B67: 05:55:00 | C67: =Datum+Uhrzeit -> 2015-12-03T05:55:00 | D67: -0.0449 | E67: 18.239 | F67: 29.2 | G67: 29.2 | H67: 0 | I67: 8.5 | J67: 8.5 | K67: 8.2 | L67: 8.2 | M67: 0 | N67: 0 | O67: 0 | P67: 0 | Q67: 18.2 | R67: 22.4 | S67: 29.1 | T67: 26.6 | U67: 26 | V67: 27.3 | W67: 27.4 | X67: 0 | Y67: 60.1 | Z67: 60.9 | AA67: 20 | AB67: 54.9 | AC67: 55.2 | AD67: 59.5 | AE67: 50 | AF67: =3776*V_5/60*(T_10-T_9)/A_Kollektorfeld -> 0 | AG67: =4128*V_7/60*(T_14-T_13) -> 0 | AH67: =4128/60*V_9*(T_19-T_11) -> 1032 | AI67: =Q_SZ+Q_TW_solar-Qpkt_KF_spez -> 1032 | AJ67: =4128/60*V_6*(T_18-T_17) -> 1100.8 | AK67: =4128/60*V_9*(T_20-T_19) -> 14792 | AL67: =3776*V_1/60*(T_2-T_9)/A_LBHTAR -> 0 | AM67: =3776*V_2/60*(T_4-T_9)/A_LBHT -> 0 | AN67: =3776*V_3/60*(T_6-T_9)/A_VFK_990 -> 0 | AO67: =3776*V_4/60*(T_8-T_9)/A_VTK_1140 -> 0
A68: 2015-12-03 | B68: 05:56:00 | C68: =Datum+Uhrzeit -> 2015-12-03T05:56:00 | D68: -0.0421 | E68: 18.496 | F68: 29.2 | G68: 29.2 | H68: 0 | I68: 8.5 | J68: 8.5 | K68: 8.2 | L68: 8.3 | M68: 0 | N68: 0 | O68: 0 | P68: 0 | Q68: 18.2 | R68: 22.4 | S68: 29.1 | T68: 26.6 | U68: 26 | V68: 27.3 | W68: 27.4 | X68: 0 | Y68: 60.1 | Z68: 60.9 | AA68: 30 | AB68: 54.9 | AC68: 55.2 | AD68: 59.6 | AE68: 40 | AF68: =3776*V_5/60*(T_10-T_9)/A_Kollektorfeld -> 0 | AG68: =4128*V_7/60*(T_14-T_13) -> 0 | AH68: =4128/60*V_9*(T_19-T_11) -> 825.6 | AI68: =Q_SZ+Q_TW_solar-Qpkt_KF_spez -> 825.6 | AJ68: =4128/60*V_6*(T_18-T_17) -> 1651.2 | AK68: =4128/60*V_9*(T_20-T_19) -> 12108.8 | AL68: =3776*V_1/60*(T_2-T_9)/A_LBHTAR -> 0 | AM68: =3776*V_2/60*(T_4-T_9)/A_LBHT -> 0 | AN68: =3776*V_3/60*(T_6-T_9)/A_VFK_990 -> 0 | AO68: =3776*V_4/60*(T_8-T_9)/A_VTK_1140 -> 0
A69: 2015-12-03 | B69: 05:57:00 | C69: =Datum+Uhrzeit -> 2015-12-03T05:57:00 | D69: -0.0461 | E69: 15.316 | F69: 29.2 | G69: 29.2 | H69: 0 | I69: 8.5 | J69: 8.5 | K69: 8.2 | L69: 8.3 | M69: 0 | N69: 0 | O69: 0 | P69: 0 | Q69: 18.2 | R69: 22.4 | S69: 29.1 | T69: 26.7 | U69: 26 | V69: 27.3 | W69: 27.4 | X69: 0 | Y69: 60 | Z69: 60.8 | AA69: 30 | AB69: 54.9 | AC69: 55.2 | AD69: 59.5 | AE69: 50 | AF69: =3776*V_5/60*(T_10-T_9)/A_Kollektorfeld -> 0 | AG69: =4128*V_7/60*(T_14-T_13) -> 0 | AH69: =4128/60*V_9*(T_19-T_11) -> 1032 | AI69: =Q_SZ+Q_TW_solar-Qpkt_KF_spez -> 1032 | AJ69: =4128/60*V_6*(T_18-T_17) -> 1651.2 | AK69: =4128/60*V_9*(T_20-T_19) -> 14792 | AL69: =3776*V_1/60*(T_2-T_9)/A_LBHTAR -> 0 | AM69: =3776*V_2/60*(T_4-T_9)/A_LBHT -> 0 | AN69: =3776*V_3/60*(T_6-T_9)/A_VFK_990 -> 0 | AO69: =3776*V_4/60*(T_8-T_9)/A_VTK_1140 -> 0
A70: 2015-12-03 | B70: 05:58:00 | C70: =Datum+Uhrzeit -> 2015-12-03T05:58:00 | D70: -0.0447 | E70: 18.568 | F70: 29.2 | G70: 29.2 | H70: 0 | I70: 8.5 | J70: 8.5 | K70: 8.2 | L70: 8.3 | M70: 0 | N70: 0 | O70: 0 | P70: 0 | Q70: 18.2 | R70: 22.4 | S70: 29.1 | T70: 26.7 | U70: 26 | V70: 27.3 | W70: 27.4 | X70: 0 | Y70: 60 | Z70: 60.8 | AA70: 30 | AB70: 54.9 | AC70: 55.2 | AD70: 59.5 | AE70: 50 | AF70: =3776*V_5/60*(T_10-T_9)/A_Kollektorfeld -> 0 | AG70: =4128*V_7/60*(T_14-T_13) -> 0 | AH70: =4128/60*V_9*(T_19-T_11) -> 1032 | AI70: =Q_SZ+Q_TW_solar-Qpkt_KF_spez -> 1032 | AJ70: =4128/60*V_6*(T_18-T_17) -> 1651.2 | AK70: =4128/60*V_9*(T_20-T_19) -> 14792 | AL70: =3776*V_1/60*(T_2-T_9)/A_LBHTAR -> 0 | AM70: =3776*V_2/60*(T_4-T_9)/A_LBHT -> 0 | AN70: =3776*V_3/60*(T_6-T_9)/A_VFK_990 -> 0 | AO70: =3776*V_4/60*(T_8-T_9)/A_VTK_1140 -> 0
A71: 2015-12-03 | B71: 05:59:00 | C71: =Datum+Uhrzeit -> 2015-12-03T05:59:00 | D71: -0.0499 | E71: 17.272 | F71: 29.2 | G71: 29.2 | H71: 0 | I71: 8.5 | J71: 8.5 | K71: 8.2 | L71: 8.3 | M71: 0 | N71: 0 | O71: 0 | P71: 0 | Q71: 18.2 | R71: 22.4 | S71: 29.1 | T71: 26.7 | U71: 26.1 | V71: 27.3 | W71: 27.4 | X71: 0 | Y71: 60 | Z71: 60.8 | AA71: 30 | AB71: 54.9 | AC71: 55.2 | AD71: 59.5 | AE71: 40 | AF71: =3776*V_5/60*(T_10-T_9)/A_Kollektorfeld -> 0 | AG71: =4128*V_7/60*(T_14-T_13) -> 0 | AH71: =4128/60*V_9*(T_19-T_11) -> 825.6 | AI71: =Q_SZ+Q_TW_solar-Qpkt_KF_spez -> 825.6 | AJ71: =4128/60*V_6*(T_18-T_17) -> 1651.2 | AK71: =4128/60*V_9*(T_20-T_19) -> 11833.6 | AL71: =3776*V_1/60*(T_2-T_9)/A_LBHTAR -> 0 | AM71: =3776*V_2/60*(T_4-T_9)/A_LBHT -> 0 | AN71: =3776*V_3/60*(T_6-T_9)/A_VFK_990 -> 0 | AO71: =3776*V_4/60*(T_8-T_9)/A_VTK_1140 -> 0
A72: 2015-12-03 | B72: 06:00:00 | C72: =Datum+Uhrzeit -> 2015-12-03T06:00:00 | D72: -0.0446 | E72: 17.746 | F72: 29.2 | G72: 29.2 | H72: 0 | I72: 8.5 | J72: 8.5 | K72: 8.2 | L72: 8.3 | M72: 0 | N72: 0 | O72: 0 | P72: 0 | Q72: 18.2 | R72: 22.4 | S72: 29.1 | T72: 26.7 | U72: 26.1 | V72: 27.3 | W72: 27.5 | X72: 0 | Y72: 60 | Z72: 60.9 | AA72: 30 | AB72: 54.9 | AC72: 55.2 | AD72: 59.5 | AE72: 50 | AF72: =3776*V_5/60*(T_10-T_9)/A_Kollektorfeld -> 0 | AG72: =4128*V_7/60*(T_14-T_13) -> 0 | AH72: =4128/60*V_9*(T_19-T_11) -> 1032 | AI72: =Q_SZ+Q_TW_solar-Qpkt_KF_spez -> 1032 | AJ72: =4128/60*V_6*(T_18-T_17) -> 1857.6 | AK72: =4128/60*V_9*(T_20-T_19) -> 14792 | AL72: =3776*V_1/60*(T_2-T_9)/A_LBHTAR -> 0 | AM72: =3776*V_2/60*(T_4-T_9)/A_LBHT -> 0 | AN72: =3776*V_3/60*(T_6-T_9)/A_VFK_990 -> 0 | AO72: =3776*V_4/60*(T_8-T_9)/A_VTK_1140 -> 0
A73: 2015-12-03 | B73: 06:01:00 | C73: =Datum+Uhrzeit -> 2015-12-03T06:01:00 | D73: -0.0447 | E73: 18.435 | F73: 29.3 | G73: 29.2 | H73: 0 | I73: 8.5 | J73: 8.5 | K73: 8.2 | L73: 8.3 | M73: 0 | N73: 0 | O73: 0 | P73: 0 | Q73: 18.2 | R73: 22.4 | S73: 29.1 | T73: 26.7 | U73: 26.1 | V73: 27.3 | W73: 27.5 | X73: 0 | Y73: 60 | Z73: 60.8 | AA73: 30 | AB73: 54.9 | AC73: 55.2 | AD73: 59.4 | AE73: 50 | AF73: =3776*V_5/60*(T_10-T_9)/A_Kollektorfeld -> 0 | AG73: =4128*V_7/60*(T_14-T_13) -> 0 | AH73: =4128/60*V_9*(T_19-T_11) -> 1032 | AI73: =Q_SZ+Q_TW_solar-Qpkt_KF_spez -> 1032 | AJ73: =4128/60*V_6*(T_18-T_17) -> 1651.2 | AK73: =4128/60*V_9*(T_20-T_19) -> 14448 | AL73: =3776*V_1/60*(T_2-T_9)/A_LBHTAR -> 0 | AM73: =3776*V_2/60*(T_4-T_9)/A_LBHT -> 0 | AN73: =3776*V_3/60*(T_6-T_9)/A_VFK_990 -> 0 | AO73: =3776*V_4/60*(T_8-T_9)/A_VTK_1140 -> 0
A74: 2015-12-03 | B74: 06:02:00 | C74: =Datum+Uhrzeit -> 2015-12-03T06:02:00 | D74: -0.042 | E74: 17.417 | F74: 29.3 | G74: 29.2 | H74: 0 | I74: 8.5 | J74: 8.5 | K74: 8.2 | L74: 8.3 | M74: 0 | N74: 0 | O74: 0 | P74: 0 | Q74: 18.2 | R74: 22.4 | S74: 29.1 | T74: 26.7 | U74: 26.1 | V74: 27.3 | W74: 27.5 | X74: 0 | Y74: 60 | Z74: 60.8 | AA74: 30 | AB74: 54.9 | AC74: 55.2 | AD74: 59.5 | AE74: 40 | AF74: =3776*V_5/60*(T_10-T_9)/A_Kollektorfeld -> 0 | AG74: =4128*V_7/60*(T_14-T_13) -> 0 | AH74: =4128/60*V_9*(T_19-T_11) -> 825.6 | AI74: =Q_SZ+Q_TW_solar-Qpkt_KF_spez -> 825.6 | AJ74: =4128/60*V_6*(T_18-T_17) -> 1651.2 | AK74: =4128/60*V_9*(T_20-T_19) -> 11833.6 | AL74: =3776*V_1/60*(T_2-T_9)/A_LBHTAR -> 0 | AM74: =3776*V_2/60*(T_4-T_9)/A_LBHT -> 0 | AN74: =3776*V_3/60*(T_6-T_9)/A_VFK_990 -> 0 | AO74: =3776*V_4/60*(T_8-T_9)/A_VTK_1140 -> 0
A75: 2015-12-03 | B75: 06:03:00 | C75: =Datum+Uhrzeit -> 2015-12-03T06:03:00 | D75: -0.0382 | E75: 17.889 | F75: 29.3 | G75: 29.2 | H75: 0 | I75: 8.5 | J75: 8.5 | K75: 8.2 | L75: 8.3 | M75: 0 | N75: 0 | O75: 0 | P75: 0 | Q75: 18.2 | R75: 22.4 | S75: 29.1 | T75: 26.7 | U75: 26.1 | V75: 27.3 | W75: 27.5 | X75: 0 | Y75: 60 | Z75: 60.8 | AA75: 30 | AB75: 54.9 | AC75: 55.2 | AD75: 59.5 | AE75: 50 | AF75: =3776*V_5/60*(T_10-T_9)/A_Kollektorfeld -> 0 | AG75: =4128*V_7/60*(T_14-T_13) -> 0 | AH75: =4128/60*V_9*(T_19-T_11) -> 1032 | AI75: =Q_SZ+Q_TW_solar-Qpkt_KF_spez -> 1032 | AJ75: =4128/60*V_6*(T_18-T_17) -> 1651.2 | AK75: =4128/60*V_9*(T_20-T_19) -> 14792 | AL75: =3776*V_1/60*(T_2-T_9)/A_LBHTAR -> 0 | AM75: =3776*V_2/60*(T_4-T_9)/A_LBHT -> 0 | AN75: =3776*V_3/60*(T_6-T_9)/A_VFK_990 -> 0 | AO75: =3776*V_4/60*(T_8-T_9)/A_VTK_1140 -> 0
A76: 2015-12-03 | B76: 06:04:00 | C76: =Datum+Uhrzeit -> 2015-12-03T06:04:00 | D76: -0.0459 | E76: 16.552 | F76: 29.3 | G76: 29.2 | H76: 0 | I76: 8.5 | J76: 8.6 | K76: 8.2 | L76: 8.3 | M76: 0 | N76: 0 | O76: 0 | P76: 0 | Q76: 18.2 | R76: 22.4 | S76: 29.1 | T76: 26.7 | U76: 26.1 | V76: 27.3 | W76: 27.5 | X76: 0 | Y76: 60 | Z76: 60.8 | AA76: 20 | AB76: 54.9 | AC76: 55.2 | AD76: 59.5 | AE76: 50 | AF76: =3776*V_5/60*(T_10-T_9)/A_Kollektorfeld -> 0 | AG76: =4128*V_7/60*(T_14-T_13) -> 0 | AH76: =4128/60*V_9*(T_19-T_11) -> 1032 | AI76: =Q_SZ+Q_TW_solar-Qpkt_KF_spez -> 1032 | AJ76: =4128/60*V_6*(T_18-T_17) -> 1100.8 | AK76: =4128/60*V_9*(T_20-T_19) -> 14792 | AL76: =3776*V_1/60*(T_2-T_9)/A_LBHTAR -> 0 | AM76: =3776*V_2/60*(T_4-T_9)/A_LBHT -> 0 | AN76: =3776*V_3/60*(T_6-T_9)/A_VFK_990 -> 0 | AO76: =3776*V_4/60*(T_8-T_9)/A_VTK_1140 -> 0
A77: 2015-12-03 | B77: 06:05:00 | C77: =Datum+Uhrzeit -> 2015-12-03T06:05:00 | D77: -0.0434 | E77: 15.235 | F77: 29.3 | G77: 29.2 | H77: 0 | I77: 8.5 | J77: 8.6 | K77: 8.2 | L77: 8.3 | M77: 0 | N77: 0 | O77: 0 | P77: 0 | Q77: 18.2 | R77: 22.4 | S77: 29.1 | T77: 26.7 | U77: 26.1 | V77: 27.3 | W77: 27.5 | X77: 0 | Y77: 60 | Z77: 60.8 | AA77: 30 | AB77: 54.9 | AC77: 55.2 | AD77: 59.4 | AE77: 40 | AF77: =3776*V_5/60*(T_10-T_9)/A_Kollektorfeld -> 0 | AG77: =4128*V_7/60*(T_14-T_13) -> 0 | AH77: =4128/60*V_9*(T_19-T_11) -> 825.6 | AI77: =Q_SZ+Q_TW_solar-Qpkt_KF_spez -> 825.6 | AJ77: =4128/60*V_6*(T_18-T_17) -> 1651.2 | AK77: =4128/60*V_9*(T_20-T_19) -> 11558.4 | AL77: =3776*V_1/60*(T_2-T_9)/A_LBHTAR -> 0 | AM77: =3776*V_2/60*(T_4-T_9)/A_LBHT -> 0 | AN77: =3776*V_3/60*(T_6-T_9)/A_VFK_990 -> 0 | AO77: =3776*V_4/60*(T_8-T_9)/A_VTK_1140 -> 0
A78: 2015-12-03 | B78: 06:06:00 | C78: =Datum+Uhrzeit -> 2015-12-03T06:06:00 | D78: -0.0395 | E78: 18.815 | F78: 29.3 | G78: 29.2 | H78: 0 | I78: 8.5 | J78: 8.6 | K78: 8.2 | L78: 8.3 | M78: 0 | N78: 0 | O78: 0 | P78: 0 | Q78: 18.2 | R78: 22.4 | S78: 29.1 | T78: 26.7 | U78: 26.1 | V78: 27.3 | W78: 27.5 | X78: 0 | Y78: 60 | Z78: 60.7 | AA78: 30 | AB78: 54.9 | AC78: 55.2 | AD78: 59.4 | AE78: 50 | AF78: =3776*V_5/60*(T_10-T_9)/A_Kollektorfeld -> 0 | AG78: =4128*V_7/60*(T_14-T_13) -> 0 | AH78: =4128/60*V_9*(T_19-T_11) -> 1032 | AI78: =Q_SZ+Q_TW_solar-Qpkt_KF_spez -> 1032 | AJ78: =4128/60*V_6*(T_18-T_17) -> 1444.8 | AK78: =4128/60*V_9*(T_20-T_19) -> 14448 | AL78: =3776*V_1/60*(T_2-T_9)/A_LBHTAR -> 0 | AM78: =3776*V_2/60*(T_4-T_9)/A_LBHT -> 0 | AN78: =3776*V_3/60*(T_6-T_9)/A_VFK_990 -> 0 | AO78: =3776*V_4/60*(T_8-T_9)/A_VTK_1140 -> 0
A79: 2015-12-03 | B79: 06:07:00 | C79: =Datum+Uhrzeit -> 2015-12-03T06:07:00 | D79: -0.0409 | E79: 18.785 | F79: 29.3 | G79: 29.3 | H79: 0 | I79: 8.5 | J79: 8.6 | K79: 8.2 | L79: 8.3 | M79: 0 | N79: 0 | O79: 0 | P79: 0 | Q79: 18.2 | R79: 22.4 | S79: 29.1 | T79: 26.7 | U79: 26.1 | V79: 27.3 | W79: 27.5 | X79: 0 | Y79: 60 | Z79: 60.8 | AA79: 30 | AB79: 54.9 | AC79: 55.2 | AD79: 59.5 | AE79: 50 | AF79: =3776*V_5/60*(T_10-T_9)/A_Kollektorfeld -> 0 | AG79: =4128*V_7/60*(T_14-T_13) -> 0 | AH79: =4128/60*V_9*(T_19-T_11) -> 1032 | AI79: =Q_SZ+Q_TW_solar-Qpkt_KF_spez -> 1032 | AJ79: =4128/60*V_6*(T_18-T_17) -> 1651.2 | AK79: =4128/60*V_9*(T_20-T_19) -> 14792 | AL79: =3776*V_1/60*(T_2-T_9)/A_LBHTAR -> 0 | AM79: =3776*V_2/60*(T_4-T_9)/A_LBHT -> 0 | AN79: =3776*V_3/60*(T_6-T_9)/A_VFK_990 -> 0 | AO79: =3776*V_4/60*(T_8-T_9)/A_VTK_1140 -> 0
A80: 2015-12-03 | B80: 06:08:00 | C80: =Datum+Uhrzeit -> 2015-12-03T06:08:00 | D80: -0.0422 | E80: 18.609 | F80: 29.3 | G80: 29.3 | H80: 0 | I80: 8.5 | J80: 8.6 | K80: 8.3 | L80: 8.3 | M80: 0 | N80: 0 | O80: 0 | P80: 0 | Q80: 18.2 | R80: 22.4 | S80: 29.1 | T80: 26.7 | U80: 26.1 | V80: 27.3 | W80: 27.5 | X80: 0 | Y80: 60 | Z80: 60.8 | AA80: 30 | AB80: 54.9 | AC80: 55.2 | AD80: 59.5 | AE80: 40 | AF80: =3776*V_5/60*(T_10-T_9)/A_Kollektorfeld -> 0 | AG80: =4128*V_7/60*(T_14-T_13) -> 0 | AH80: =4128/60*V_9*(T_19-T_11) -> 825.6 | AI80: =Q_SZ+Q_TW_solar-Qpkt_KF_spez -> 825.6 | AJ80: =4128/60*V_6*(T_18-T_17) -> 1651.2 | AK80: =4128/60*V_9*(T_20-T_19) -> 11833.6 | AL80: =3776*V_1/60*(T_2-T_9)/A_LBHTAR -> 0 | AM80: =3776*V_2/60*(T_4-T_9)/A_LBHT -> 0 | AN80: =3776*V_3/60*(T_6-T_9)/A_VFK_990 -> 0 | AO80: =3776*V_4/60*(T_8-T_9)/A_VTK_1140 -> 0
A81: 2015-12-03 | B81: 06:09:00 | C81: =Datum+Uhrzeit -> 2015-12-03T06:09:00 | D81: -0.0435 | E81: 18.044 | F81: 29.3 | G81: 29.3 | H81: 0 | I81: 8.5 | J81: 8.6 | K81: 8.3 | L81: 8.3 | M81: 0 | N81: 0 | O81: 0 | P81: 0 | Q81: 18.2 | R81: 22.4 | S81: 29.1 | T81: 26.7 | U81: 26.1 | V81: 27.3 | W81: 27.5 | X81: 0 | Y81: 60 | Z81: 60.8 | AA81: 30 | AB81: 54.9 | AC81: 55.1 | AD81: 59.5 | AE81: 50 | AF81: =3776*V_5/60*(T_10-T_9)/A_Kollektorfeld -> 0 | AG81: =4128*V_7/60*(T_14-T_13) -> 0 | AH81: =4128/60*V_9*(T_19-T_11) -> 688 | AI81: =Q_SZ+Q_TW_solar-Qpkt_KF_spez -> 688 | AJ81: =4128/60*V_6*(T_18-T_17) -> 1651.2 | AK81: =4128/60*V_9*(T_20-T_19) -> 15136 | AL81: =3776*V_1/60*(T_2-T_9)/A_LBHTAR -> 0 | AM81: =3776*V_2/60*(T_4-T_9)/A_LBHT -> 0 | AN81: =3776*V_3/60*(T_6-T_9)/A_VFK_990 -> 0 | AO81: =3776*V_4/60*(T_8-T_9)/A_VTK_1140 -> 0
A82: 2015-12-03 | B82: 06:10:00 | C82: =Datum+Uhrzeit -> 2015-12-03T06:10:00 | D82: -0.0434 | E82: 18.373 | F82: 29.3 | G82: 29.3 | H82: 0 | I82: 8.6 | J82: 8.6 | K82: 8.3 | L82: 8.3 | M82: 0 | N82: 0 | O82: 0 | P82: 0 | Q82: 18.2 | R82: 22.4 | S82: 29.1 | T82: 26.7 | U82: 26.1 | V82: 27.3 | W82: 27.5 | X82: 0 | Y82: 60 | Z82: 60.9 | AA82: 30 | AB82: 54.9 | AC82: 55.1 | AD82: 59.6 | AE82: 50 | AF82: =3776*V_5/60*(T_10-T_9)/A_Kollektorfeld -> 0 | AG82: =4128*V_7/60*(T_14-T_13) -> 0 | AH82: =4128/60*V_9*(T_19-T_11) -> 688 | AI82: =Q_SZ+Q_TW_solar-Qpkt_KF_spez -> 688 | AJ82: =4128/60*V_6*(T_18-T_17) -> 1857.6 | AK82: =4128/60*V_9*(T_20-T_19) -> 15480 | AL82: =3776*V_1/60*(T_2-T_9)/A_LBHTAR -> 0 | AM82: =3776*V_2/60*(T_4-T_9)/A_LBHT -> 0 | AN82: =3776*V_3/60*(T_6-T_9)/A_VFK_990 -> 0 | AO82: =3776*V_4/60*(T_8-T_9)/A_VTK_1140 -> 0
A83: 2015-12-03 | B83: 06:11:00 | C83: =Datum+Uhrzeit -> 2015-12-03T06:11:00 | D83: -0.0434 | E83: 18.281 | F83: 29.3 | G83: 29.3 | H83: 0 | I83: 8.6 | J83: 8.6 | K83: 8.3 | L83: 8.3 | M83: 0 | N83: 0 | O83: 0 | P83: 0 | Q83: 18.2 | R83: 22.4 | S83: 29.1 | T83: 26.7 | U83: 26.1 | V83: 27.3 | W83: 27.5 | X83: 0 | Y83: 60 | Z83: 60.9 | AA83: 30 | AB83: 54.9 | AC83: 55.1 | AD83: 59.6 | AE83: 40 | AF83: =3776*V_5/60*(T_10-T_9)/A_Kollektorfeld -> 0 | AG83: =4128*V_7/60*(T_14-T_13) -> 0 | AH83: =4128/60*V_9*(T_19-T_11) -> 550.4 | AI83: =Q_SZ+Q_TW_solar-Qpkt_KF_spez -> 550.4 | AJ83: =4128/60*V_6*(T_18-T_17) -> 1857.6 | AK83: =4128/60*V_9*(T_20-T_19) -> 12384 | AL83: =3776*V_1/60*(T_2-T_9)/A_LBHTAR -> 0 | AM83: =3776*V_2/60*(T_4-T_9)/A_LBHT -> 0 | AN83: =3776*V_3/60*(T_6-T_9)/A_VFK_990 -> 0 | AO83: =3776*V_4/60*(T_8-T_9)/A_VTK_1140 -> 0
A84: 2015-12-03 | B84: 06:12:00 | C84: =Datum+Uhrzeit -> 2015-12-03T06:12:00 | D84: -0.037 | E84: 18.692 | F84: 29.3 | G84: 29.3 | H84: 0 | I84: 8.6 | J84: 8.6 | K84: 8.3 | L84: 8.3 | M84: 0 | N84: 0 | O84: 0 | P84: 0 | Q84: 18.2 | R84: 22.4 | S84: 29.1 | T84: 26.7 | U84: 26.1 | V84: 27.3 | W84: 27.5 | X84: 0 | Y84: 60 | Z84: 60.9 | AA84: 30 | AB84: 54.9 | AC84: 55.1 | AD84: 59.6 | AE84: 50 | AF84: =3776*V_5/60*(T_10-T_9)/A_Kollektorfeld -> 0 | AG84: =4128*V_7/60*(T_14-T_13) -> 0 | AH84: =4128/60*V_9*(T_19-T_11) -> 688 | AI84: =Q_SZ+Q_TW_solar-Qpkt_KF_spez -> 688 | AJ84: =4128/60*V_6*(T_18-T_17) -> 1857.6 | AK84: =4128/60*V_9*(T_20-T_19) -> 15480 | AL84: =3776*V_1/60*(T_2-T_9)/A_LBHTAR -> 0 | AM84: =3776*V_2/60*(T_4-T_9)/A_LBHT -> 0 | AN84: =3776*V_3/60*(T_6-T_9)/A_VFK_990 -> 0 | AO84: =3776*V_4/60*(T_8-T_9)/A_VTK_1140 -> 0
A85: 2015-12-03 | B85: 06:13:00 | C85: =Datum+Uhrzeit -> 2015-12-03T06:13:00 | D85: -0.0473 | E85: 9.9006 | F85: 29.3 | G85: 29.3 | H85: 0 | I85: 8.6 | J85: 8.6 | K85: 8.3 | L85: 8.3 | M85: 0 | N85: 0 | O85: 0 | P85: 0 | Q85: 18.2 | R85: 22.4 | S85: 29.1 | T85: 26.8 | U85: 26.1 | V85: 27.3 | W85: 27.5 | X85: 0 | Y85: 60 | Z85: 60.9 | AA85: 20 | AB85: 54.9 | AC85: 55.1 | AD85: 59.7 | AE85: 50 | AF85: =3776*V_5/60*(T_10-T_9)/A_Kollektorfeld -> 0 | AG85: =4128*V_7/60*(T_14-T_13) -> 0 | AH85: =4128/60*V_9*(T_19-T_11) -> 688 | AI85: =Q_SZ+Q_TW_solar-Qpkt_KF_spez -> 688 | AJ85: =4128/60*V_6*(T_18-T_17) -> 1238.4 | AK85: =4128/60*V_9*(T_20-T_19) -> 15824 | AL85: =3776*V_1/60*(T_2-T_9)/A_LBHTAR -> 0 | AM85: =3776*V_2/60*(T_4-T_9)/A_LBHT -> 0 | AN85: =3776*V_3/60*(T_6-T_9)/A_VFK_990 -> 0 | AO85: =3776*V_4/60*(T_8-T_9)/A_VTK_1140 -> 0
A86: 2015-12-03 | B86: 06:14:00 | C86: =Datum+Uhrzeit -> 2015-12-03T06:14:00 | D86: -0.0447 | E86: 17.879 | F86: 29.3 | G86: 29.3 | H86: 0 | I86: 8.6 | J86: 8.6 | K86: 8.3 | L86: 8.3 | M86: 0 | N86: 0 | O86: 0 | P86: 0 | Q86: 18.2 | R86: 22.4 | S86: 29.1 | T86: 26.8 | U86: 26.1 | V86: 27.3 | W86: 27.5 | X86: 0 | Y86: 60 | Z86: 61 | AA86: 30 | AB86: 54.9 | AC86: 55.1 | AD86: 59.6 | AE86: 40 | AF86: =3776*V_5/60*(T_10-T_9)/A_Kollektorfeld -> 0 | AG86: =4128*V_7/60*(T_14-T_13) -> 0 | AH86: =4128/60*V_9*(T_19-T_11) -> 550.4 | AI86: =Q_SZ+Q_TW_solar-Qpkt_KF_spez -> 550.4 | AJ86: =4128/60*V_6*(T_18-T_17) -> 2064 | AK86: =4128/60*V_9*(T_20-T_19) -> 12384 | AL86: =3776*V_1/60*(T_2-T_9)/A_LBHTAR -> 0 | AM86: =3776*V_2/60*(T_4-T_9)/A_LBHT -> 0 | AN86: =3776*V_3/60*(T_6-T_9)/A_VFK_990 -> 0 | AO86: =3776*V_4/60*(T_8-T_9)/A_VTK_1140 -> 0
A87: 2015-12-03 | B87: 06:15:00 | C87: =Datum+Uhrzeit -> 2015-12-03T06:15:00 | D87: -0.0318 | E87: 17.614 | F87: 29.3 | G87: 29.3 | H87: 0 | I87: 8.6 | J87: 8.6 | K87: 8.3 | L87: 8.3 | M87: 0 | N87: 0 | O87: 0 | P87: 0 | Q87: 18.2 | R87: 22.4 | S87: 29.1 | T87: 26.8 | U87: 26.1 | V87: 27.3 | W87: 27.5 | X87: 0 | Y87: 60 | Z87: 60.9 | AA87: 30 | AB87: 54.9 | AC87: 55.1 | AD87: 59.6 | AE87: 50 | AF87: =3776*V_5/60*(T_10-T_9)/A_Kollektorfeld -> 0 | AG87: =4128*V_7/60*(T_14-T_13) -> 0 | AH87: =4128/60*V_9*(T_19-T_11) -> 688 | AI87: =Q_SZ+Q_TW_solar-Qpkt_KF_spez -> 688 | AJ87: =4128/60*V_6*(T_18-T_17) -> 1857.6 | AK87: =4128/60*V_9*(T_20-T_19) -> 15480 | AL87: =3776*V_1/60*(T_2-T_9)/A_LBHTAR -> 0 | AM87: =3776*V_2/60*(T_4-T_9)/A_LBHT -> 0 | AN87: =3776*V_3/60*(T_6-T_9)/A_VFK_990 -> 0 | AO87: =3776*V_4/60*(T_8-T_9)/A_VTK_1140 -> 0
A88: 2015-12-03 | B88: 06:16:00 | C88: =Datum+Uhrzeit -> 2015-12-03T06:16:00 | D88: -0.0355 | E88: 14.294 | F88: 29.3 | G88: 29.3 | H88: 0 | I88: 8.6 | J88: 8.6 | K88: 8.3 | L88: 8.3 | M88: 0 | N88: 0 | O88: 0 | P88: 0 | Q88: 18.2 | R88: 22.4 | S88: 29.1 | T88: 26.8 | U88: 26.1 | V88: 27.3 | W88: 27.5 | X88: 0 | Y88: 60 | Z88: 60.8 | AA88: 30 | AB88: 54.9 | AC88: 55.1 | AD88: 59.5 | AE88: 50 | AF88: =3776*V_5/60*(T_10-T_9)/A_Kollektorfeld -> 0 | AG88: =4128*V_7/60*(T_14-T_13) -> 0 | AH88: =4128/60*V_9*(T_19-T_11) -> 688 | AI88: =Q_SZ+Q_TW_solar-Qpkt_KF_spez -> 688 | AJ88: =4128/60*V_6*(T_18-T_17) -> 1651.2 | AK88: =4128/60*V_9*(T_20-T_19) -> 15136 | AL88: =3776*V_1/60*(T_2-T_9)/A_LBHTAR -> 0 | AM88: =3776*V_2/60*(T_4-T_9)/A_LBHT -> 0 | AN88: =3776*V_3/60*(T_6-T_9)/A_VFK_990 -> 0 | AO88: =3776*V_4/60*(T_8-T_9)/A_VTK_1140 -> 0
A89: 2015-12-03 | B89: 06:17:00 | C89: =Datum+Uhrzeit -> 2015-12-03T06:17:00 | D89: -0.0292 | E89: 18.715 | F89: 29.3 | G89: 29.3 | H89: 0 | I89: 8.6 | J89: 8.6 | K89: 8.3 | L89: 8.3 | M89: 0 | N89: 0 | O89: 0 | P89: 0 | Q89: 18.2 | R89: 22.4 | S89: 29.1 | T89: 26.8 | U89: 26.1 | V89: 27.3 | W89: 27.5 | X89: 0 | Y89: 60 | Z89: 60.8 | AA89: 30 | AB89: 54.9 | AC89: 55.1 | AD89: 59.5 | AE89: 40 | AF89: =3776*V_5/60*(T_10-T_9)/A_Kollektorfeld -> 0 | AG89: =4128*V_7/60*(T_14-T_13) -> 0 | AH89: =4128/60*V_9*(T_19-T_11) -> 550.4 | AI89: =Q_SZ+Q_TW_solar-Qpkt_KF_spez -> 550.4 | AJ89: =4128/60*V_6*(T_18-T_17) -> 1651.2 | AK89: =4128/60*V_9*(T_20-T_19) -> 12108.8 | AL89: =3776*V_1/60*(T_2-T_9)/A_LBHTAR -> 0 | AM89: =3776*V_2/60*(T_4-T_9)/A_LBHT -> 0 | AN89: =3776*V_3/60*(T_6-T_9)/A_VFK_990 -> 0 | AO89: =3776*V_4/60*(T_8-T_9)/A_VTK_1140 -> 0
A90: 2015-12-03 | B90: 06:18:00 | C90: =Datum+Uhrzeit -> 2015-12-03T06:18:00 | D90: -0.0329 | E90: 18.355 | F90: 29.3 | G90: 29.3 | H90: 0 | I90: 8.6 | J90: 8.6 | K90: 8.3 | L90: 8.3 | M90: 0 | N90: 0 | O90: 0 | P90: 0 | Q90: 18.2 | R90: 22.4 | S90: 29.1 | T90: 26.8 | U90: 26.1 | V90: 27.3 | W90: 27.5 | X90: 2 | Y90: 60 | Z90: 60.8 | AA90: 30 | AB90: 54.9 | AC90: 55.1 | AD90: 59.5 | AE90: 50 | AF90: =3776*V_5/60*(T_10-T_9)/A_Kollektorfeld -> 0 | AG90: =4128*V_7/60*(T_14-T_13) -> -96.32 | AH90: =4128/60*V_9*(T_19-T_11) -> 688 | AI90: =Q_SZ+Q_TW_solar-Qpkt_KF_spez -> 591.68 | AJ90: =4128/60*V_6*(T_18-T_17) -> 1651.2 | AK90: =4128/60*V_9*(T_20-T_19) -> 15136 | AL90: =3776*V_1/60*(T_2-T_9)/A_LBHTAR -> 0 | AM90: =3776*V_2/60*(T_4-T_9)/A_LBHT -> 0 | AN90: =3776*V_3/60*(T_6-T_9)/A_VFK_990 -> 0 | AO90: =3776*V_4/60*(T_8-T_9)/A_VTK_1140 -> 0
A91: 2015-12-03 | B91: 06:19:00 | C91: =Datum+Uhrzeit -> 2015-12-03T06:19:00 | D91: -0.0316 | E91: 19.208 | F91: 29.3 | G91: 29.3 | H91: 0 | I91: 8.6 | J91: 8.6 | K91: 8.3 | L91: 8.3 | M91: 0 | N91: 0 | O91: 0 | P91: 0 | Q91: 18.2 | R91: 22.4 | S91: 29.1 | T91: 26.8 | U91: 26.2 | V91: 27.3 | W91: 27.5 | X91: 0 | Y91: 60 | Z91: 60.9 | AA91: 30 | AB91: 54.9 | AC91: 55.1 | AD91: 59.6 | AE91: 50 | AF91: =3776*V_5/60*(T_10-T_9)/A_Kollektorfeld -> 0 | AG91: =4128*V_7/60*(T_14-T_13) -> 0 | AH91: =4128/60*V_9*(T_19-T_11) -> 688 | AI91: =Q_SZ+Q_TW_solar-Qpkt_KF_spez -> 688 | AJ91: =4128/60*V_6*(T_18-T_17) -> 1857.6 | AK91: =4128/60*V_9*(T_20-T_19) -> 15480 | AL91: =3776*V_1/60*(T_2-T_9)/A_LBHTAR -> 0 | AM91: =3776*V_2/60*(T_4-T_9)/A_LBHT -> 0 | AN91: =3776*V_3/60*(T_6-T_9)/A_VFK_990 -> 0 | AO91: =3776*V_4/60*(T_8-T_9)/A_VTK_1140 -> 0
A92: 2015-12-03 | B92: 06:20:00 | C92: =Datum+Uhrzeit -> 2015-12-03T06:20:00 | D92: -0.0305 | E92: 18.077 | F92: 29.3 | G92: 29.3 | H92: 0 | I92: 8.6 | J92: 8.6 | K92: 8.3 | L92: 8.3 | M92: 0 | N92: 0 | O92: 0 | P92: 0 | Q92: 18.2 | R92: 22.4 | S92: 29.1 | T92: 26.8 | U92: 26.2 | V92: 27.4 | W92: 27.5 | X92: 0 | Y92: 59.9 | Z92: 60.8 | AA92: 30 | AB92: 54.8 | AC92: 55.1 | AD92: 59.4 | AE92: 40 | AF92: =3776*V_5/60*(T_10-T_9)/A_Kollektorfeld -> 0 | AG92: =4128*V_7/60*(T_14-T_13) -> 0 | AH92: =4128/60*V_9*(T_19-T_11) -> 825.6 | AI92: =Q_SZ+Q_TW_solar-Qpkt_KF_spez -> 825.6 | AJ92: =4128/60*V_6*(T_18-T_17) -> 1857.6 | AK92: =4128/60*V_9*(T_20-T_19) -> 11833.6 | AL92: =3776*V_1/60*(T_2-T_9)/A_LBHTAR -> 0 | AM92: =3776*V_2/60*(T_4-T_9)/A_LBHT -> 0 | AN92: =3776*V_3/60*(T_6-T_9)/A_VFK_990 -> 0 | AO92: =3776*V_4/60*(T_8-T_9)/A_VTK_1140 -> 0
A93: 2015-12-03 | B93: 06:21:00 | C93: =Datum+Uhrzeit -> 2015-12-03T06:21:00 | D93: -0.0304 | E93: 18.396 | F93: 29.3 | G93: 29.3 | H93: 0 | I93: 8.6 | J93: 8.6 | K93: 8.3 | L93: 8.3 | M93: 0 | N93: 0 | O93: 0 | P93: 0 | Q93: 18.2 | R93: 22.4 | S93: 29.1 | T93: 26.8 | U93: 26.2 | V93: 27.4 | W93: 27.5 | X93: 0 | Y93: 59.9 | Z93: 60.7 | AA93: 20 | AB93: 54.8 | AC93: 55.1 | AD93: 59.3 | AE93: 50 | AF93: =3776*V_5/60*(T_10-T_9)/A_Kollektorfeld -> 0 | AG93: =4128*V_7/60*(T_14-T_13) -> 0 | AH93: =4128/60*V_9*(T_19-T_11) -> 1032 | AI93: =Q_SZ+Q_TW_solar-Qpkt_KF_spez -> 1032 | AJ93: =4128/60*V_6*(T_18-T_17) -> 1100.8 | AK93: =4128/60*V_9*(T_20-T_19) -> 14448 | AL93: =3776*V_1/60*(T_2-T_9)/A_LBHTAR -> 0 | AM93: =3776*V_2/60*(T_4-T_9)/A_LBHT -> 0 | AN93: =3776*V_3/60*(T_6-T_9)/A_VFK_990 -> 0 | AO93: =3776*V_4/60*(T_8-T_9)/A_VTK_1140 -> 0
A94: 2015-12-03 | B94: 06:22:00 | C94: =Datum+Uhrzeit -> 2015-12-03T06:22:00 | D94: -0.0251 | E94: 18.796 | F94: 29.3 | G94: 29.3 | H94: 0 | I94: 8.6 | J94: 8.6 | K94: 8.3 | L94: 8.3 | M94: 0 | N94: 0 | O94: 0 | P94: 0 | Q94: 18.2 | R94: 22.4 | S94: 29.1 | T94: 26.8 | U94: 26.2 | V94: 27.4 | W94: 27.5 | X94: 0 | Y94: 59.9 | Z94: 60.8 | AA94: 30 | AB94: 54.8 | AC94: 55.1 | AD94: 59.5 | AE94: 50 | AF94: =3776*V_5/60*(T_10-T_9)/A_Kollektorfeld -> 0 | AG94: =4128*V_7/60*(T_14-T_13) -> 0 | AH94: =4128/60*V_9*(T_19-T_11) -> 1032 | AI94: =Q_SZ+Q_TW_solar-Qpkt_KF_spez -> 1032 | AJ94: =4128/60*V_6*(T_18-T_17) -> 1857.6 | AK94: =4128/60*V_9*(T_20-T_19) -> 15136 | AL94: =3776*V_1/60*(T_2-T_9)/A_LBHTAR -> 0 | AM94: =3776*V_2/60*(T_4-T_9)/A_LBHT -> 0 | AN94: =3776*V_3/60*(T_6-T_9)/A_VFK_990 -> 0 | AO94: =3776*V_4/60*(T_8-T_9)/A_VTK_1140 -> 0
A95: 2015-12-03 | B95: 06:23:00 | C95: =Datum+Uhrzeit -> 2015-12-03T06:23:00 | D95: -0.0356 | E95: 17.727 | F95: 29.3 | G95: 29.3 | H95: 0 | I95: 8.6 | J95: 8.6 | K95: 8.3 | L95: 8.3 | M95: 0 | N95: 0 | O95: 0 | P95: 0 | Q95: 18.2 | R95: 22.4 | S95: 29.1 | T95: 26.8 | U95: 26.2 | V95: 27.4 | W95: 27.5 | X95: 0 | Y95: 59.9 | Z95: 60.9 | AA95: 30 | AB95: 54.8 | AC95: 55.1 | AD95: 59.5 | AE95: 40 | AF95: =3776*V_5/60*(T_10-T_9)/A_Kollektorfeld -> 0 | AG95: =4128*V_7/60*(T_14-T_13) -> 0 | AH95: =4128/60*V_9*(T_19-T_11) -> 825.6 | AI95: =Q_SZ+Q_TW_solar-Qpkt_KF_spez -> 825.6 | AJ95: =4128/60*V_6*(T_18-T_17) -> 2064 | AK95: =4128/60*V_9*(T_20-T_19) -> 12108.8 | AL95: =3776*V_1/60*(T_2-T_9)/A_LBHTAR -> 0 | AM95: =3776*V_2/60*(T_4-T_9)/A_LBHT -> 0 | AN95: =3776*V_3/60*(T_6-T_9)/A_VFK_990 -> 0 | AO95: =3776*V_4/60*(T_8-T_9)/A_VTK_1140 -> 0
A96: 2015-12-03 | B96: 06:24:00 | C96: =Datum+Uhrzeit -> 2015-12-03T06:24:00 | D96: -0.0343 | E96: 17.038 | F96: 29.3 | G96: 29.3 | H96: 0 | I96: 8.6 | J96: 8.6 | K96: 8.3 | L96: 8.3 | M96: 0 | N96: 0 | O96: 0 | P96: 0 | Q96: 18.2 | R96: 22.4 | S96: 29.1 | T96: 26.8 | U96: 26.2 | V96: 27.4 | W96: 27.5 | X96: 0 | Y96: 59.9 | Z96: 60.9 | AA96: 30 | AB96: 54.8 | AC96: 55.1 | AD96: 59.5 | AE96: 50 | AF96: =3776*V_5/60*(T_10-T_9)/A_Kollektorfeld -> 0 | AG96: =4128*V_7/60*(T_14-T_13) -> 0 | AH96: =4128/60*V_9*(T_19-T_11) -> 1032 | AI96: =Q_SZ+Q_TW_solar-Qpkt_KF_spez -> 1032 | AJ96: =4128/60*V_6*(T_18-T_17) -> 2064 | AK96: =4128/60*V_9*(T_20-T_19) -> 15136 | AL96: =3776*V_1/60*(T_2-T_9)/A_LBHTAR -> 0 | AM96: =3776*V_2/60*(T_4-T_9)/A_LBHT -> 0 | AN96: =3776*V_3/60*(T_6-T_9)/A_VFK_990 -> 0 | AO96: =3776*V_4/60*(T_8-T_9)/A_VTK_1140 -> 0
A97: 2015-12-03 | B97: 06:25:00 | C97: =Datum+Uhrzeit -> 2015-12-03T06:25:00 | D97: -0.0304 | E97: 17.872 | F97: 29.3 | G97: 29.3 | H97: 0 | I97: 8.6 | J97: 8.6 | K97: 8.3 | L97: 8.3 | M97: 0 | N97: 0 | O97: 0 | P97: 0 | Q97: 18.2 | R97: 22.4 | S97: 29.1 | T97: 26.8 | U97: 26.2 | V97: 27.4 | W97: 27.5 | X97: 0 | Y97: 59.9 | Z97: 60.9 | AA97: 30 | AB97: 54.8 | AC97: 55.1 | AD97: 59.6 | AE97: 50 | AF97: =3776*V_5/60*(T_10-T_9)/A_Kollektorfeld -> 0 | AG97: =4128*V_7/60*(T_14-T_13) -> 0 | AH97: =4128/60*V_9*(T_19-T_11) -> 1032 | AI97: =Q_SZ+Q_TW_solar-Qpkt_KF_spez -> 1032 | AJ97: =4128/60*V_6*(T_18-T_17) -> 2064 | AK97: =4128/60*V_9*(T_20-T_19) -> 15480 | AL97: =3776*V_1/60*(T_2-T_9)/A_LBHTAR -> 0 | AM97: =3776*V_2/60*(T_4-T_9)/A_LBHT -> 0 | AN97: =3776*V_3/60*(T_6-T_9)/A_VFK_990 -> 0 | AO97: =3776*V_4/60*(T_8-T_9)/A_VTK_1140 -> 0
A98: 2015-12-03 | B98: 06:26:00 | C98: =Datum+Uhrzeit -> 2015-12-03T06:26:00 | D98: -0.0343 | E98: 16.729 | F98: 29.3 | G98: 29.3 | H98: 0 | I98: 8.6 | J98: 8.7 | K98: 8.3 | L98: 8.3 | M98: 0 | N98: 0 | O98: 0 | P98: 0 | Q98: 18.2 | R98: 22.4 | S98: 29.1 | T98: 26.8 | U98: 26.2 | V98: 27.4 | W98: 27.5 | X98: 0 | Y98: 59.9 | Z98: 60.9 | AA98: 30 | AB98: 54.8 | AC98: 55.1 | AD98: 59.5 | AE98: 50 | AF98: =3776*V_5/60*(T_10-T_9)/A_Kollektorfeld -> 0 | AG98: =4128*V_7/60*(T_14-T_13) -> 0 | AH98: =4128/60*V_9*(T_19-T_11) -> 1032 | AI98: =Q_SZ+Q_TW_solar-Qpkt_KF_spez -> 1032 | AJ98: =4128/60*V_6*(T_18-T_17) -> 2064 | AK98: =4128/60*V_9*(T_20-T_19) -> 15136 | AL98: =3776*V_1/60*(T_2-T_9)/A_LBHTAR -> 0 | AM98: =3776*V_2/60*(T_4-T_9)/A_LBHT -> 0 | AN98: =3776*V_3/60*(T_6-T_9)/A_VFK_990 -> 0 | AO98: =3776*V_4/60*(T_8-T_9)/A_VTK_1140 -> 0
A99: 2015-12-03 | B99: 06:27:00 | C99: =Datum+Uhrzeit -> 2015-12-03T06:27:00 | D99: -0.0342 | E99: 15.67 | F99: 29.3 | G99: 29.3 | H99: 0 | I99: 8.6 | J99: 8.7 | K99: 8.3 | L99: 8.3 | M99: 0 | N99: 0 | O99: 0 | P99: 0 | Q99: 18.2 | R99: 22.4 | S99: 29.1 | T99: 26.8 | U99: 26.2 | V99: 27.4 | W99: 27.5 | X99: 0 | Y99: 59.9 | Z99: 60.9 | AA99: 30 | AB99: 54.8 | AC99: 55.1 | AD99: 59.6 | AE99: 40 | AF99: =3776*V_5/60*(T_10-T_9)/A_Kollektorfeld -> 0 | AG99: =4128*V_7/60*(T_14-T_13) -> 0 | AH99: =4128/60*V_9*(T_19-T_11) -> 825.6 | AI99: =Q_SZ+Q_TW_solar-Qpkt_KF_spez -> 825.6 | AJ99: =4128/60*V_6*(T_18-T_17) -> 2064 | AK99: =4128/60*V_9*(T_20-T_19) -> 12384 | AL99: =3776*V_1/60*(T_2-T_9)/A_LBHTAR -> 0 | AM99: =3776*V_2/60*(T_4-T_9)/A_LBHT -> 0 | AN99: =3776*V_3/60*(T_6-T_9)/A_VFK_990 -> 0 | AO99: =3776*V_4/60*(T_8-T_9)/A_VTK_1140 -> 0
A100: 2015-12-03 | B100: 06:28:00 | C100: =Datum+Uhrzeit -> 2015-12-03T06:28:00 | D100: -0.0329 | E100: 18.602 | F100: 29.3 | G100: 29.3 | H100: 0 | I100: 8.6 | J100: 8.7 | K100: 8.3 | L100: 8.3 | M100: 0 | N100: 0 | O100: 0 | P100: 0 | Q100: 18.2 | R100: 22.4 | S100: 29.1 | T100: 26.8 | U100: 26.2 | V100: 27.4 | W100: 27.6 | X100: 0 | Y100: 59.9 | Z100: 61 | AA100: 30 | AB100: 54.8 | AC100: 55.1 | AD100: 59.7 | AE100: 50 | AF100: =3776*V_5/60*(T_10-T_9)/A_Kollektorfeld -> 0 | AG100: =4128*V_7/60*(T_14-T_13) -> 0 | AH100: =4128/60*V_9*(T_19-T_11) -> 1032 | AI100: =Q_SZ+Q_TW_solar-Qpkt_KF_spez -> 1032 | AJ100: =4128/60*V_6*(T_18-T_17) -> 2270.4 | AK100: =4128/60*V_9*(T_20-T_19) -> 15824 | AL100: =3776*V_1/60*(T_2-T_9)/A_LBHTAR -> 0 | AM100: =3776*V_2/60*(T_4-T_9)/A_LBHT -> 0 | AN100: =3776*V_3/60*(T_6-T_9)/A_VFK_990 -> 0 | AO100: =3776*V_4/60*(T_8-T_9)/A_VTK_1140 -> 0
A101: 2015-12-03 | B101: 06:29:00 | C101: =Datum+Uhrzeit -> 2015-12-03T06:29:00 | D101: -0.0331 | E101: 16.833 | F101: 29.3 | G101: 29.3 | H101: 0 | I101: 8.6 | J101: 8.7 | K101: 8.3 | L101: 8.3 | M101: 0 | N101: 0 | O101: 0 | P101: 0 | Q101: 18.2 | R101: 22.4 | S101: 29.1 | T101: 26.8 | U101: 26.2 | V101: 27.4 | W101: 27.6 | X101: 0 | Y101: 59.9 | Z101: 61 | AA101: 30 | AB101: 54.8 | AC101: 55.1 | AD101: 59.7 | AE101: 50 | AF101: =3776*V_5/60*(T_10-T_9)/A_Kollektorfeld -> 0 | AG101: =4128*V_7/60*(T_14-T_13) -> 0 | AH101: =4128/60*V_9*(T_19-T_11) -> 1032 | AI101: =Q_SZ+Q_TW_solar-Qpkt_KF_spez -> 1032 | AJ101: =4128/60*V_6*(T_18-T_17) -> 2270.4 | AK101: =4128/60*V_9*(T_20-T_19) -> 15824 | AL101: =3776*V_1/60*(T_2-T_9)/A_LBHTAR -> 0 | AM101: =3776*V_2/60*(T_4-T_9)/A_LBHT -> 0 | AN101: =3776*V_3/60*(T_6-T_9)/A_VFK_990 -> 0 | AO101: =3776*V_4/60*(T_8-T_9)/A_VTK_1140 -> 0
A102: 2015-12-03 | B102: 06:30:00 | C102: =Datum+Uhrzeit -> 2015-12-03T06:30:00 | D102: -0.029 | E102: 17.881 | F102: 29.3 | G102: 29.3 | H102: 0 | I102: 8.6 | J102: 8.7 | K102: 8.3 | L102: 8.3 | M102: 0 | N102: 0 | O102: 0 | P102: 0 | Q102: 18.2 | R102: 22.4 | S102: 29.1 | T102: 26.8 | U102: 26.2 | V102: 27.4 | W102: 27.6 | X102: 0 | Y102: 59.9 | Z102: 61 | AA102: 20 | AB102: 54.8 | AC102: 55.1 | AD102: 59.6 | AE102: 40 | AF102: =3776*V_5/60*(T_10-T_9)/A_Kollektorfeld -> 0 | AG102: =4128*V_7/60*(T_14-T_13) -> 0 | AH102: =4128/60*V_9*(T_19-T_11) -> 825.6 | AI102: =Q_SZ+Q_TW_solar-Qpkt_KF_spez -> 825.6 | AJ102: =4128/60*V_6*(T_18-T_17) -> 1513.6 | AK102: =4128/60*V_9*(T_20-T_19) -> 12384 | AL102: =3776*V_1/60*(T_2-T_9)/A_LBHTAR -> 0 | AM102: =3776*V_2/60*(T_4-T_9)/A_LBHT -> 0 | AN102: =3776*V_3/60*(T_6-T_9)/A_VFK_990 -> 0 | AO102: =3776*V_4/60*(T_8-T_9)/A_VTK_1140 -> 0
A103: 2015-12-03 | B103: 06:31:00 | C103: =Datum+Uhrzeit -> 2015-12-03T06:31:00 | D103: -0.0277 | E103: 18.92 | F103: 29.3 | G103: 29.3 | H103: 0 | I103: 8.6 | J103: 8.7 | K103: 8.3 | L103: 8.3 | M103: 0 | N103: 0 | O103: 0 | P103: 0 | Q103: 18.2 | R103: 22.4 | S103: 29.1 | T103: 26.8 | U103: 26.2 | V103: 27.4 | W103: 27.6 | X103: 0 | Y103: 59.9 | Z103: 61 | AA103: 30 | AB103: 54.8 | AC103: 55.1 | AD103: 59.7 | AE103: 50 | AF103: =3776*V_5/60*(T_10-T_9)/A_Kollektorfeld -> 0 | AG103: =4128*V_7/60*(T_14-T_13) -> 0 | AH103: =4128/60*V_9*(T_19-T_11) -> 1032 | AI103: =Q_SZ+Q_TW_solar-Qpkt_KF_spez -> 1032 | AJ103: =4128/60*V_6*(T_18-T_17) -> 2270.4 | AK103: =4128/60*V_9*(T_20-T_19) -> 15824 | AL103: =3776*V_1/60*(T_2-T_9)/A_LBHTAR -> 0 | AM103: =3776*V_2/60*(T_4-T_9)/A_LBHT -> 0 | AN103: =3776*V_3/60*(T_6-T_9)/A_VFK_990 -> 0 | AO103: =3776*V_4/60*(T_8-T_9)/A_VTK_1140 -> 0
A104: 2015-12-03 | B104: 06:32:00 | C104: =Datum+Uhrzeit -> 2015-12-03T06:32:00 | D104: -0.0303 | E104: 18.458 | F104: 29.3 | G104: 29.3 | H104: 0 | I104: 8.6 | J104: 8.7 | K104: 8.3 | L104: 8.3 | M104: 0 | N104: 0 | O104: 0 | P104: 0 | Q104: 18.2 | R104: 22.4 | S104: 29.1 | T104: 26.8 | U104: 26.2 | V104: 27.4 | W104: 27.6 | X104: 0 | Y104: 59.9 | Z104: 61 | AA104: 30 | AB104: 54.8 | AC104: 55.1 | AD104: 59.7 | AE104: 50 | AF104: =3776*V_5/60*(T_10-T_9)/A_Kollektorfeld -> 0 | AG104: =4128*V_7/60*(T_14-T_13) -> 0 | AH104: =4128/60*V_9*(T_19-T_11) -> 1032 | AI104: =Q_SZ+Q_TW_solar-Qpkt_KF_spez -> 1032 | AJ104: =4128/60*V_6*(T_18-T_17) -> 2270.4 | AK104: =4128/60*V_9*(T_20-T_19) -> 15824 | AL104: =3776*V_1/60*(T_2-T_9)/A_LBHTAR -> 0 | AM104: =3776*V_2/60*(T_4-T_9)/A_LBHT -> 0 | AN104: =3776*V_3/60*(T_6-T_9)/A_VFK_990 -> 0 | AO104: =3776*V_4/60*(T_8-T_9)/A_VTK_1140 -> 0
A105: 2015-12-03 | B105: 06:33:00 | C105: =Datum+Uhrzeit -> 2015-12-03T06:33:00 | D105: -0.033 | E105: 18.488 | F105: 29.3 | G105: 29.3 | H105: 0 | I105: 8.6 | J105: 8.7 | K105: 8.3 | L105: 8.3 | M105: 0 | N105: 0 | O105: 0 | P105: 0 | Q105: 18.2 | R105: 22.4 | S105: 29.1 | T105: 26.8 | U105: 26.2 | V105: 27.4 | W105: 27.6 | X105: 0 | Y105: 59.9 | Z105: 60.9 | AA105: 30 | AB105: 54.8 | AC105: 55.1 | AD105: 59.6 | AE105: 40 | AF105: =3776*V_5/60*(T_10-T_9)/A_Kollektorfeld -> 0 | AG105: =4128*V_7/60*(T_14-T_13) -> 0 | AH105: =4128/60*V_9*(T_19-T_11) -> 825.6 | AI105: =Q_SZ+Q_TW_solar-Qpkt_KF_spez -> 825.6 | AJ105: =4128/60*V_6*(T_18-T_17) -> 2064 | AK105: =4128/60*V_9*(T_20-T_19) -> 12384 | AL105: =3776*V_1/60*(T_2-T_9)/A_LBHTAR -> 0 | AM105: =3776*V_2/60*(T_4-T_9)/A_LBHT -> 0 | AN105: =3776*V_3/60*(T_6-T_9)/A_VFK_990 -> 0 | AO105: =3776*V_4/60*(T_8-T_9)/A_VTK_1140 -> 0
A106: 2015-12-03 | B106: 06:34:00 | C106: =Datum+Uhrzeit -> 2015-12-03T06:34:00 | D106: -0.0304 | E106: 14.001 | F106: 29.3 | G106: 29.3 | H106: 0 | I106: 8.6 | J106: 8.7 | K106: 8.3 | L106: 8.3 | M106: 0 | N106: 0 | O106: 0 | P106: 0 | Q106: 18.2 | R106: 22.4 | S106: 29.1 | T106: 26.9 | U106: 26.3 | V106: 27.4 | W106: 27.6 | X106: 0 | Y106: 59.9 | Z106: 60.9 | AA106: 30 | AB106: 54.8 | AC106: 55 | AD106: 59.6 | AE106: 50 | AF106: =3776*V_5/60*(T_10-T_9)/A_Kollektorfeld -> 0 | AG106: =4128*V_7/60*(T_14-T_13) -> 0 | AH106: =4128/60*V_9*(T_19-T_11) -> 688 | AI106: =Q_SZ+Q_TW_solar-Qpkt_KF_spez -> 688 | AJ106: =4128/60*V_6*(T_18-T_17) -> 2064 | AK106: =4128/60*V_9*(T_20-T_19) -> 15824 | AL106: =3776*V_1/60*(T_2-T_9)/A_LBHTAR -> 0 | AM106: =3776*V_2/60*(T_4-T_9)/A_LBHT -> 0 | AN106: =3776*V_3/60*(T_6-T_9)/A_VFK_990 -> 0 | AO106: =3776*V_4/60*(T_8-T_9)/A_VTK_1140 -> 0
A107: 2015-12-03 | B107: 06:35:00 | C107: =Datum+Uhrzeit -> 2015-12-03T06:35:00 | D107: -0.0343 | E107: 17.13 | F107: 29.3 | G107: 29.3 | H107: 0 | I107: 8.6 | J107: 8.7 | K107: 8.3 | L107: 8.3 | M107: 0 | N107: 0 | O107: 0 | P107: 0 | Q107: 18.2 | R107: 22.4 | S107: 29.1 | T107: 26.9 | U107: 26.3 | V107: 27.4 | W107: 27.6 | X107: 1 | Y107: 59.9 | Z107: 60.9 | AA107: 30 | AB107: 54.8 | AC107: 55.1 | AD107: 59.6 | AE107: 50 | AF107: =3776*V_5/60*(T_10-T_9)/A_Kollektorfeld -> 0 | AG107: =4128*V_7/60*(T_14-T_13) -> -41.28 | AH107: =4128/60*V_9*(T_19-T_11) -> 1032 | AI107: =Q_SZ+Q_TW_solar-Qpkt_KF_spez -> 990.72 | AJ107: =4128/60*V_6*(T_18-T_17) -> 2064 | AK107: =4128/60*V_9*(T_20-T_19) -> 15480 | AL107: =3776*V_1/60*(T_2-T_9)/A_LBHTAR -> 0 | AM107: =3776*V_2/60*(T_4-T_9)/A_LBHT -> 0 | AN107: =3776*V_3/60*(T_6-T_9)/A_VFK_990 -> 0 | AO107: =3776*V_4/60*(T_8-T_9)/A_VTK_1140 -> 0
A108: 2015-12-03 | B108: 06:36:00 | C108: =Datum+Uhrzeit -> 2015-12-03T06:36:00 | D108: -0.0356 | E108: 15.443 | F108: 29.3 | G108: 29.3 | H108: 0 | I108: 8.6 | J108: 8.7 | K108: 8.3 | L108: 8.3 | M108: 0 | N108: 0 | O108: 0 | P108: 0 | Q108: 18.2 | R108: 22.4 | S108: 29.1 | T108: 26.9 | U108: 26.3 | V108: 27.4 | W108: 27.6 | X108: 0 | Y108: 59.9 | Z108: 60.9 | AA108: 30 | AB108: 54.8 | AC108: 55 | AD108: 59.6 | AE108: 40 | AF108: =3776*V_5/60*(T_10-T_9)/A_Kollektorfeld -> 0 | AG108: =4128*V_7/60*(T_14-T_13) -> 0 | AH108: =4128/60*V_9*(T_19-T_11) -> 550.4 | AI108: =Q_SZ+Q_TW_solar-Qpkt_KF_spez -> 550.4 | AJ108: =4128/60*V_6*(T_18-T_17) -> 2064 | AK108: =4128/60*V_9*(T_20-T_19) -> 12659.2 | AL108: =3776*V_1/60*(T_2-T_9)/A_LBHTAR -> 0 | AM108: =3776*V_2/60*(T_4-T_9)/A_LBHT -> 0 | AN108: =3776*V_3/60*(T_6-T_9)/A_VFK_990 -> 0 | AO108: =3776*V_4/60*(T_8-T_9)/A_VTK_1140 -> 0
A109: 2015-12-03 | B109: 06:37:00 | C109: =Datum+Uhrzeit -> 2015-12-03T06:37:00 | D109: -0.0318 | E109: 16.812 | F109: 29.3 | G109: 29.3 | H109: 0 | I109: 8.6 | J109: 8.7 | K109: 8.3 | L109: 8.4 | M109: 0 | N109: 0 | O109: 0 | P109: 0 | Q109: 18.2 | R109: 22.4 | S109: 29.1 | T109: 26.9 | U109: 26.3 | V109: 27.4 | W109: 27.6 | X109: 0 | Y109: 59.9 | Z109: 61 | AA109: 30 | AB109: 54.8 | AC109: 55.1 | AD109: 59.6 | AE109: 50 | AF109: =3776*V_5/60*(T_10-T_9)/A_Kollektorfeld -> 0 | AG109: =4128*V_7/60*(T_14-T_13) -> 0 | AH109: =4128/60*V_9*(T_19-T_11) -> 1032 | AI109: =Q_SZ+Q_TW_solar-Qpkt_KF_spez -> 1032 | AJ109: =4128/60*V_6*(T_18-T_17) -> 2270.4 | AK109: =4128/60*V_9*(T_20-T_19) -> 15480 | AL109: =3776*V_1/60*(T_2-T_9)/A_LBHTAR -> 0 | AM109: =3776*V_2/60*(T_4-T_9)/A_LBHT -> 0 | AN109: =3776*V_3/60*(T_6-T_9)/A_VFK_990 -> 0 | AO109: =3776*V_4/60*(T_8-T_9)/A_VTK_1140 -> 0
A110: 2015-12-03 | B110: 06:38:00 | C110: =Datum+Uhrzeit -> 2015-12-03T06:38:00 | D110: -0.0304 | E110: 16.411 | F110: 29.3 | G110: 29.3 | H110: 0 | I110: 8.6 | J110: 8.7 | K110: 8.3 | L110: 8.4 | M110: 0 | N110: 0 | O110: 0 | P110: 0 | Q110: 18.2 | R110: 22.4 | S110: 29.1 | T110: 26.9 | U110: 26.3 | V110: 27.4 | W110: 27.6 | X110: 0 | Y110: 59.9 | Z110: 60.9 | AA110: 20 | AB110: 54.8 | AC110: 55.1 | AD110: 59.6 | AE110: 50 | AF110: =3776*V_5/60*(T_10-T_9)/A_Kollektorfeld -> 0 | AG110: =4128*V_7/60*(T_14-T_13) -> 0 | AH110: =4128/60*V_9*(T_19-T_11) -> 1032 | AI110: =Q_SZ+Q_TW_solar-Qpkt_KF_spez -> 1032 | AJ110: =4128/60*V_6*(T_18-T_17) -> 1376 | AK110: =4128/60*V_9*(T_20-T_19) -> 15480 | AL110: =3776*V_1/60*(T_2-T_9)/A_LBHTAR -> 0 | AM110: =3776*V_2/60*(T_4-T_9)/A_LBHT -> 0 | AN110: =3776*V_3/60*(T_6-T_9)/A_VFK_990 -> 0 | AO110: =3776*V_4/60*(T_8-T_9)/A_VTK_1140 -> 0
A111: 2015-12-03 | B111: 06:39:00 | C111: =Datum+Uhrzeit -> 2015-12-03T06:39:00 | D111: -0.0265 | E111: 16.534 | F111: 29.3 | G111: 29.3 | H111: 0 | I111: 8.6 | J111: 8.7 | K111: 8.3 | L111: 8.4 | M111: 0 | N111: 0 | O111: 0 | P111: 0 | Q111: 18.2 | R111: 22.4 | S111: 29.1 | T111: 26.9 | U111: 26.3 | V111: 27.4 | W111: 27.6 | X111: 0 | Y111: 60 | Z111: 60.9 | AA111: 30 | AB111: 54.8 | AC111: 55.1 | AD111: 59.6 | AE111: 40 | AF111: =3776*V_5/60*(T_10-T_9)/A_Kollektorfeld -> 0 | AG111: =4128*V_7/60*(T_14-T_13) -> 0 | AH111: =4128/60*V_9*(T_19-T_11) -> 825.6 | AI111: =Q_SZ+Q_TW_solar-Qpkt_KF_spez -> 825.6 | AJ111: =4128/60*V_6*(T_18-T_17) -> 1857.6 | AK111: =4128/60*V_9*(T_20-T_19) -> 12384 | AL111: =3776*V_1/60*(T_2-T_9)/A_LBHTAR -> 0 | AM111: =3776*V_2/60*(T_4-T_9)/A_LBHT -> 0 | AN111: =3776*V_3/60*(T_6-T_9)/A_VFK_990 -> 0 | AO111: =3776*V_4/60*(T_8-T_9)/A_VTK_1140 -> 0
A112: 2015-12-03 | B112: 06:40:00 | C112: =Datum+Uhrzeit -> 2015-12-03T06:40:00 | D112: -0.0382 | E112: 16.74 | F112: 29.3 | G112: 29.3 | H112: 0 | I112: 8.6 | J112: 8.7 | K112: 8.3 | L112: 8.4 | M112: 0 | N112: 0 | O112: 0 | P112: 0 | Q112: 18.2 | R112: 22.4 | S112: 29.1 | T112: 26.9 | U112: 26.3 | V112: 27.4 | W112: 27.6 | X112: 0 | Y112: 60 | Z112: 60.9 | AA112: 30 | AB112: 54.8 | AC112: 55.1 | AD112: 59.6 | AE112: 50 | AF112: =3776*V_5/60*(T_10-T_9)/A_Kollektorfeld -> 0 | AG112: =4128*V_7/60*(T_14-T_13) -> 0 | AH112: =4128/60*V_9*(T_19-T_11) -> 1032 | AI112: =Q_SZ+Q_TW_solar-Qpkt_KF_spez -> 1032 | AJ112: =4128/60*V_6*(T_18-T_17) -> 1857.6 | AK112: =4128/60*V_9*(T_20-T_19) -> 15480 | AL112: =3776*V_1/60*(T_2-T_9)/A_LBHTAR -> 0 | AM112: =3776*V_2/60*(T_4-T_9)/A_LBHT -> 0 | AN112: =3776*V_3/60*(T_6-T_9)/A_VFK_990 -> 0 | AO112: =3776*V_4/60*(T_8-T_9)/A_VTK_1140 -> 0
A113: 2015-12-03 | B113: 06:41:00 | C113: =Datum+Uhrzeit -> 2015-12-03T06:41:00 | D113: -0.033 | E113: 15.732 | F113: 29.4 | G113: 29.4 | H113: 0 | I113: 8.7 | J113: 8.7 | K113: 8.3 | L113: 8.4 | M113: 0 | N113: 0 | O113: 0 | P113: 0 | Q113: 18.2 | R113: 22.4 | S113: 29.1 | T113: 26.9 | U113: 26.3 | V113: 27.4 | W113: 27.6 | X113: 1 | Y113: 60 | Z113: 60.9 | AA113: 30 | AB113: 54.8 | AC113: 55.1 | AD113: 59.5 | AE113: 50 | AF113: =3776*V_5/60*(T_10-T_9)/A_Kollektorfeld -> 0 | AG113: =4128*V_7/60*(T_14-T_13) -> -41.28 | AH113: =4128/60*V_9*(T_19-T_11) -> 1032 | AI113: =Q_SZ+Q_TW_solar-Qpkt_KF_spez -> 990.72 | AJ113: =4128/60*V_6*(T_18-T_17) -> 1857.6 | AK113: =4128/60*V_9*(T_20-T_19) -> 15136 | AL113: =3776*V_1/60*(T_2-T_9)/A_LBHTAR -> 0 | AM113: =3776*V_2/60*(T_4-T_9)/A_LBHT -> 0 | AN113: =3776*V_3/60*(T_6-T_9)/A_VFK_990 -> 0 | AO113: =3776*V_4/60*(T_8-T_9)/A_VTK_1140 -> 0
A114: 2015-12-03 | B114: 06:42:00 | C114: =Datum+Uhrzeit -> 2015-12-03T06:42:00 | D114: -0.0318 | E114: 16.431 | F114: 29.4 | G114: 29.4 | H114: 0 | I114: 8.7 | J114: 8.7 | K114: 8.4 | L114: 8.4 | M114: 0 | N114: 0 | O114: 0 | P114: 0 | Q114: 18.2 | R114: 22.4 | S114: 29.1 | T114: 26.5 | U114: 26.4 | V114: 27.4 | W114: 27.6 | X114: 20 | Y114: 59.1 | Z114: 60.9 | AA114: 30 | AB114: 54.8 | AC114: 55.1 | AD114: 59.6 | AE114: 40 | AF114: =3776*V_5/60*(T_10-T_9)/A_Kollektorfeld -> 0 | AG114: =4128*V_7/60*(T_14-T_13) -> -137.6 | AH114: =4128/60*V_9*(T_19-T_11) -> 825.6 | AI114: =Q_SZ+Q_TW_solar-Qpkt_KF_spez -> 688 | AJ114: =4128/60*V_6*(T_18-T_17) -> 3715.2 | AK114: =4128/60*V_9*(T_20-T_19) -> 12384 | AL114: =3776*V_1/60*(T_2-T_9)/A_LBHTAR -> 0 | AM114: =3776*V_2/60*(T_4-T_9)/A_LBHT -> 0 | AN114: =3776*V_3/60*(T_6-T_9)/A_VFK_990 -> 0 | AO114: =3776*V_4/60*(T_8-T_9)/A_VTK_1140 -> 0
A115: 2015-12-03 | B115: 06:43:00 | C115: =Datum+Uhrzeit -> 2015-12-03T06:43:00 | D115: -0.0265 | E115: 15.607 | F115: 29.4 | G115: 29.4 | H115: 0 | I115: 8.7 | J115: 8.7 | K115: 8.4 | L115: 8.4 | M115: 0 | N115: 0 | O115: 0 | P115: 0 | Q115: 18.2 | R115: 22.4 | S115: 29.1 | T115: 23 | U115: 24.8 | V115: 27.4 | W115: 27.6 | X115: 31 | Y115: 49.1 | Z115: 58.4 | AA115: 30 | AB115: 54.8 | AC115: 55 | AD115: 59.4 | AE115: 50 | AF115: =3776*V_5/60*(T_10-T_9)/A_Kollektorfeld -> 0 | AG115: =4128*V_7/60*(T_14-T_13) -> 3839.04 | AH115: =4128/60*V_9*(T_19-T_11) -> 688 | AI115: =Q_SZ+Q_TW_solar-Qpkt_KF_spez -> 4527.04 | AJ115: =4128/60*V_6*(T_18-T_17) -> 19195.2 | AK115: =4128/60*V_9*(T_20-T_19) -> 15136 | AL115: =3776*V_1/60*(T_2-T_9)/A_LBHTAR -> 0 | AM115: =3776*V_2/60*(T_4-T_9)/A_LBHT -> 0 | AN115: =3776*V_3/60*(T_6-T_9)/A_VFK_990 -> 0 | AO115: =3776*V_4/60*(T_8-T_9)/A_VTK_1140 -> 0
A116: 2015-12-03 | B116: 06:44:00 | C116: =Datum+Uhrzeit -> 2015-12-03T06:44:00 | D116: -0.0418 | E116: 15.918 | F116: 29.4 | G116: 29.4 | H116: 0 | I116: 8.7 | J116: 8.7 | K116: 8.4 | L116: 8.4 | M116: 0 | N116: 0 | O116: 0 | P116: 0 | Q116: 18.2 | R116: 22.4 | S116: 29.1 | T116: 19.3 | U116: 20.7 | V116: 27.4 | W116: 27.6 | X116: 32 | Y116: 42.3 | Z116: 55 | AA116: 30 | AB116: 54.8 | AC116: 55 | AD116: 59.6 | AE116: 40 | AF116: =3776*V_5/60*(T_10-T_9)/A_Kollektorfeld -> 0 | AG116: =4128*V_7/60*(T_14-T_13) -> 3082.24 | AH116: =4128/60*V_9*(T_19-T_11) -> 550.4 | AI116: =Q_SZ+Q_TW_solar-Qpkt_KF_spez -> 3632.64 | AJ116: =4128/60*V_6*(T_18-T_17) -> 26212.8 | AK116: =4128/60*V_9*(T_20-T_19) -> 12659.2 | AL116: =3776*V_1/60*(T_2-T_9)/A_LBHTAR -> 0 | AM116: =3776*V_2/60*(T_4-T_9)/A_LBHT -> 0 | AN116: =3776*V_3/60*(T_6-T_9)/A_VFK_990 -> 0 | AO116: =3776*V_4/60*(T_8-T_9)/A_VTK_1140 -> 0
A117: 2015-12-03 | B117: 06:45:00 | C117: =Datum+Uhrzeit -> 2015-12-03T06:45:00 | D117: -0.0404 | E117: 16.248 | F117: 29.4 | G117: 29.4 | H117: 0 | I117: 8.7 | J117: 8.7 | K117: 8.4 | L117: 8.4 | M117: 0 | N117: 0 | O117: 0 | P117: 0 | Q117: 18.2 | R117: 22.4 | S117: 29.1 | T117: 16.3 | U117: 17.6 | V117: 27.4 | W117: 27.6 | X117: 31 | Y117: 38.5 | Z117: 60 | AA117: 30 | AB117: 54.8 | AC117: 55 | AD117: 68.2 | AE117: 50 | AF117: =3776*V_5/60*(T_10-T_9)/A_Kollektorfeld -> 0 | AG117: =4128*V_7/60*(T_14-T_13) -> 2772.64 | AH117: =4128/60*V_9*(T_19-T_11) -> 688 | AI117: =Q_SZ+Q_TW_solar-Qpkt_KF_spez -> 3460.64 | AJ117: =4128/60*V_6*(T_18-T_17) -> 44376 | AK117: =4128/60*V_9*(T_20-T_19) -> 45408 | AL117: =3776*V_1/60*(T_2-T_9)/A_LBHTAR -> 0 | AM117: =3776*V_2/60*(T_4-T_9)/A_LBHT -> 0 | AN117: =3776*V_3/60*(T_6-T_9)/A_VFK_990 -> 0 | AO117: =3776*V_4/60*(T_8-T_9)/A_VTK_1140 -> 0
A118: 2015-12-03 | B118: 06:46:00 | C118: =Datum+Uhrzeit -> 2015-12-03T06:46:00 | D118: -0.0416 | E118: 16.206 | F118: 29.4 | G118: 29.4 | H118: 0 | I118: 8.7 | J118: 8.7 | K118: 8.4 | L118: 8.4 | M118: 0 | N118: 0 | O118: 0 | P118: 0 | Q118: 18.2 | R118: 22.4 | S118: 29.1 | T118: 14.8 | U118: 15.3 | V118: 27.4 | W118: 27.5 | X118: 31 | Y118: 33.9 | Z118: 69.9 | AA118: 30 | AB118: 54.8 | AC118: 55 | AD118: 76.8 | AE118: 50 | AF118: =3776*V_5/60*(T_10-T_9)/A_Kollektorfeld -> 0 | AG118: =4128*V_7/60*(T_14-T_13) -> 1066.4 | AH118: =4128/60*V_9*(T_19-T_11) -> 688 | AI118: =Q_SZ+Q_TW_solar-Qpkt_KF_spez -> 1754.4 | AJ118: =4128/60*V_6*(T_18-T_17) -> 74304 | AK118: =4128/60*V_9*(T_20-T_19) -> 74992 | AL118: =3776*V_1/60*(T_2-T_9)/A_LBHTAR -> 0 | AM118: =3776*V_2/60*(T_4-T_9)/A_LBHT -> 0 | AN118: =3776*V_3/60*(T_6-T_9)/A_VFK_990 -> 0 | AO118: =3776*V_4/60*(T_8-T_9)/A_VTK_1140 -> 0
A119: 2015-12-03 | B119: 06:47:00 | C119: =Datum+Uhrzeit -> 2015-12-03T06:47:00 | D119: -0.0454 | E119: 14.9 | F119: 29.4 | G119: 29.4 | H119: 0 | I119: 8.7 | J119: 8.7 | K119: 8.4 | L119: 8.4 | M119: 0 | N119: 0 | O119: 0 | P119: 0 | Q119: 18.2 | R119: 22.4 | S119: 29.1 | T119: 14.5 | U119: 14.7 | V119: 27.3 | W119: 27.2 | X119: 35 | Y119: 30.1 | Z119: 59.6 | AA119: 20 | AB119: 54.8 | AC119: 55 | AD119: 64.5 | AE119: 40 | AF119: =3776*V_5/60*(T_10-T_9)/A_Kollektorfeld -> 0 | AG119: =4128*V_7/60*(T_14-T_13) -> 481.6 | AH119: =4128/60*V_9*(T_19-T_11) -> 550.4 | AI119: =Q_SZ+Q_TW_solar-Qpkt_KF_spez -> 1032 | AJ119: =4128/60*V_6*(T_18-T_17) -> 40592 | AK119: =4128/60*V_9*(T_20-T_19) -> 26144 | AL119: =3776*V_1/60*(T_2-T_9)/A_LBHTAR -> 0 | AM119: =3776*V_2/60*(T_4-T_9)/A_LBHT -> 0 | AN119: =3776*V_3/60*(T_6-T_9)/A_VFK_990 -> 0 | AO119: =3776*V_4/60*(T_8-T_9)/A_VTK_1140 -> 0
A120: 2015-12-03 | B120: 06:48:00 | C120: =Datum+Uhrzeit -> 2015-12-03T06:48:00 | D120: -0.0455 | E120: 14.138 | F120: 29.4 | G120: 29.4 | H120: 0 | I120: 8.7 | J120: 8.7 | K120: 8.4 | L120: 8.4 | M120: 0 | N120: 0 | O120: 0 | P120: 0 | Q120: 18.2 | R120: 22.4 | S120: 29.1 | T120: 14.3 | U120: 14.4 | V120: 27.2 | W120: 26.9 | X120: 56 | Y120: 28.7 | Z120: 50.5 | AA120: 30 | AB120: 54.8 | AC120: 55 | AD120: 59.1 | AE120: 50 | AF120: =3776*V_5/60*(T_10-T_9)/A_Kollektorfeld -> 0 | AG120: =4128*V_7/60*(T_14-T_13) -> 385.28 | AH120: =4128/60*V_9*(T_19-T_11) -> 688 | AI120: =Q_SZ+Q_TW_solar-Qpkt_KF_spez -> 1073.28 | AJ120: =4128/60*V_6*(T_18-T_17) -> 44995.2 | AK120: =4128/60*V_9*(T_20-T_19) -> 14104 | AL120: =3776*V_1/60*(T_2-T_9)/A_LBHTAR -> 0 | AM120: =3776*V_2/60*(T_4-T_9)/A_LBHT -> 0 | AN120: =3776*V_3/60*(T_6-T_9)/A_VFK_990 -> 0 | AO120: =3776*V_4/60*(T_8-T_9)/A_VTK_1140 -> 0
A121: 2015-12-03 | B121: 06:49:00 | C121: =Datum+Uhrzeit -> 2015-12-03T06:49:00 | D121: -0.0442 | E121: 16.175 | F121: 29.4 | G121: 29.4 | H121: 0 | I121: 8.7 | J121: 8.7 | K121: 8.4 | L121: 8.4 | M121: 0 | N121: 0 | O121: 0 | P121: 0 | Q121: 18.2 | R121: 22.4 | S121: 29.1 | T121: 14.2 | U121: 14.3 | V121: 26.8 | W121: 26.4 | X121: 61 | Y121: 27.6 | Z121: 57.2 | AA121: 30 | AB121: 54.8 | AC121: 55 | AD121: 68.1 | AE121: 40 | AF121: =3776*V_5/60*(T_10-T_9)/A_Kollektorfeld -> 0 | AG121: =4128*V_7/60*(T_14-T_13) -> 419.68 | AH121: =4128/60*V_9*(T_19-T_11) -> 550.4 | AI121: =Q_SZ+Q_TW_solar-Qpkt_KF_spez -> 970.08 | AJ121: =4128/60*V_6*(T_18-T_17) -> 61094.4 | AK121: =4128/60*V_9*(T_20-T_19) -> 36051.2 | AL121: =3776*V_1/60*(T_2-T_9)/A_LBHTAR -> 0 | AM121: =3776*V_2/60*(T_4-T_9)/A_LBHT -> 0 | AN121: =3776*V_3/60*(T_6-T_9)/A_VFK_990 -> 0 | AO121: =3776*V_4/60*(T_8-T_9)/A_VTK_1140 -> 0
A122: 2015-12-03 | B122: 06:50:00 | C122: =Datum+Uhrzeit -> 2015-12-03T06:50:00 | D122: -0.0507 | E122: 13.108 | F122: 29.4 | G122: 29.4 | H122: 0 | I122: 8.7 | J122: 8.7 | K122: 8.4 | L122: 8.4 | M122: 0 | N122: 0 | O122: 0 | P122: 0 | Q122: 18.2 | R122: 22.4 | S122: 29.1 | T122: 14.2 | U122: 14.2 | V122: 26.5 | W122: 25.9 | X122: 31 | Y122: 26.2 | Z122: 70.4 | AA122: 30 | AB122: 54.8 | AC122: 55 | AD122: 74.9 | AE122: 50 | AF122: =3776*V_5/60*(T_10-T_9)/A_Kollektorfeld -> 0 | AG122: =4128*V_7/60*(T_14-T_13) -> 0 | AH122: =4128/60*V_9*(T_19-T_11) -> 688 | AI122: =Q_SZ+Q_TW_solar-Qpkt_KF_spez -> 688 | AJ122: =4128/60*V_6*(T_18-T_17) -> 91228.8 | AK122: =4128/60*V_9*(T_20-T_19) -> 68456 | AL122: =3776*V_1/60*(T_2-T_9)/A_LBHTAR -> 0 | AM122: =3776*V_2/60*(T_4-T_9)/A_LBHT -> 0 | AN122: =3776*V_3/60*(T_6-T_9)/A_VFK_990 -> 0 | AO122: =3776*V_4/60*(T_8-T_9)/A_VTK_1140 -> 0
A123: 2015-12-03 | B123: 06:51:00 | C123: =Datum+Uhrzeit -> 2015-12-03T06:51:00 | D123: -0.0481 | E123: 14.096 | F123: 29.4 | G123: 29.4 | H123: 0 | I123: 8.7 | J123: 8.7 | K123: 8.4 | L123: 8.4 | M123: 0 | N123: 0 | O123: 0 | P123: 0 | Q123: 18.2 | R123: 22.4 | S123: 29.1 | T123: 14.2 | U123: 14.2 | V123: 26.1 | W123: 25.4 | X123: 40 | Y123: 23.6 | Z123: 57.6 | AA123: 30 | AB123: 54.8 | AC123: 55 | AD123: 62 | AE123: 40 | AF123: =3776*V_5/60*(T_10-T_9)/A_Kollektorfeld -> 0 | AG123: =4128*V_7/60*(T_14-T_13) -> 0 | AH123: =4128/60*V_9*(T_19-T_11) -> 550.4 | AI123: =Q_SZ+Q_TW_solar-Qpkt_KF_spez -> 550.4 | AJ123: =4128/60*V_6*(T_18-T_17) -> 70176 | AK123: =4128/60*V_9*(T_20-T_19) -> 19264 | AL123: =3776*V_1/60*(T_2-T_9)/A_LBHTAR -> 0 | AM123: =3776*V_2/60*(T_4-T_9)/A_LBHT -> 0 | AN123: =3776*V_3/60*(T_6-T_9)/A_VFK_990 -> 0 | AO123: =3776*V_4/60*(T_8-T_9)/A_VTK_1140 -> 0
A124: 2015-12-03 | B124: 06:52:00 | C124: =Datum+Uhrzeit -> 2015-12-03T06:52:00 | D124: -0.0493 | E124: 9.752 | F124: 29.4 | G124: 29.4 | H124: 0 | I124: 8.7 | J124: 8.7 | K124: 8.4 | L124: 8.4 | M124: 0 | N124: 0 | O124: 0 | P124: 0 | Q124: 18.2 | R124: 22.4 | S124: 29.1 | T124: 14.2 | U124: 14.2 | V124: 25.7 | W124: 25 | X124: 32 | Y124: 23.2 | Z124: 46.1 | AA124: 30 | AB124: 54.8 | AC124: 55 | AD124: 57 | AE124: 50 | AF124: =3776*V_5/60*(T_10-T_9)/A_Kollektorfeld -> 0 | AG124: =4128*V_7/60*(T_14-T_13) -> 0 | AH124: =4128/60*V_9*(T_19-T_11) -> 688 | AI124: =Q_SZ+Q_TW_solar-Qpkt_KF_spez -> 688 | AJ124: =4128/60*V_6*(T_18-T_17) -> 47265.6 | AK124: =4128/60*V_9*(T_20-T_19) -> 6880 | AL124: =3776*V_1/60*(T_2-T_9)/A_LBHTAR -> 0 | AM124: =3776*V_2/60*(T_4-T_9)/A_LBHT -> 0 | AN124: =3776*V_3/60*(T_6-T_9)/A_VFK_990 -> 0 | AO124: =3776*V_4/60*(T_8-T_9)/A_VTK_1140 -> 0
A125: 2015-12-03 | B125: 06:53:00 | C125: =Datum+Uhrzeit -> 2015-12-03T06:53:00 | D125: -0.0404 | E125: 15.043 | F125: 29.4 | G125: 29.4 | H125: 0 | I125: 8.7 | J125: 8.7 | K125: 8.4 | L125: 8.3 | M125: 0 | N125: 0 | O125: 0 | P125: 0 | Q125: 18.2 | R125: 22.4 | S125: 29.1 | T125: 14.2 | U125: 14.2 | V125: 25.3 | W125: 24.6 | X125: 31 | Y125: 21.6 | Z125: 54.2 | AA125: 30 | AB125: 54.8 | AC125: 55.1 | AD125: 66.1 | AE125: 40 | AF125: =3776*V_5/60*(T_10-T_9)/A_Kollektorfeld -> 0 | AG125: =4128*V_7/60*(T_14-T_13) -> 0 | AH125: =4128/60*V_9*(T_19-T_11) -> 825.6 | AI125: =Q_SZ+Q_TW_solar-Qpkt_KF_spez -> 825.6 | AJ125: =4128/60*V_6*(T_18-T_17) -> 67286.4 | AK125: =4128/60*V_9*(T_20-T_19) -> 30272 | AL125: =3776*V_1/60*(T_2-T_9)/A_LBHTAR -> 0 | AM125: =3776*V_2/60*(T_4-T_9)/A_LBHT -> 0 | AN125: =3776*V_3/60*(T_6-T_9)/A_VFK_990 -> 0 | AO125: =3776*V_4/60*(T_8-T_9)/A_VTK_1140 -> 0
A126: 2015-12-03 | B126: 06:54:00 | C126: =Datum+Uhrzeit -> 2015-12-03T06:54:00 | D126: -0.0366 | E126: 16.967 | F126: 29.4 | G126: 29.4 | H126: 0 | I126: 8.7 | J126: 8.8 | K126: 8.4 | L126: 8.4 | M126: 0 | N126: 0 | O126: 0 | P126: 0 | Q126: 18.2 | R126: 22.4 | S126: 29.1 | T126: 14.1 | U126: 14.2 | V126: 25 | W126: 24.2 | X126: 22 | Y126: 20.8 | Z126: 68.8 | AA126: 30 | AB126: 54.9 | AC126: 55.1 | AD126: 73.3 | AE126: 50 | AF126: =3776*V_5/60*(T_10-T_9)/A_Kollektorfeld -> 0 | AG126: =4128*V_7/60*(T_14-T_13) -> 151.36 | AH126: =4128/60*V_9*(T_19-T_11) -> 688 | AI126: =Q_SZ+Q_TW_solar-Qpkt_KF_spez -> 839.36 | AJ126: =4128/60*V_6*(T_18-T_17) -> 99072 | AK126: =4128/60*V_9*(T_20-T_19) -> 62608 | AL126: =3776*V_1/60*(T_2-T_9)/A_LBHTAR -> 0 | AM126: =3776*V_2/60*(T_4-T_9)/A_LBHT -> 0 | AN126: =3776*V_3/60*(T_6-T_9)/A_VFK_990 -> 0 | AO126: =3776*V_4/60*(T_8-T_9)/A_VTK_1140 -> 0
A127: 2015-12-03 | B127: 06:55:00 | C127: =Datum+Uhrzeit -> 2015-12-03T06:55:00 | D127: -0.0481 | E127: 17.193 | F127: 29.4 | G127: 29.4 | H127: 0 | I127: 8.7 | J127: 8.8 | K127: 8.4 | L127: 8.3 | M127: 0 | N127: 0 | O127: 0 | P127: 0 | Q127: 18.2 | R127: 22.4 | S127: 29.1 | T127: 14.3 | U127: 14.3 | V127: 24.7 | W127: 23.9 | X127: 0 | Y127: 21.1 | Z127: 58.7 | AA127: 30 | AB127: 54.9 | AC127: 55.1 | AD127: 61.5 | AE127: 50 | AF127: =3776*V_5/60*(T_10-T_9)/A_Kollektorfeld -> 0 | AG127: =4128*V_7/60*(T_14-T_13) -> 0 | AH127: =4128/60*V_9*(T_19-T_11) -> 688 | AI127: =Q_SZ+Q_TW_solar-Qpkt_KF_spez -> 688 | AJ127: =4128/60*V_6*(T_18-T_17) -> 77606.4 | AK127: =4128/60*V_9*(T_20-T_19) -> 22016 | AL127: =3776*V_1/60*(T_2-T_9)/A_LBHTAR -> 0 | AM127: =3776*V_2/60*(T_4-T_9)/A_LBHT -> 0 | AN127: =3776*V_3/60*(T_6-T_9)/A_VFK_990 -> 0 | AO127: =3776*V_4/60*(T_8-T_9)/A_VTK_1140 -> 0
A128: 2015-12-03 | B128: 06:56:00 | C128: =Datum+Uhrzeit -> 2015-12-03T06:56:00 | D128: -0.0508 | E128: 15.135 | F128: 29.4 | G128: 29.4 | H128: 0 | I128: 8.7 | J128: 8.8 | K128: 8.4 | L128: 8.3 | M128: 0 | N128: 0 | O128: 0 | P128: 0 | Q128: 18.2 | R128: 22.4 | S128: 29.1 | T128: 14.4 | U128: 14.4 | V128: 24.4 | W128: 23.7 | X128: 0 | Y128: 21.2 | Z128: 44.4 | AA128: 20 | AB128: 55 | AC128: 55.2 | AD128: 56.5 | AE128: 40 | AF128: =3776*V_5/60*(T_10-T_9)/A_Kollektorfeld -> 0 | AG128: =4128*V_7/60*(T_14-T_13) -> 0 | AH128: =4128/60*V_9*(T_19-T_11) -> 550.4 | AI128: =Q_SZ+Q_TW_solar-Qpkt_KF_spez -> 550.4 | AJ128: =4128/60*V_6*(T_18-T_17) -> 31923.2 | AK128: =4128/60*V_9*(T_20-T_19) -> 3577.6 | AL128: =3776*V_1/60*(T_2-T_9)/A_LBHTAR -> 0 | AM128: =3776*V_2/60*(T_4-T_9)/A_LBHT -> 0 | AN128: =3776*V_3/60*(T_6-T_9)/A_VFK_990 -> 0 | AO128: =3776*V_4/60*(T_8-T_9)/A_VTK_1140 -> 0
A129: 2015-12-03 | B129: 06:57:00 | C129: =Datum+Uhrzeit -> 2015-12-03T06:57:00 | D129: -0.0493 | E129: 16.874 | F129: 29.4 | G129: 29.4 | H129: 0 | I129: 8.7 | J129: 8.8 | K129: 8.4 | L129: 8.3 | M129: 0 | N129: 0 | O129: 0 | P129: 0 | Q129: 18.2 | R129: 22.4 | S129: 29.1 | T129: 14.5 | U129: 14.4 | V129: 24.2 | W129: 23.4 | X129: 0 | Y129: 21.6 | Z129: 52.8 | AA129: 30 | AB129: 55.1 | AC129: 55.3 | AD129: 64 | AE129: 50 | AF129: =3776*V_5/60*(T_10-T_9)/A_Kollektorfeld -> 0 | AG129: =4128*V_7/60*(T_14-T_13) -> 0 | AH129: =4128/60*V_9*(T_19-T_11) -> 688 | AI129: =Q_SZ+Q_TW_solar-Qpkt_KF_spez -> 688 | AJ129: =4128/60*V_6*(T_18-T_17) -> 64396.8 | AK129: =4128/60*V_9*(T_20-T_19) -> 29928 | AL129: =3776*V_1/60*(T_2-T_9)/A_LBHTAR -> 0 | AM129: =3776*V_2/60*(T_4-T_9)/A_LBHT -> 0 | AN129: =3776*V_3/60*(T_6-T_9)/A_VFK_990 -> 0 | AO129: =3776*V_4/60*(T_8-T_9)/A_VTK_1140 -> 0
A130: 2015-12-03 | B130: 06:58:00 | C130: =Datum+Uhrzeit -> 2015-12-03T06:58:00 | D130: -0.0519 | E130: 13.736 | F130: 29.4 | G130: 29.4 | H130: 0 | I130: 8.7 | J130: 8.8 | K130: 8.4 | L130: 8.4 | M130: 0 | N130: 0 | O130: 0 | P130: 0 | Q130: 18.2 | R130: 22.4 | S130: 29.1 | T130: 14.5 | U130: 14.4 | V130: 24 | W130: 23.3 | X130: 0 | Y130: 22.4 | Z130: 69.7 | AA130: 30 | AB130: 55.2 | AC130: 55.4 | AD130: 72.7 | AE130: 50 | AF130: =3776*V_5/60*(T_10-T_9)/A_Kollektorfeld -> 0 | AG130: =4128*V_7/60*(T_14-T_13) -> 0 | AH130: =4128/60*V_9*(T_19-T_11) -> 688 | AI130: =Q_SZ+Q_TW_solar-Qpkt_KF_spez -> 688 | AJ130: =4128/60*V_6*(T_18-T_17) -> 97627.2 | AK130: =4128/60*V_9*(T_20-T_19) -> 59512 | AL130: =3776*V_1/60*(T_2-T_9)/A_LBHTAR -> 0 | AM130: =3776*V_2/60*(T_4-T_9)/A_LBHT -> 0 | AN130: =3776*V_3/60*(T_6-T_9)/A_VFK_990 -> 0 | AO130: =3776*V_4/60*(T_8-T_9)/A_VTK_1140 -> 0
A131: 2015-12-03 | B131: 06:59:00 | C131: =Datum+Uhrzeit -> 2015-12-03T06:59:00 | D131: -0.0483 | E131: 15.023 | F131: 29.4 | G131: 29.4 | H131: 0 | I131: 8.7 | J131: 8.8 | K131: 8.4 | L131: 8.4 | M131: 0 | N131: 0 | O131: 0 | P131: 0 | Q131: 18.2 | R131: 22.4 | S131: 29.1 | T131: 14.5 | U131: 14.5 | V131: 23.8 | W131: 23.1 | X131: 0 | Y131: 24.7 | Z131: 59.7 | AA131: 30 | AB131: 55.2 | AC131: 55.4 | AD131: 60.8 | AE131: 40 | AF131: =3776*V_5/60*(T_10-T_9)/A_Kollektorfeld -> 0 | AG131: =4128*V_7/60*(T_14-T_13) -> 0 | AH131: =4128/60*V_9*(T_19-T_11) -> 550.4 | AI131: =Q_SZ+Q_TW_solar-Qpkt_KF_spez -> 550.4 | AJ131: =4128/60*V_6*(T_18-T_17) -> 72240 | AK131: =4128/60*V_9*(T_20-T_19) -> 14860.8 | AL131: =3776*V_1/60*(T_2-T_9)/A_LBHTAR -> 0 | AM131: =3776*V_2/60*(T_4-T_9)/A_LBHT -> 0 | AN131: =3776*V_3/60*(T_6-T_9)/A_VFK_990 -> 0 | AO131: =3776*V_4/60*(T_8-T_9)/A_VTK_1140 -> 0
A132: 2015-12-03 | B132: 07:00:00 | C132: =Datum+Uhrzeit -> 2015-12-03T07:00:00 | D132: -0.0481 | E132: 13.251 | F132: 29.4 | G132: 29.4 | H132: 0 | I132: 8.7 | J132: 8.8 | K132: 8.4 | L132: 8.4 | M132: 0 | N132: 0 | O132: 0 | P132: 0 | Q132: 18.2 | R132: 22.4 | S132: 29.1 | T132: 14.5 | U132: 14.5 | V132: 23.7 | W132: 23 | X132: 0 | Y132: 27.7 | Z132: 44.8 | AA132: 30 | AB132: 55.7 | AC132: 55.7 | AD132: 56.4 | AE132: 50 | AF132: =3776*V_5/60*(T_10-T_9)/A_Kollektorfeld -> 0 | AG132: =4128*V_7/60*(T_14-T_13) -> 0 | AH132: =4128/60*V_9*(T_19-T_11) -> 0 | AI132: =Q_SZ+Q_TW_solar-Qpkt_KF_spez -> 0 | AJ132: =4128/60*V_6*(T_18-T_17) -> 35294.4 | AK132: =4128/60*V_9*(T_20-T_19) -> 2408 | AL132: =3776*V_1/60*(T_2-T_9)/A_LBHTAR -> 0 | AM132: =3776*V_2/60*(T_4-T_9)/A_LBHT -> 0 | AN132: =3776*V_3/60*(T_6-T_9)/A_VFK_990 -> 0 | AO132: =3776*V_4/60*(T_8-T_9)/A_VTK_1140 -> 0
A133: 2015-12-03 | B133: 07:01:00 | C133: =Datum+Uhrzeit -> 2015-12-03T07:01:00 | D133: -0.0443 | E133: 15.053 | F133: 29.4 | G133: 29.4 | H133: 0 | I133: 8.7 | J133: 8.8 | K133: 8.4 | L133: 8.4 | M133: 0 | N133: 0 | O133: 0 | P133: 0 | Q133: 18.2 | R133: 22.4 | S133: 29.1 | T133: 14.6 | U133: 14.5 | V133: 23.5 | W133: 22.8 | X133: 0 | Y133: 35.7 | Z133: 53.4 | AA133: 30 | AB133: 56.1 | AC133: 56.2 | AD133: 61.2 | AE133: 50 | AF133: =3776*V_5/60*(T_10-T_9)/A_Kollektorfeld -> 0 | AG133: =4128*V_7/60*(T_14-T_13) -> 0 | AH133: =4128/60*V_9*(T_19-T_11) -> 344 | AI133: =Q_SZ+Q_TW_solar-Qpkt_KF_spez -> 344 | AJ133: =4128/60*V_6*(T_18-T_17) -> 36532.8 | AK133: =4128/60*V_9*(T_20-T_19) -> 17200 | AL133: =3776*V_1/60*(T_2-T_9)/A_LBHTAR -> 0 | AM133: =3776*V_2/60*(T_4-T_9)/A_LBHT -> 0 | AN133: =3776*V_3/60*(T_6-T_9)/A_VFK_990 -> 0 | AO133: =3776*V_4/60*(T_8-T_9)/A_VTK_1140 -> 0
A134: 2015-12-03 | B134: 07:02:00 | C134: =Datum+Uhrzeit -> 2015-12-03T07:02:00 | D134: -0.0404 | E134: 16.062 | F134: 29.4 | G134: 29.4 | H134: 0 | I134: 8.7 | J134: 8.8 | K134: 8.4 | L134: 8.4 | M134: 0 | N134: 0 | O134: 0 | P134: 0 | Q134: 18.2 | R134: 22.4 | S134: 29.1 | T134: 14.5 | U134: 14.5 | V134: 23.4 | W134: 22.7 | X134: 15 | Y134: 45.9 | Z134: 72.9 | AA134: 30 | AB134: 56.1 | AC134: 56.4 | AD134: 72.2 | AE134: 40 | AF134: =3776*V_5/60*(T_10-T_9)/A_Kollektorfeld -> 0 | AG134: =4128*V_7/60*(T_14-T_13) -> 0 | AH134: =4128/60*V_9*(T_19-T_11) -> 825.6 | AI134: =Q_SZ+Q_TW_solar-Qpkt_KF_spez -> 825.6 | AJ134: =4128/60*V_6*(T_18-T_17) -> 55728 | AK134: =4128/60*V_9*(T_20-T_19) -> 43481.6 | AL134: =3776*V_1/60*(T_2-T_9)/A_LBHTAR -> 0 | AM134: =3776*V_2/60*(T_4-T_9)/A_LBHT -> 0 | AN134: =3776*V_3/60*(T_6-T_9)/A_VFK_990 -> 0 | AO134: =3776*V_4/60*(T_8-T_9)/A_VTK_1140 -> 0
A135: 2015-12-03 | B135: 07:03:00 | C135: =Datum+Uhrzeit -> 2015-12-03T07:03:00 | D135: -0.0507 | E135: 15.702 | F135: 29.4 | G135: 29.4 | H135: 0 | I135: 8.7 | J135: 8.8 | K135: 8.4 | L135: 8.4 | M135: 0 | N135: 0 | O135: 0 | P135: 0 | Q135: 18.2 | R135: 22.4 | S135: 29 | T135: 14.4 | U135: 14.5 | V135: 23.3 | W135: 22.7 | X135: 47 | Y135: 42 | Z135: 67.4 | AA135: 30 | AB135: 55.9 | AC135: 56.3 | AD135: 62 | AE135: 50 | AF135: =3776*V_5/60*(T_10-T_9)/A_Kollektorfeld -> 0 | AG135: =4128*V_7/60*(T_14-T_13) -> 323.36 | AH135: =4128/60*V_9*(T_19-T_11) -> 1376 | AI135: =Q_SZ+Q_TW_solar-Qpkt_KF_spez -> 1699.36 | AJ135: =4128/60*V_6*(T_18-T_17) -> 52425.6 | AK135: =4128/60*V_9*(T_20-T_19) -> 19608 | AL135: =3776*V_1/60*(T_2-T_9)/A_LBHTAR -> 0 | AM135: =3776*V_2/60*(T_4-T_9)/A_LBHT -> 0 | AN135: =3776*V_3/60*(T_6-T_9)/A_VFK_990 -> 0 | AO135: =3776*V_4/60*(T_8-T_9)/A_VTK_1140 -> 0
A136: 2015-12-03 | B136: 07:04:00 | C136: =Datum+Uhrzeit -> 2015-12-03T07:04:00 | D136: -0.0494 | E136: 15.465 | F136: 29.4 | G136: 29.4 | H136: 0 | I136: 8.7 | J136: 8.9 | K136: 8.4 | L136: 8.4 | M136: 0 | N136: 0 | O136: 0 | P136: 0 | Q136: 18.2 | R136: 22.4 | S136: 29.1 | T136: 14.2 | U136: 14.2 | V136: 23.2 | W136: 22.6 | X136: 32 | Y136: 34.7 | Z136: 51.1 | AA136: 30 | AB136: 55.9 | AC136: 56.1 | AD136: 58 | AE136: 50 | AF136: =3776*V_5/60*(T_10-T_9)/A_Kollektorfeld -> 0 | AG136: =4128*V_7/60*(T_14-T_13) -> 0 | AH136: =4128/60*V_9*(T_19-T_11) -> 688 | AI136: =Q_SZ+Q_TW_solar-Qpkt_KF_spez -> 688 | AJ136: =4128/60*V_6*(T_18-T_17) -> 33849.6 | AK136: =4128/60*V_9*(T_20-T_19) -> 6536 | AL136: =3776*V_1/60*(T_2-T_9)/A_LBHTAR -> 0 | AM136: =3776*V_2/60*(T_4-T_9)/A_LBHT -> 0 | AN136: =3776*V_3/60*(T_6-T_9)/A_VFK_990 -> 0 | AO136: =3776*V_4/60*(T_8-T_9)/A_VTK_1140 -> 0
A137: 2015-12-03 | B137: 07:05:00 | C137: =Datum+Uhrzeit -> 2015-12-03T07:05:00 | D137: -0.0418 | E137: 16.545 | F137: 29.4 | G137: 29.4 | H137: 0 | I137: 8.7 | J137: 8.9 | K137: 8.4 | L137: 8.4 | M137: 0 | N137: 0 | O137: 0 | P137: 0 | Q137: 18.2 | R137: 22.4 | S137: 29.1 | T137: 14.3 | U137: 14.3 | V137: 23.2 | W137: 22.5 | X137: 0 | Y137: 34.7 | Z137: 49.1 | AA137: 30 | AB137: 56.1 | AC137: 56.2 | AD137: 56.8 | AE137: 40 | AF137: =3776*V_5/60*(T_10-T_9)/A_Kollektorfeld -> 0 | AG137: =4128*V_7/60*(T_14-T_13) -> 0 | AH137: =4128/60*V_9*(T_19-T_11) -> 275.2 | AI137: =Q_SZ+Q_TW_solar-Qpkt_KF_spez -> 275.2 | AJ137: =4128/60*V_6*(T_18-T_17) -> 29721.6 | AK137: =4128/60*V_9*(T_20-T_19) -> 1651.2 | AL137: =3776*V_1/60*(T_2-T_9)/A_LBHTAR -> 0 | AM137: =3776*V_2/60*(T_4-T_9)/A_LBHT -> 0 | AN137: =3776*V_3/60*(T_6-T_9)/A_VFK_990 -> 0 | AO137: =3776*V_4/60*(T_8-T_9)/A_VTK_1140 -> 0
A138: 2015-12-03 | B138: 07:06:00 | C138: =Datum+Uhrzeit -> 2015-12-03T07:06:00 | D138: -0.0495 | E138: 14.199 | F138: 29.4 | G138: 29.4 | H138: 0 | I138: 8.7 | J138: 8.9 | K138: 8.4 | L138: 8.4 | M138: 0 | N138: 0 | O138: 0 | P138: 0 | Q138: 18.2 | R138: 22.4 | S138: 29.1 | T138: 14.4 | U138: 14.4 | V138: 23.1 | W138: 22.4 | X138: 0 | Y138: 34.9 | Z138: 60.2 | AA138: 30 | AB138: 56.5 | AC138: 56.5 | AD138: 66.1 | AE138: 50 | AF138: =3776*V_5/60*(T_10-T_9)/A_Kollektorfeld -> 0 | AG138: =4128*V_7/60*(T_14-T_13) -> 0 | AH138: =4128/60*V_9*(T_19-T_11) -> 0 | AI138: =Q_SZ+Q_TW_solar-Qpkt_KF_spez -> 0 | AJ138: =4128/60*V_6*(T_18-T_17) -> 52219.2 | AK138: =4128/60*V_9*(T_20-T_19) -> 33024 | AL138: =3776*V_1/60*(T_2-T_9)/A_LBHTAR -> 0 | AM138: =3776*V_2/60*(T_4-T_9)/A_LBHT -> 0 | AN138: =3776*V_3/60*(T_6-T_9)/A_VFK_990 -> 0 | AO138: =3776*V_4/60*(T_8-T_9)/A_VTK_1140 -> 0
A139: 2015-12-03 | B139: 07:07:00 | C139: =Datum+Uhrzeit -> 2015-12-03T07:07:00 | D139: -0.0481 | E139: 14.179 | F139: 29.4 | G139: 29.4 | H139: 0 | I139: 8.7 | J139: 8.9 | K139: 8.4 | L139: 8.4 | M139: 0 | N139: 0 | O139: 0 | P139: 0 | Q139: 18.2 | R139: 22.4 | S139: 29.1 | T139: 14.4 | U139: 14.4 | V139: 23 | W139: 22.3 | X139: 0 | Y139: 38.2 | Z139: 73 | AA139: 20 | AB139: 56.8 | AC139: 56.9 | AD139: 69.5 | AE139: 50 | AF139: =3776*V_5/60*(T_10-T_9)/A_Kollektorfeld -> 0 | AG139: =4128*V_7/60*(T_14-T_13) -> 0 | AH139: =4128/60*V_9*(T_19-T_11) -> 344 | AI139: =Q_SZ+Q_TW_solar-Qpkt_KF_spez -> 344 | AJ139: =4128/60*V_6*(T_18-T_17) -> 47884.8 | AK139: =4128/60*V_9*(T_20-T_19) -> 43344 | AL139: =3776*V_1/60*(T_2-T_9)/A_LBHTAR -> 0 | AM139: =3776*V_2/60*(T_4-T_9)/A_LBHT -> 0 | AN139: =3776*V_3/60*(T_6-T_9)/A_VFK_990 -> 0 | AO139: =3776*V_4/60*(T_8-T_9)/A_VTK_1140 -> 0
A140: 2015-12-03 | B140: 07:08:00 | C140: =Datum+Uhrzeit -> 2015-12-03T07:08:00 | D140: -0.0443 | E140: 15.053 | F140: 29.4 | G140: 29.4 | H140: 0 | I140: 8.7 | J140: 8.9 | K140: 8.4 | L140: 8.4 | M140: 0 | N140: 0 | O140: 0 | P140: 0 | Q140: 18.2 | R140: 22.4 | S140: 29.1 | T140: 14.5 | U140: 14.4 | V140: 22.9 | W140: 22.2 | X140: 0 | Y140: 42.5 | Z140: 59.6 | AA140: 30 | AB140: 56.9 | AC140: 57.1 | AD140: 60.5 | AE140: 40 | AF140: =3776*V_5/60*(T_10-T_9)/A_Kollektorfeld -> 0 | AG140: =4128*V_7/60*(T_14-T_13) -> 0 | AH140: =4128/60*V_9*(T_19-T_11) -> 550.4 | AI140: =Q_SZ+Q_TW_solar-Qpkt_KF_spez -> 550.4 | AJ140: =4128/60*V_6*(T_18-T_17) -> 35294.4 | AK140: =4128/60*V_9*(T_20-T_19) -> 9356.8 | AL140: =3776*V_1/60*(T_2-T_9)/A_LBHTAR -> 0 | AM140: =3776*V_2/60*(T_4-T_9)/A_LBHT -> 0 | AN140: =3776*V_3/60*(T_6-T_9)/A_VFK_990 -> 0 | AO140: =3776*V_4/60*(T_8-T_9)/A_VTK_1140 -> 0
A141: 2015-12-03 | B141: 07:09:00 | C141: =Datum+Uhrzeit -> 2015-12-03T07:09:00 | D141: -0.043 | E141: 14.631 | F141: 29.4 | G141: 29.4 | H141: 0 | I141: 8.7 | J141: 8.9 | K141: 8.4 | L141: 8.4 | M141: 0 | N141: 0 | O141: 0 | P141: 0 | Q141: 18.2 | R141: 22.4 | S141: 29 | T141: 14.5 | U141: 14.5 | V141: 22.9 | W141: 22.1 | X141: 0 | Y141: 50 | Z141: 53.1 | AA141: 30 | AB141: 57 | AC141: 57.2 | AD141: 57.9 | AE141: 50 | AF141: =3776*V_5/60*(T_10-T_9)/A_Kollektorfeld -> 0 | AG141: =4128*V_7/60*(T_14-T_13) -> 0 | AH141: =4128/60*V_9*(T_19-T_11) -> 688 | AI141: =Q_SZ+Q_TW_solar-Qpkt_KF_spez -> 688 | AJ141: =4128/60*V_6*(T_18-T_17) -> 6398.4 | AK141: =4128/60*V_9*(T_20-T_19) -> 2408 | AL141: =3776*V_1/60*(T_2-T_9)/A_LBHTAR -> 0 | AM141: =3776*V_2/60*(T_4-T_9)/A_LBHT -> 0 | AN141: =3776*V_3/60*(T_6-T_9)/A_VFK_990 -> 0 | AO141: =3776*V_4/60*(T_8-T_9)/A_VTK_1140 -> 0
A142: 2015-12-03 | B142: 07:10:00 | C142: =Datum+Uhrzeit -> 2015-12-03T07:10:00 | D142: -0.0455 | E142: 14.59 | F142: 29.4 | G142: 29.4 | H142: 0 | I142: 8.7 | J142: 8.9 | K142: 8.5 | L142: 8.4 | M142: 0 | N142: 0 | O142: 0 | P142: 0 | Q142: 18.2 | R142: 22.4 | S142: 29.1 | T142: 14.5 | U142: 14.5 | V142: 22.8 | W142: 22 | X142: 0 | Y142: 54.7 | Z142: 60 | AA142: 30 | AB142: 57.1 | AC142: 57.3 | AD142: 60.3 | AE142: 50 | AF142: =3776*V_5/60*(T_10-T_9)/A_Kollektorfeld -> 0 | AG142: =4128*V_7/60*(T_14-T_13) -> 0 | AH142: =4128/60*V_9*(T_19-T_11) -> 688 | AI142: =Q_SZ+Q_TW_solar-Qpkt_KF_spez -> 688 | AJ142: =4128/60*V_6*(T_18-T_17) -> 10939.2 | AK142: =4128/60*V_9*(T_20-T_19) -> 10320 | AL142: =3776*V_1/60*(T_2-T_9)/A_LBHTAR -> 0 | AM142: =3776*V_2/60*(T_4-T_9)/A_LBHT -> 0 | AN142: =3776*V_3/60*(T_6-T_9)/A_VFK_990 -> 0 | AO142: =3776*V_4/60*(T_8-T_9)/A_VTK_1140 -> 0
A143: 2015-12-03 | B143: 07:11:00 | C143: =Datum+Uhrzeit -> 2015-12-03T07:11:00 | D143: -0.043 | E143: 14.807 | F143: 29.4 | G143: 29.4 | H143: 0 | I143: 8.7 | J143: 8.9 | K143: 8.5 | L143: 8.4 | M143: 0 | N143: 0 | O143: 0 | P143: 0 | Q143: 18.2 | R143: 22.4 | S143: 29.1 | T143: 14.6 | U143: 14.5 | V143: 22.7 | W143: 21.9 | X143: 1 | Y143: 57 | Z143: 64.5 | AA143: 30 | AB143: 57 | AC143: 57.3 | AD143: 62.9 | AE143: 40 | AF143: =3776*V_5/60*(T_10-T_9)/A_Kollektorfeld -> 0 | AG143: =4128*V_7/60*(T_14-T_13) -> -6.88 | AH143: =4128/60*V_9*(T_19-T_11) -> 825.6 | AI143: =Q_SZ+Q_TW_solar-Qpkt_KF_spez -> 818.72 | AJ143: =4128/60*V_6*(T_18-T_17) -> 15480 | AK143: =4128/60*V_9*(T_20-T_19) -> 15411.2 | AL143: =3776*V_1/60*(T_2-T_9)/A_LBHTAR -> 0 | AM143: =3776*V_2/60*(T_4-T_9)/A_LBHT -> 0 | AN143: =3776*V_3/60*(T_6-T_9)/A_VFK_990 -> 0 | AO143: =3776*V_4/60*(T_8-T_9)/A_VTK_1140 -> 0
A144: 2015-12-03 | B144: 07:12:00 | C144: =Datum+Uhrzeit -> 2015-12-03T07:12:00 | D144: -0.043 | E144: 15.723 | F144: 29.4 | G144: 29.4 | H144: 0 | I144: 8.7 | J144: 9 | K144: 8.5 | L144: 8.4 | M144: 0 | N144: 0 | O144: 0 | P144: 0 | Q144: 18.2 | R144: 22.4 | S144: 29.1 | T144: 14.5 | U144: 14.5 | V144: 22.7 | W144: 21.9 | X144: 18 | Y144: 55.4 | Z144: 62.8 | AA144: 30 | AB144: 56.8 | AC144: 57.2 | AD144: 61.1 | AE144: 50 | AF144: =3776*V_5/60*(T_10-T_9)/A_Kollektorfeld -> 0 | AG144: =4128*V_7/60*(T_14-T_13) -> 0 | AH144: =4128/60*V_9*(T_19-T_11) -> 1376 | AI144: =Q_SZ+Q_TW_solar-Qpkt_KF_spez -> 1376 | AJ144: =4128/60*V_6*(T_18-T_17) -> 15273.6 | AK144: =4128/60*V_9*(T_20-T_19) -> 13416 | AL144: =3776*V_1/60*(T_2-T_9)/A_LBHTAR -> 0 | AM144: =3776*V_2/60*(T_4-T_9)/A_LBHT -> 0 | AN144: =3776*V_3/60*(T_6-T_9)/A_VFK_990 -> 0 | AO144: =3776*V_4/60*(T_8-T_9)/A_VTK_1140 -> 0
A145: 2015-12-03 | B145: 07:13:00 | C145: =Datum+Uhrzeit -> 2015-12-03T07:13:00 | D145: -0.0307 | E145: 15.565 | F145: 29.4 | G145: 29.4 | H145: 0 | I145: 8.7 | J145: 9 | K145: 8.5 | L145: 8.4 | M145: 0 | N145: 0 | O145: 0 | P145: 0 | Q145: 18.3 | R145: 22.4 | S145: 29.1 | T145: 14.7 | U145: 14.6 | V145: 22.6 | W145: 21.8 | X145: 0 | Y145: 50.5 | Z145: 57.4 | AA145: 30 | AB145: 56.9 | AC145: 57 | AD145: 59.2 | AE145: 50 | AF145: =3776*V_5/60*(T_10-T_9)/A_Kollektorfeld -> 0 | AG145: =4128*V_7/60*(T_14-T_13) -> 0 | AH145: =4128/60*V_9*(T_19-T_11) -> 344 | AI145: =Q_SZ+Q_TW_solar-Qpkt_KF_spez -> 344 | AJ145: =4128/60*V_6*(T_18-T_17) -> 14241.6 | AK145: =4128/60*V_9*(T_20-T_19) -> 7568 | AL145: =3776*V_1/60*(T_2-T_9)/A_LBHTAR -> 0 | AM145: =3776*V_2/60*(T_4-T_9)/A_LBHT -> 0 | AN145: =3776*V_3/60*(T_6-T_9)/A_VFK_990 -> 0 | AO145: =3776*V_4/60*(T_8-T_9)/A_VTK_1140 -> 0
A146: 2015-12-03 | B146: 07:14:00 | C146: =Datum+Uhrzeit -> 2015-12-03T07:14:00 | D146: -0.0331 | E146: 16.686 | F146: 29.3 | G146: 29.4 | H146: 0 | I146: 8.7 | J146: 9 | K146: 8.5 | L146: 8.4 | M146: 0 | N146: 0 | O146: 0 | P146: 0 | Q146: 18.3 | R146: 22.4 | S146: 29.1 | T146: 14.8 | U146: 14.7 | V146: 22.6 | W146: 21.8 | X146: 1 | Y146: 51.9 | Z146: 56.7 | AA146: 30 | AB146: 57 | AC146: 57.2 | AD146: 58.5 | AE146: 40 | AF146: =3776*V_5/60*(T_10-T_9)/A_Kollektorfeld -> 0 | AG146: =4128*V_7/60*(T_14-T_13) -> -6.88 | AH146: =4128/60*V_9*(T_19-T_11) -> 550.4 | AI146: =Q_SZ+Q_TW_solar-Qpkt_KF_spez -> 543.52 | AJ146: =4128/60*V_6*(T_18-T_17) -> 9907.2 | AK146: =4128/60*V_9*(T_20-T_19) -> 3577.6 | AL146: =3776*V_1/60*(T_2-T_9)/A_LBHTAR -> 0 | AM146: =3776*V_2/60*(T_4-T_9)/A_LBHT -> 0 | AN146: =3776*V_3/60*(T_6-T_9)/A_VFK_990 -> 0 | AO146: =3776*V_4/60*(T_8-T_9)/A_VTK_1140 -> 0
A147: 2015-12-03 | B147: 07:15:00 | C147: =Datum+Uhrzeit -> 2015-12-03T07:15:00 | D147: -0.0384 | E147: 15.595 | F147: 29.3 | G147: 29.4 | H147: 0 | I147: 8.7 | J147: 9 | K147: 8.5 | L147: 8.4 | M147: 0 | N147: 0 | O147: 0 | P147: 0 | Q147: 18.3 | R147: 22.4 | S147: 29.1 | T147: 14.9 | U147: 14.7 | V147: 22.6 | W147: 21.7 | X147: 0 | Y147: 56 | Z147: 60.2 | AA147: 30 | AB147: 57 | AC147: 57.3 | AD147: 60.3 | AE147: 50 | AF147: =3776*V_5/60*(T_10-T_9)/A_Kollektorfeld -> 0 | AG147: =4128*V_7/60*(T_14-T_13) -> 0 | AH147: =4128/60*V_9*(T_19-T_11) -> 1032 | AI147: =Q_SZ+Q_TW_solar-Qpkt_KF_spez -> 1032 | AJ147: =4128/60*V_6*(T_18-T_17) -> 8668.8 | AK147: =4128/60*V_9*(T_20-T_19) -> 10320 | AL147: =3776*V_1/60*(T_2-T_9)/A_LBHTAR -> 0 | AM147: =3776*V_2/60*(T_4-T_9)/A_LBHT -> 0 | AN147: =3776*V_3/60*(T_6-T_9)/A_VFK_990 -> 0 | AO147: =3776*V_4/60*(T_8-T_9)/A_VTK_1140 -> 0
A148: 2015-12-03 | B148: 07:16:00 | C148: =Datum+Uhrzeit -> 2015-12-03T07:16:00 | D148: -0.036 | E148: 15.533 | F148: 29.3 | G148: 29.4 | H148: 0 | I148: 8.7 | J148: 9 | K148: 8.5 | L148: 8.4 | M148: 0 | N148: 0 | O148: 0 | P148: 0 | Q148: 18.3 | R148: 22.4 | S148: 29.1 | T148: 14.9 | U148: 14.7 | V148: 22.5 | W148: 21.7 | X148: 0 | Y148: 57.6 | Z148: 62.6 | AA148: 30 | AB148: 56.9 | AC148: 57.2 | AD148: 61.7 | AE148: 50 | AF148: =3776*V_5/60*(T_10-T_9)/A_Kollektorfeld -> 0 | AG148: =4128*V_7/60*(T_14-T_13) -> 0 | AH148: =4128/60*V_9*(T_19-T_11) -> 1032 | AI148: =Q_SZ+Q_TW_solar-Qpkt_KF_spez -> 1032 | AJ148: =4128/60*V_6*(T_18-T_17) -> 10320 | AK148: =4128/60*V_9*(T_20-T_19) -> 15480 | AL148: =3776*V_1/60*(T_2-T_9)/A_LBHTAR -> 0 | AM148: =3776*V_2/60*(T_4-T_9)/A_LBHT -> 0 | AN148: =3776*V_3/60*(T_6-T_9)/A_VFK_990 -> 0 | AO148: =3776*V_4/60*(T_8-T_9)/A_VTK_1140 -> 0
A149: 2015-12-03 | B149: 07:17:00 | C149: =Datum+Uhrzeit -> 2015-12-03T07:17:00 | D149: -0.041 | E149: 14.607 | F149: 29.3 | G149: 29.4 | H149: 0 | I149: 8.7 | J149: 9.1 | K149: 8.5 | L149: 8.4 | M149: 0 | N149: 0 | O149: 0 | P149: 0 | Q149: 18.3 | R149: 22.4 | S149: 29.1 | T149: 14.9 | U149: 14.7 | V149: 22.5 | W149: 21.6 | X149: 0 | Y149: 58.5 | Z149: 62.2 | AA149: 20 | AB149: 56.9 | AC149: 57.2 | AD149: 60.9 | AE149: 40 | AF149: =3776*V_5/60*(T_10-T_9)/A_Kollektorfeld -> 0 | AG149: =4128*V_7/60*(T_14-T_13) -> 0 | AH149: =4128/60*V_9*(T_19-T_11) -> 825.6 | AI149: =Q_SZ+Q_TW_solar-Qpkt_KF_spez -> 825.6 | AJ149: =4128/60*V_6*(T_18-T_17) -> 5091.2 | AK149: =4128/60*V_9*(T_20-T_19) -> 10182.4 | AL149: =3776*V_1/60*(T_2-T_9)/A_LBHTAR -> 0 | AM149: =3776*V_2/60*(T_4-T_9)/A_LBHT -> 0 | AN149: =3776*V_3/60*(T_6-T_9)/A_VFK_990 -> 0 | AO149: =3776*V_4/60*(T_8-T_9)/A_VTK_1140 -> 0
A150: 2015-12-03 | B150: 07:18:00 | C150: =Datum+Uhrzeit -> 2015-12-03T07:18:00 | D150: -0.0474 | E150: 14.474 | F150: 29.3 | G150: 29.4 | H150: 0 | I150: 8.7 | J150: 9.1 | K150: 8.5 | L150: 8.4 | M150: 0 | N150: 0 | O150: 0 | P150: 0 | Q150: 18.3 | R150: 22.4 | S150: 29.1 | T150: 14.9 | U150: 14.8 | V150: 22.4 | W150: 21.6 | X150: 1 | Y150: 59.1 | Z150: 61.2 | AA150: 30 | AB150: 57 | AC150: 57.2 | AD150: 60 | AE150: 50 | AF150: =3776*V_5/60*(T_10-T_9)/A_Kollektorfeld -> 0 | AG150: =4128*V_7/60*(T_14-T_13) -> -6.88 | AH150: =4128/60*V_9*(T_19-T_11) -> 688 | AI150: =Q_SZ+Q_TW_solar-Qpkt_KF_spez -> 681.12 | AJ150: =4128/60*V_6*(T_18-T_17) -> 4334.4 | AK150: =4128/60*V_9*(T_20-T_19) -> 9632 | AL150: =3776*V_1/60*(T_2-T_9)/A_LBHTAR -> 0 | AM150: =3776*V_2/60*(T_4-T_9)/A_LBHT -> 0 | AN150: =3776*V_3/60*(T_6-T_9)/A_VFK_990 -> 0 | AO150: =3776*V_4/60*(T_8-T_9)/A_VTK_1140 -> 0
A151: 2015-12-03 | B151: 07:19:00 | C151: =Datum+Uhrzeit -> 2015-12-03T07:19:00 | D151: -0.0371 | E151: 14.154 | F151: 29.3 | G151: 29.4 | H151: 0 | I151: 8.7 | J151: 9.1 | K151: 8.5 | L151: 8.4 | M151: 0 | N151: 0 | O151: 0 | P151: 0 | Q151: 18.3 | R151: 22.4 | S151: 29.1 | T151: 15 | U151: 14.8 | V151: 22.4 | W151: 21.5 | X151: 0 | Y151: 59.5 | Z151: 61.2 | AA151: 30 | AB151: 57 | AC151: 57.3 | AD151: 60 | AE151: 50 | AF151: =3776*V_5/60*(T_10-T_9)/A_Kollektorfeld -> 0 | AG151: =4128*V_7/60*(T_14-T_13) -> 0 | AH151: =4128/60*V_9*(T_19-T_11) -> 1032 | AI151: =Q_SZ+Q_TW_solar-Qpkt_KF_spez -> 1032 | AJ151: =4128/60*V_6*(T_18-T_17) -> 3508.8 | AK151: =4128/60*V_9*(T_20-T_19) -> 9288 | AL151: =3776*V_1/60*(T_2-T_9)/A_LBHTAR -> 0 | AM151: =3776*V_2/60*(T_4-T_9)/A_LBHT -> 0 | AN151: =3776*V_3/60*(T_6-T_9)/A_VFK_990 -> 0 | AO151: =3776*V_4/60*(T_8-T_9)/A_VTK_1140 -> 0
A152: 2015-12-03 | B152: 07:20:00 | C152: =Datum+Uhrzeit -> 2015-12-03T07:20:00 | D152: -0.0372 | E152: 13.65 | F152: 29.3 | G152: 29.4 | H152: 0 | I152: 8.7 | J152: 9.1 | K152: 8.5 | L152: 8.4 | M152: 0 | N152: 0 | O152: 0 | P152: 0 | Q152: 18.3 | R152: 22.4 | S152: 29.1 | T152: 15 | U152: 14.9 | V152: 22.4 | W152: 21.5 | X152: 0 | Y152: 59.7 | Z152: 61.2 | AA152: 30 | AB152: 57.1 | AC152: 57.3 | AD152: 60.1 | AE152: 40 | AF152: =3776*V_5/60*(T_10-T_9)/A_Kollektorfeld -> 0 | AG152: =4128*V_7/60*(T_14-T_13) -> 0 | AH152: =4128/60*V_9*(T_19-T_11) -> 550.4 | AI152: =Q_SZ+Q_TW_solar-Qpkt_KF_spez -> 550.4 | AJ152: =4128/60*V_6*(T_18-T_17) -> 3096 | AK152: =4128/60*V_9*(T_20-T_19) -> 7705.6 | AL152: =3776*V_1/60*(T_2-T_9)/A_LBHTAR -> 0 | AM152: =3776*V_2/60*(T_4-T_9)/A_LBHT -> 0 | AN152: =3776*V_3/60*(T_6-T_9)/A_VFK_990 -> 0 | AO152: =3776*V_4/60*(T_8-T_9)/A_VTK_1140 -> 0
A153: 2015-12-03 | B153: 07:21:00 | C153: =Datum+Uhrzeit -> 2015-12-03T07:21:00 | D153: -0.0331 | E153: 14.535 | F153: 29.3 | G153: 29.3 | H153: 0 | I153: 8.7 | J153: 9.1 | K153: 8.5 | L153: 8.4 | M153: 0 | N153: 0 | O153: 0 | P153: 0 | Q153: 18.3 | R153: 22.4 | S153: 29.1 | T153: 15.1 | U153: 14.9 | V153: 22.3 | W153: 21.5 | X153: 0 | Y153: 59.8 | Z153: 61.2 | AA153: 30 | AB153: 57.1 | AC153: 57.3 | AD153: 60 | AE153: 50 | AF153: =3776*V_5/60*(T_10-T_9)/A_Kollektorfeld -> 0 | AG153: =4128*V_7/60*(T_14-T_13) -> 0 | AH153: =4128/60*V_9*(T_19-T_11) -> 688 | AI153: =Q_SZ+Q_TW_solar-Qpkt_KF_spez -> 688 | AJ153: =4128/60*V_6*(T_18-T_17) -> 2889.6 | AK153: =4128/60*V_9*(T_20-T_19) -> 9288 | AL153: =3776*V_1/60*(T_2-T_9)/A_LBHTAR -> 0 | AM153: =3776*V_2/60*(T_4-T_9)/A_LBHT -> 0 | AN153: =3776*V_3/60*(T_6-T_9)/A_VFK_990 -> 0 | AO153: =3776*V_4/60*(T_8-T_9)/A_VTK_1140 -> 0
A154: 2015-12-03 | B154: 07:22:00 | C154: =Datum+Uhrzeit -> 2015-12-03T07:22:00 | D154: -0.0359 | E154: 13.218 | F154: 29.3 | G154: 29.3 | H154: 0 | I154: 8.7 | J154: 9.1 | K154: 8.5 | L154: 8.4 | M154: 0 | N154: 0 | O154: 0 | P154: 0 | Q154: 18.3 | R154: 22.4 | S154: 29.1 | T154: 15.1 | U154: 14.9 | V154: 22.3 | W154: 21.4 | X154: 0 | Y154: 59.9 | Z154: 61.2 | AA154: 30 | AB154: 57.3 | AC154: 57.4 | AD154: 60.1 | AE154: 50 | AF154: =3776*V_5/60*(T_10-T_9)/A_Kollektorfeld -> 0 | AG154: =4128*V_7/60*(T_14-T_13) -> 0 | AH154: =4128/60*V_9*(T_19-T_11) -> 344 | AI154: =Q_SZ+Q_TW_solar-Qpkt_KF_spez -> 344 | AJ154: =4128/60*V_6*(T_18-T_17) -> 2683.2 | AK154: =4128/60*V_9*(T_20-T_19) -> 9288 | AL154: =3776*V_1/60*(T_2-T_9)/A_LBHTAR -> 0 | AM154: =3776*V_2/60*(T_4-T_9)/A_LBHT -> 0 | AN154: =3776*V_3/60*(T_6-T_9)/A_VFK_990 -> 0 | AO154: =3776*V_4/60*(T_8-T_9)/A_VTK_1140 -> 0
A155: 2015-12-03 | B155: 07:23:00 | C155: =Datum+Uhrzeit -> 2015-12-03T07:23:00 | D155: -0.0384 | E155: 10.092 | F155: 29.3 | G155: 29.3 | H155: 0 | I155: 8.7 | J155: 9.1 | K155: 8.6 | L155: 8.4 | M155: 0 | N155: 0 | O155: 0 | P155: 0 | Q155: 18.3 | R155: 22.4 | S155: 29.1 | T155: 15.1 | U155: 14.9 | V155: 22.3 | W155: 21.4 | X155: 1 | Y155: 59.9 | Z155: 61.2 | AA155: 30 | AB155: 57.3 | AC155: 57.5 | AD155: 60.2 | AE155: 40 | AF155: =3776*V_5/60*(T_10-T_9)/A_Kollektorfeld -> 0 | AG155: =4128*V_7/60*(T_14-T_13) -> -13.76 | AH155: =4128/60*V_9*(T_19-T_11) -> 550.4 | AI155: =Q_SZ+Q_TW_solar-Qpkt_KF_spez -> 536.64 | AJ155: =4128/60*V_6*(T_18-T_17) -> 2683.2 | AK155: =4128/60*V_9*(T_20-T_19) -> 7430.4 | AL155: =3776*V_1/60*(T_2-T_9)/A_LBHTAR -> 0 | AM155: =3776*V_2/60*(T_4-T_9)/A_LBHT -> 0 | AN155: =3776*V_3/60*(T_6-T_9)/A_VFK_990 -> 0 | AO155: =3776*V_4/60*(T_8-T_9)/A_VTK_1140 -> 0
A156: 2015-12-03 | B156: 07:24:00 | C156: =Datum+Uhrzeit -> 2015-12-03T07:24:00 | D156: -0.0346 | E156: 13.701 | F156: 29.3 | G156: 29.3 | H156: 0 | I156: 8.7 | J156: 9.2 | K156: 8.6 | L156: 8.4 | M156: 0 | N156: 0 | O156: 0 | P156: 0 | Q156: 18.3 | R156: 22.4 | S156: 29.1 | T156: 15.2 | U156: 15 | V156: 22.3 | W156: 21.4 | X156: 0 | Y156: 60.1 | Z156: 61.3 | AA156: 30 | AB156: 57.2 | AC156: 57.5 | AD156: 60.2 | AE156: 50 | AF156: =3776*V_5/60*(T_10-T_9)/A_Kollektorfeld -> 0 | AG156: =4128*V_7/60*(T_14-T_13) -> 0 | AH156: =4128/60*V_9*(T_19-T_11) -> 1032 | AI156: =Q_SZ+Q_TW_solar-Qpkt_KF_spez -> 1032 | AJ156: =4128/60*V_6*(T_18-T_17) -> 2476.8 | AK156: =4128/60*V_9*(T_20-T_19) -> 9288 | AL156: =3776*V_1/60*(T_2-T_9)/A_LBHTAR -> 0 | AM156: =3776*V_2/60*(T_4-T_9)/A_LBHT -> 0 | AN156: =3776*V_3/60*(T_6-T_9)/A_VFK_990 -> 0 | AO156: =3776*V_4/60*(T_8-T_9)/A_VTK_1140 -> 0
A157: 2015-12-03 | B157: 07:25:00 | C157: =Datum+Uhrzeit -> 2015-12-03T07:25:00 | D157: -0.0332 | E157: 14.525 | F157: 29.3 | G157: 29.3 | H157: 0 | I157: 8.7 | J157: 9.2 | K157: 8.6 | L157: 8.4 | M157: 0 | N157: 0 | O157: 0 | P157: 0 | Q157: 18.3 | R157: 22.4 | S157: 29.1 | T157: 15.2 | U157: 14.9 | V157: 22.2 | W157: 21.4 | X157: 1 | Y157: 60 | Z157: 61.3 | AA157: 30 | AB157: 56.9 | AC157: 57.3 | AD157: 60.2 | AE157: 50 | AF157: =3776*V_5/60*(T_10-T_9)/A_Kollektorfeld -> 0 | AG157: =4128*V_7/60*(T_14-T_13) -> -20.64 | AH157: =4128/60*V_9*(T_19-T_11) -> 1376 | AI157: =Q_SZ+Q_TW_solar-Qpkt_KF_spez -> 1355.36 | AJ157: =4128/60*V_6*(T_18-T_17) -> 2683.2 | AK157: =4128/60*V_9*(T_20-T_19) -> 9976 | AL157: =3776*V_1/60*(T_2-T_9)/A_LBHTAR -> 0 | AM157: =3776*V_2/60*(T_4-T_9)/A_LBHT -> 0 | AN157: =3776*V_3/60*(T_6-T_9)/A_VFK_990 -> 0 | AO157: =3776*V_4/60*(T_8-T_9)/A_VTK_1140 -> 0
A158: 2015-12-03 | B158: 07:26:00 | C158: =Datum+Uhrzeit -> 2015-12-03T07:26:00 | D158: -0.0358 | E158: 15.966 | F158: 29.3 | G158: 29.3 | H158: 0 | I158: 8.7 | J158: 9.2 | K158: 8.6 | L158: 8.4 | M158: 0 | N158: 0 | O158: 0 | P158: 0 | Q158: 18.3 | R158: 22.4 | S158: 29.1 | T158: 15.2 | U158: 15 | V158: 22.2 | W158: 21.3 | X158: 0 | Y158: 60 | Z158: 61.1 | AA158: 20 | AB158: 56.6 | AC158: 57.1 | AD158: 60 | AE158: 40 | AF158: =3776*V_5/60*(T_10-T_9)/A_Kollektorfeld -> 0 | AG158: =4128*V_7/60*(T_14-T_13) -> 0 | AH158: =4128/60*V_9*(T_19-T_11) -> 1376 | AI158: =Q_SZ+Q_TW_solar-Qpkt_KF_spez -> 1376 | AJ158: =4128/60*V_6*(T_18-T_17) -> 1513.6 | AK158: =4128/60*V_9*(T_20-T_19) -> 7980.8 | AL158: =3776*V_1/60*(T_2-T_9)/A_LBHTAR -> 0 | AM158: =3776*V_2/60*(T_4-T_9)/A_LBHT -> 0 | AN158: =3776*V_3/60*(T_6-T_9)/A_VFK_990 -> 0 | AO158: =3776*V_4/60*(T_8-T_9)/A_VTK_1140 -> 0
A159: 2015-12-03 | B159: 07:27:00 | C159: =Datum+Uhrzeit -> 2015-12-03T07:27:00 | D159: -0.0331 | E159: 14.957 | F159: 29.3 | G159: 29.3 | H159: 0 | I159: 8.7 | J159: 9.2 | K159: 8.6 | L159: 8.4 | M159: 0 | N159: 0 | O159: 0 | P159: 0 | Q159: 18.3 | R159: 22.4 | S159: 29.1 | T159: 15.3 | U159: 15 | V159: 22.2 | W159: 21.3 | X159: 1 | Y159: 60.1 | Z159: 61 | AA159: 30 | AB159: 56.5 | AC159: 56.8 | AD159: 59.8 | AE159: 50 | AF159: =3776*V_5/60*(T_10-T_9)/A_Kollektorfeld -> 0 | AG159: =4128*V_7/60*(T_14-T_13) -> -20.64 | AH159: =4128/60*V_9*(T_19-T_11) -> 1032 | AI159: =Q_SZ+Q_TW_solar-Qpkt_KF_spez -> 1011.36 | AJ159: =4128/60*V_6*(T_18-T_17) -> 1857.6 | AK159: =4128/60*V_9*(T_20-T_19) -> 10320 | AL159: =3776*V_1/60*(T_2-T_9)/A_LBHTAR -> 0 | AM159: =3776*V_2/60*(T_4-T_9)/A_LBHT -> 0 | AN159: =3776*V_3/60*(T_6-T_9)/A_VFK_990 -> 0 | AO159: =3776*V_4/60*(T_8-T_9)/A_VTK_1140 -> 0
A160: 2015-12-03 | B160: 07:28:00 | C160: =Datum+Uhrzeit -> 2015-12-03T07:28:00 | D160: -0.0307 | E160: 12.867 | F160: 29.3 | G160: 29.3 | H160: 0 | I160: 8.7 | J160: 9.2 | K160: 8.6 | L160: 8.4 | M160: 0 | N160: 0 | O160: 0 | P160: 0 | Q160: 18.3 | R160: 22.5 | S160: 29.1 | T160: 15.1 | U160: 15 | V160: 22.2 | W160: 21.3 | X160: 5 | Y160: 59.9 | Z160: 60.8 | AA160: 30 | AB160: 56.7 | AC160: 56.8 | AD160: 59.7 | AE160: 50 | AF160: =3776*V_5/60*(T_10-T_9)/A_Kollektorfeld -> 0 | AG160: =4128*V_7/60*(T_14-T_13) -> -34.4 | AH160: =4128/60*V_9*(T_19-T_11) -> 344 | AI160: =Q_SZ+Q_TW_solar-Qpkt_KF_spez -> 309.6 | AJ160: =4128/60*V_6*(T_18-T_17) -> 1857.6 | AK160: =4128/60*V_9*(T_20-T_19) -> 9976 | AL160: =3776*V_1/60*(T_2-T_9)/A_LBHTAR -> 0 | AM160: =3776*V_2/60*(T_4-T_9)/A_LBHT -> 0 | AN160: =3776*V_3/60*(T_6-T_9)/A_VFK_990 -> 0 | AO160: =3776*V_4/60*(T_8-T_9)/A_VTK_1140 -> 0
A161: 2015-12-03 | B161: 07:29:00 | C161: =Datum+Uhrzeit -> 2015-12-03T07:29:00 | D161: -0.0385 | E161: 15.348 | F161: 29.3 | G161: 29.3 | H161: 0 | I161: 8.7 | J161: 9.2 | K161: 8.6 | L161: 8.4 | M161: 0 | N161: 0 | O161: 0 | P161: 0 | Q161: 18.3 | R161: 22.5 | S161: 29.1 | T161: 15.1 | U161: 14.9 | V161: 22.2 | W161: 21.3 | X161: 1 | Y161: 57.8 | Z161: 60.1 | AA161: 30 | AB161: 56.8 | AC161: 57 | AD161: 59.7 | AE161: 40 | AF161: =3776*V_5/60*(T_10-T_9)/A_Kollektorfeld -> 0 | AG161: =4128*V_7/60*(T_14-T_13) -> -13.76 | AH161: =4128/60*V_9*(T_19-T_11) -> 550.4 | AI161: =Q_SZ+Q_TW_solar-Qpkt_KF_spez -> 536.64 | AJ161: =4128/60*V_6*(T_18-T_17) -> 4747.2 | AK161: =4128/60*V_9*(T_20-T_19) -> 7430.4 | AL161: =3776*V_1/60*(T_2-T_9)/A_LBHTAR -> 0 | AM161: =3776*V_2/60*(T_4-T_9)/A_LBHT -> 0 | AN161: =3776*V_3/60*(T_6-T_9)/A_VFK_990 -> 0 | AO161: =3776*V_4/60*(T_8-T_9)/A_VTK_1140 -> 0
A162: 2015-12-03 | B162: 07:30:00 | C162: =Datum+Uhrzeit -> 2015-12-03T07:30:00 | D162: -0.0372 | E162: 14.36 | F162: 29.3 | G162: 29.3 | H162: 0 | I162: 8.7 | J162: 9.2 | K162: 8.6 | L162: 8.4 | M162: 0 | N162: 0 | O162: 0 | P162: 0 | Q162: 18.3 | R162: 22.5 | S162: 29.1 | T162: 15.3 | U162: 15 | V162: 22.2 | W162: 21.3 | X162: 0 | Y162: 59 | Z162: 60 | AA162: 30 | AB162: 56.7 | AC162: 57.1 | AD162: 59.5 | AE162: 50 | AF162: =3776*V_5/60*(T_10-T_9)/A_Kollektorfeld -> 0 | AG162: =4128*V_7/60*(T_14-T_13) -> 0 | AH162: =4128/60*V_9*(T_19-T_11) -> 1376 | AI162: =Q_SZ+Q_TW_solar-Qpkt_KF_spez -> 1376 | AJ162: =4128/60*V_6*(T_18-T_17) -> 2064 | AK162: =4128/60*V_9*(T_20-T_19) -> 8256 | AL162: =3776*V_1/60*(T_2-T_9)/A_LBHTAR -> 0 | AM162: =3776*V_2/60*(T_4-T_9)/A_LBHT -> 0 | AN162: =3776*V_3/60*(T_6-T_9)/A_VFK_990 -> 0 | AO162: =3776*V_4/60*(T_8-T_9)/A_VTK_1140 -> 0
A163: 2015-12-03 | B163: 07:31:00 | C163: =Datum+Uhrzeit -> 2015-12-03T07:31:00 | D163: -0.0372 | E163: 13.423 | F163: 29.3 | G163: 29.3 | H163: 0 | I163: 8.7 | J163: 9.3 | K163: 8.6 | L163: 8.4 | M163: 0 | N163: 0 | O163: 0 | P163: 0 | Q163: 18.3 | R163: 22.5 | S163: 29.1 | T163: 15.3 | U163: 15.1 | V163: 22.2 | W163: 21.3 | X163: 0 | Y163: 59.3 | Z163: 60.3 | AA163: 30 | AB163: 56.5 | AC163: 56.9 | AD163: 59.6 | AE163: 50 | AF163: =3776*V_5/60*(T_10-T_9)/A_Kollektorfeld -> 0 | AG163: =4128*V_7/60*(T_14-T_13) -> 0 | AH163: =4128/60*V_9*(T_19-T_11) -> 1376 | AI163: =Q_SZ+Q_TW_solar-Qpkt_KF_spez -> 1376 | AJ163: =4128/60*V_6*(T_18-T_17) -> 2064 | AK163: =4128/60*V_9*(T_20-T_19) -> 9288 | AL163: =3776*V_1/60*(T_2-T_9)/A_LBHTAR -> 0 | AM163: =3776*V_2/60*(T_4-T_9)/A_LBHT -> 0 | AN163: =3776*V_3/60*(T_6-T_9)/A_VFK_990 -> 0 | AO163: =3776*V_4/60*(T_8-T_9)/A_VTK_1140 -> 0
A164: 2015-12-03 | B164: 07:32:00 | C164: =Datum+Uhrzeit -> 2015-12-03T07:32:00 | D164: -0.0396 | E164: 12.485 | F164: 29.3 | G164: 29.3 | H164: 0 | I164: 8.7 | J164: 9.3 | K164: 8.6 | L164: 8.4 | M164: 0 | N164: 0 | O164: 0 | P164: 0 | Q164: 18.3 | R164: 22.5 | S164: 29.1 | T164: 15.4 | U164: 15.1 | V164: 22.1 | W164: 21.2 | X164: 2 | Y164: 59.6 | Z164: 60.6 | AA164: 30 | AB164: 56.4 | AC164: 56.7 | AD164: 59.8 | AE164: 40 | AF164: =3776*V_5/60*(T_10-T_9)/A_Kollektorfeld -> 0 | AG164: =4128*V_7/60*(T_14-T_13) -> -41.28 | AH164: =4128/60*V_9*(T_19-T_11) -> 825.6 | AI164: =Q_SZ+Q_TW_solar-Qpkt_KF_spez -> 784.32 | AJ164: =4128/60*V_6*(T_18-T_17) -> 2064 | AK164: =4128/60*V_9*(T_20-T_19) -> 8531.2 | AL164: =3776*V_1/60*(T_2-T_9)/A_LBHTAR -> 0 | AM164: =3776*V_2/60*(T_4-T_9)/A_LBHT -> 0 | AN164: =3776*V_3/60*(T_6-T_9)/A_VFK_990 -> 0 | AO164: =3776*V_4/60*(T_8-T_9)/A_VTK_1140 -> 0
A165: 2015-12-03 | B165: 07:33:00 | C165: =Datum+Uhrzeit -> 2015-12-03T07:33:00 | D165: -0.0358 | E165: 12.795 | F165: 29.3 | G165: 29.3 | H165: 0 | I165: 8.7 | J165: 9.3 | K165: 8.6 | L165: 8.4 | M165: 0 | N165: 0 | O165: 0 | P165: 0 | Q165: 18.3 | R165: 22.5 | S165: 29.1 | T165: 15.5 | U165: 15.1 | V165: 22.1 | W165: 21.2 | X165: 0 | Y165: 59.1 | Z165: 60.7 | AA165: 30 | AB165: 56.4 | AC165: 56.7 | AD165: 59.9 | AE165: 50 | AF165: =3776*V_5/60*(T_10-T_9)/A_Kollektorfeld -> 0 | AG165: =4128*V_7/60*(T_14-T_13) -> 0 | AH165: =4128/60*V_9*(T_19-T_11) -> 1032 | AI165: =Q_SZ+Q_TW_solar-Qpkt_KF_spez -> 1032 | AJ165: =4128/60*V_6*(T_18-T_17) -> 3302.4 | AK165: =4128/60*V_9*(T_20-T_19) -> 11008 | AL165: =3776*V_1/60*(T_2-T_9)/A_LBHTAR -> 0 | AM165: =3776*V_2/60*(T_4-T_9)/A_LBHT -> 0 | AN165: =3776*V_3/60*(T_6-T_9)/A_VFK_990 -> 0 | AO165: =3776*V_4/60*(T_8-T_9)/A_VTK_1140 -> 0
A166: 2015-12-03 | B166: 07:34:00 | C166: =Datum+Uhrzeit -> 2015-12-03T07:34:00 | D166: -0.0294 | E166: 15.461 | F166: 29.3 | G166: 29.3 | H166: 0 | I166: 8.7 | J166: 9.3 | K166: 8.6 | L166: 8.4 | M166: 0 | N166: 0 | O166: 0 | P166: 0 | Q166: 18.3 | R166: 22.5 | S166: 29.1 | T166: 15.6 | U166: 15.2 | V166: 22.1 | W166: 21.2 | X166: 0 | Y166: 59.6 | Z166: 60.6 | AA166: 20 | AB166: 56.4 | AC166: 56.6 | AD166: 59.8 | AE166: 50 | AF166: =3776*V_5/60*(T_10-T_9)/A_Kollektorfeld -> 0 | AG166: =4128*V_7/60*(T_14-T_13) -> 0 | AH166: =4128/60*V_9*(T_19-T_11) -> 688 | AI166: =Q_SZ+Q_TW_solar-Qpkt_KF_spez -> 688 | AJ166: =4128/60*V_6*(T_18-T_17) -> 1376 | AK166: =4128/60*V_9*(T_20-T_19) -> 11008 | AL166: =3776*V_1/60*(T_2-T_9)/A_LBHTAR -> 0 | AM166: =3776*V_2/60*(T_4-T_9)/A_LBHT -> 0 | AN166: =3776*V_3/60*(T_6-T_9)/A_VFK_990 -> 0 | AO166: =3776*V_4/60*(T_8-T_9)/A_VTK_1140 -> 0
A167: 2015-12-03 | B167: 07:35:00 | C167: =Datum+Uhrzeit -> 2015-12-03T07:35:00 | D167: -0.0474 | E167: 12.651 | F167: 29.3 | G167: 29.3 | H167: 0 | I167: 8.7 | J167: 9.3 | K167: 8.7 | L167: 8.4 | M167: 0 | N167: 0 | O167: 0 | P167: 0 | Q167: 18.3 | R167: 22.5 | S167: 29.1 | T167: 15.6 | U167: 15.3 | V167: 22.1 | W167: 21.2 | X167: 0 | Y167: 59.6 | Z167: 60.6 | AA167: 30 | AB167: 56.3 | AC167: 56.6 | AD167: 59.7 | AE167: 40 | AF167: =3776*V_5/60*(T_10-T_9)/A_Kollektorfeld -> 0 | AG167: =4128*V_7/60*(T_14-T_13) -> 0 | AH167: =4128/60*V_9*(T_19-T_11) -> 825.6 | AI167: =Q_SZ+Q_TW_solar-Qpkt_KF_spez -> 825.6 | AJ167: =4128/60*V_6*(T_18-T_17) -> 2064 | AK167: =4128/60*V_9*(T_20-T_19) -> 8531.2 | AL167: =3776*V_1/60*(T_2-T_9)/A_LBHTAR -> 0 | AM167: =3776*V_2/60*(T_4-T_9)/A_LBHT -> 0 | AN167: =3776*V_3/60*(T_6-T_9)/A_VFK_990 -> 0 | AO167: =3776*V_4/60*(T_8-T_9)/A_VTK_1140 -> 0
A168: 2015-12-03 | B168: 07:36:00 | C168: =Datum+Uhrzeit -> 2015-12-03T07:36:00 | D168: -0.0294 | E168: 14.021 | F168: 29.3 | G168: 29.3 | H168: 0 | I168: 8.7 | J168: 9.3 | K168: 8.7 | L168: 8.4 | M168: 0 | N168: 0 | O168: 0 | P168: 0 | Q168: 18.3 | R168: 22.5 | S168: 29.1 | T168: 15.6 | U168: 15.3 | V168: 22.1 | W168: 21.2 | X168: 1 | Y168: 59.8 | Z168: 60.6 | AA168: 30 | AB168: 56.1 | AC168: 56.5 | AD168: 59.6 | AE168: 50 | AF168: =3776*V_5/60*(T_10-T_9)/A_Kollektorfeld -> 0 | AG168: =4128*V_7/60*(T_14-T_13) -> -20.64 | AH168: =4128/60*V_9*(T_19-T_11) -> 1376 | AI168: =Q_SZ+Q_TW_solar-Qpkt_KF_spez -> 1355.36 | AJ168: =4128/60*V_6*(T_18-T_17) -> 1651.2 | AK168: =4128/60*V_9*(T_20-T_19) -> 10664 | AL168: =3776*V_1/60*(T_2-T_9)/A_LBHTAR -> 0 | AM168: =3776*V_2/60*(T_4-T_9)/A_LBHT -> 0 | AN168: =3776*V_3/60*(T_6-T_9)/A_VFK_990 -> 0 | AO168: =3776*V_4/60*(T_8-T_9)/A_VTK_1140 -> 0
A169: 2015-12-03 | B169: 07:37:00 | C169: =Datum+Uhrzeit -> 2015-12-03T07:37:00 | D169: -0.0306 | E169: 14.648 | F169: 29.3 | G169: 29.3 | H169: 0 | I169: 8.7 | J169: 9.4 | K169: 8.7 | L169: 8.4 | M169: 0 | N169: 0 | O169: 0 | P169: 0 | Q169: 18.3 | R169: 22.5 | S169: 29.1 | T169: 15.5 | U169: 15.4 | V169: 22.1 | W169: 21.1 | X169: 0 | Y169: 59.8 | Z169: 60.6 | AA169: 30 | AB169: 56.1 | AC169: 56.3 | AD169: 59.5 | AE169: 50 | AF169: =3776*V_5/60*(T_10-T_9)/A_Kollektorfeld -> 0 | AG169: =4128*V_7/60*(T_14-T_13) -> 0 | AH169: =4128/60*V_9*(T_19-T_11) -> 688 | AI169: =Q_SZ+Q_TW_solar-Qpkt_KF_spez -> 688 | AJ169: =4128/60*V_6*(T_18-T_17) -> 1651.2 | AK169: =4128/60*V_9*(T_20-T_19) -> 11008 | AL169: =3776*V_1/60*(T_2-T_9)/A_LBHTAR -> 0 | AM169: =3776*V_2/60*(T_4-T_9)/A_LBHT -> 0 | AN169: =3776*V_3/60*(T_6-T_9)/A_VFK_990 -> 0 | AO169: =3776*V_4/60*(T_8-T_9)/A_VTK_1140 -> 0
A170: 2015-12-03 | B170: 07:38:00 | C170: =Datum+Uhrzeit -> 2015-12-03T07:38:00 | D170: -0.0333 | E170: 15.204 | F170: 29.3 | G170: 29.3 | H170: 0 | I170: 8.7 | J170: 9.4 | K170: 8.7 | L170: 8.4 | M170: 0 | N170: 0 | O170: 0 | P170: 0 | Q170: 18.3 | R170: 22.5 | S170: 29.1 | T170: 15.5 | U170: 15.4 | V170: 22.1 | W170: 21.1 | X170: 22 | Y170: 55.5 | Z170: 60.5 | AA170: 30 | AB170: 56 | AC170: 56.3 | AD170: 59.6 | AE170: 40 | AF170: =3776*V_5/60*(T_10-T_9)/A_Kollektorfeld -> 0 | AG170: =4128*V_7/60*(T_14-T_13) -> -151.36 | AH170: =4128/60*V_9*(T_19-T_11) -> 825.6 | AI170: =Q_SZ+Q_TW_solar-Qpkt_KF_spez -> 674.24 | AJ170: =4128/60*V_6*(T_18-T_17) -> 10320 | AK170: =4128/60*V_9*(T_20-T_19) -> 9081.6 | AL170: =3776*V_1/60*(T_2-T_9)/A_LBHTAR -> 0 | AM170: =3776*V_2/60*(T_4-T_9)/A_LBHT -> 0 | AN170: =3776*V_3/60*(T_6-T_9)/A_VFK_990 -> 0 | AO170: =3776*V_4/60*(T_8-T_9)/A_VTK_1140 -> 0
A171: 2015-12-03 | B171: 07:39:00 | C171: =Datum+Uhrzeit -> 2015-12-03T07:39:00 | D171: -0.0331 | E171: 14.978 | F171: 29.3 | G171: 29.3 | H171: 0 | I171: 8.7 | J171: 9.4 | K171: 8.7 | L171: 8.4 | M171: 0 | N171: 0 | O171: 0 | P171: 0 | Q171: 18.3 | R171: 22.5 | S171: 29 | T171: 14.8 | U171: 15.2 | V171: 22.1 | W171: 21.1 | X171: 31 | Y171: 41.5 | Z171: 54.9 | AA171: 30 | AB171: 56 | AC171: 56.3 | AD171: 58.9 | AE171: 50 | AF171: =3776*V_5/60*(T_10-T_9)/A_Kollektorfeld -> 0 | AG171: =4128*V_7/60*(T_14-T_13) -> 853.12 | AH171: =4128/60*V_9*(T_19-T_11) -> 1032 | AI171: =Q_SZ+Q_TW_solar-Qpkt_KF_spez -> 1885.12 | AJ171: =4128/60*V_6*(T_18-T_17) -> 27657.6 | AK171: =4128/60*V_9*(T_20-T_19) -> 8944 | AL171: =3776*V_1/60*(T_2-T_9)/A_LBHTAR -> 0 | AM171: =3776*V_2/60*(T_4-T_9)/A_LBHT -> 0 | AN171: =3776*V_3/60*(T_6-T_9)/A_VFK_990 -> 0 | AO171: =3776*V_4/60*(T_8-T_9)/A_VTK_1140 -> 0
A172: 2015-12-03 | B172: 07:40:00 | C172: =Datum+Uhrzeit -> 2015-12-03T07:40:00 | D172: -0.0282 | E172: 13.805 | F172: 29.3 | G172: 29.3 | H172: 0 | I172: 8.7 | J172: 9.4 | K172: 8.7 | L172: 8.4 | M172: 0 | N172: 0 | O172: 0 | P172: 0 | Q172: 18.3 | R172: 22.5 | S172: 29.1 | T172: 14.7 | U172: 14.9 | V172: 22 | W172: 21.1 | X172: 0 | Y172: 44.4 | Z172: 53 | AA172: 30 | AB172: 56 | AC172: 56.3 | AD172: 58.6 | AE172: 50 | AF172: =3776*V_5/60*(T_10-T_9)/A_Kollektorfeld -> 0 | AG172: =4128*V_7/60*(T_14-T_13) -> 0 | AH172: =4128/60*V_9*(T_19-T_11) -> 1032 | AI172: =Q_SZ+Q_TW_solar-Qpkt_KF_spez -> 1032 | AJ172: =4128/60*V_6*(T_18-T_17) -> 17750.4 | AK172: =4128/60*V_9*(T_20-T_19) -> 7912 | AL172: =3776*V_1/60*(T_2-T_9)/A_LBHTAR -> 0 | AM172: =3776*V_2/60*(T_4-T_9)/A_LBHT -> 0 | AN172: =3776*V_3/60*(T_6-T_9)/A_VFK_990 -> 0 | AO172: =3776*V_4/60*(T_8-T_9)/A_VTK_1140 -> 0
A173: 2015-12-03 | B173: 07:41:00 | C173: =Datum+Uhrzeit -> 2015-12-03T07:41:00 | D173: -0.0307 | E173: 14.854 | F173: 29.3 | G173: 29.3 | H173: 0 | I173: 8.7 | J173: 9.4 | K173: 8.7 | L173: 8.4 | M173: 0 | N173: 0 | O173: 0 | P173: 0 | Q173: 18.3 | R173: 22.5 | S173: 29.1 | T173: 14.9 | U173: 15 | V173: 22 | W173: 21.1 | X173: 0 | Y173: 44.7 | Z173: 60.6 | AA173: 30 | AB173: 56 | AC173: 56.2 | AD173: 67.2 | AE173: 40 | AF173: =3776*V_5/60*(T_10-T_9)/A_Kollektorfeld -> 0 | AG173: =4128*V_7/60*(T_14-T_13) -> 0 | AH173: =4128/60*V_9*(T_19-T_11) -> 550.4 | AI173: =Q_SZ+Q_TW_solar-Qpkt_KF_spez -> 550.4 | AJ173: =4128/60*V_6*(T_18-T_17) -> 32817.6 | AK173: =4128/60*V_9*(T_20-T_19) -> 30272 | AL173: =3776*V_1/60*(T_2-T_9)/A_LBHTAR -> 0 | AM173: =3776*V_2/60*(T_4-T_9)/A_LBHT -> 0 | AN173: =3776*V_3/60*(T_6-T_9)/A_VFK_990 -> 0 | AO173: =3776*V_4/60*(T_8-T_9)/A_VTK_1140 -> 0
A174: 2015-12-03 | B174: 07:42:00 | C174: =Datum+Uhrzeit -> 2015-12-03T07:42:00 | D174: -0.033 | E174: 15.083 | F174: 29.3 | G174: 29.3 | H174: 0 | I174: 8.7 | J174: 9.5 | K174: 8.7 | L174: 8.4 | M174: 0 | N174: 0 | O174: 0 | P174: 0 | Q174: 18.3 | R174: 22.5 | S174: 29.1 | T174: 14.9 | U174: 15 | V174: 22 | W174: 21.1 | X174: 0 | Y174: 49.9 | Z174: 72.6 | AA174: 20 | AB174: 56 | AC174: 56.2 | AD174: 74 | AE174: 50 | AF174: =3776*V_5/60*(T_10-T_9)/A_Kollektorfeld -> 0 | AG174: =4128*V_7/60*(T_14-T_13) -> 0 | AH174: =4128/60*V_9*(T_19-T_11) -> 688 | AI174: =Q_SZ+Q_TW_solar-Qpkt_KF_spez -> 688 | AJ174: =4128/60*V_6*(T_18-T_17) -> 31235.2 | AK174: =4128/60*V_9*(T_20-T_19) -> 61232 | AL174: =3776*V_1/60*(T_2-T_9)/A_LBHTAR -> 0 | AM174: =3776*V_2/60*(T_4-T_9)/A_LBHT -> 0 | AN174: =3776*V_3/60*(T_6-T_9)/A_VFK_990 -> 0 | AO174: =3776*V_4/60*(T_8-T_9)/A_VTK_1140 -> 0
A175: 2015-12-03 | B175: 07:43:00 | C175: =Datum+Uhrzeit -> 2015-12-03T07:43:00 | D175: -0.0316 | E175: 13.651 | F175: 29.3 | G175: 29.3 | H175: 0 | I175: 8.7 | J175: 9.5 | K175: 8.7 | L175: 8.4 | M175: 0 | N175: 0 | O175: 0 | P175: 0 | Q175: 18.3 | R175: 22.5 | S175: 29.1 | T175: 14.9 | U175: 15.1 | V175: 22 | W175: 21 | X175: 0 | Y175: 54.4 | Z175: 65.1 | AA175: 30 | AB175: 55.9 | AC175: 56.2 | AD175: 63.1 | AE175: 50 | AF175: =3776*V_5/60*(T_10-T_9)/A_Kollektorfeld -> 0 | AG175: =4128*V_7/60*(T_14-T_13) -> 0 | AH175: =4128/60*V_9*(T_19-T_11) -> 1032 | AI175: =Q_SZ+Q_TW_solar-Qpkt_KF_spez -> 1032 | AJ175: =4128/60*V_6*(T_18-T_17) -> 22084.8 | AK175: =4128/60*V_9*(T_20-T_19) -> 23736 | AL175: =3776*V_1/60*(T_2-T_9)/A_LBHTAR -> 0 | AM175: =3776*V_2/60*(T_4-T_9)/A_LBHT -> 0 | AN175: =3776*V_3/60*(T_6-T_9)/A_VFK_990 -> 0 | AO175: =3776*V_4/60*(T_8-T_9)/A_VTK_1140 -> 0
A176: 2015-12-03 | B176: 07:44:00 | C176: =Datum+Uhrzeit -> 2015-12-03T07:44:00 | D176: -0.0316 | E176: 13.127 | F176: 29.3 | G176: 29.3 | H176: 0 | I176: 8.7 | J176: 9.5 | K176: 8.7 | L176: 8.4 | M176: 0 | N176: 0 | O176: 0 | P176: 0 | Q176: 18.3 | R176: 22.5 | S176: 29.1 | T176: 14.9 | U176: 15.1 | V176: 22 | W176: 21 | X176: 0 | Y176: 57.1 | Z176: 58.6 | AA176: 30 | AB176: 55.9 | AC176: 56.1 | AD176: 58.3 | AE176: 40 | AF176: =3776*V_5/60*(T_10-T_9)/A_Kollektorfeld -> 0 | AG176: =4128*V_7/60*(T_14-T_13) -> 0 | AH176: =4128/60*V_9*(T_19-T_11) -> 550.4 | AI176: =Q_SZ+Q_TW_solar-Qpkt_KF_spez -> 550.4 | AJ176: =4128/60*V_6*(T_18-T_17) -> 3096 | AK176: =4128/60*V_9*(T_20-T_19) -> 6054.4 | AL176: =3776*V_1/60*(T_2-T_9)/A_LBHTAR -> 0 | AM176: =3776*V_2/60*(T_4-T_9)/A_LBHT -> 0 | AN176: =3776*V_3/60*(T_6-T_9)/A_VFK_990 -> 0 | AO176: =3776*V_4/60*(T_8-T_9)/A_VTK_1140 -> 0
A177: 2015-12-03 | B177: 07:45:00 | C177: =Datum+Uhrzeit -> 2015-12-03T07:45:00 | D177: -0.0252 | E177: 14.991 | F177: 29.3 | G177: 29.3 | H177: 0 | I177: 8.7 | J177: 9.5 | K177: 8.7 | L177: 8.4 | M177: 0 | N177: 0 | O177: 0 | P177: 0 | Q177: 18.3 | R177: 22.5 | S177: 29.1 | T177: 15 | U177: 15.1 | V177: 22 | W177: 21 | X177: 1 | Y177: 58 | Z177: 59.3 | AA177: 30 | AB177: 55.8 | AC177: 56.1 | AD177: 58.9 | AE177: 50 | AF177: =3776*V_5/60*(T_10-T_9)/A_Kollektorfeld -> 0 | AG177: =4128*V_7/60*(T_14-T_13) -> 6.88 | AH177: =4128/60*V_9*(T_19-T_11) -> 1032 | AI177: =Q_SZ+Q_TW_solar-Qpkt_KF_spez -> 1038.88 | AJ177: =4128/60*V_6*(T_18-T_17) -> 2683.2 | AK177: =4128/60*V_9*(T_20-T_19) -> 9632 | AL177: =3776*V_1/60*(T_2-T_9)/A_LBHTAR -> 0 | AM177: =3776*V_2/60*(T_4-T_9)/A_LBHT -> 0 | AN177: =3776*V_3/60*(T_6-T_9)/A_VFK_990 -> 0 | AO177: =3776*V_4/60*(T_8-T_9)/A_VTK_1140 -> 0
A178: 2015-12-03 | B178: 07:46:00 | C178: =Datum+Uhrzeit -> 2015-12-03T07:46:00 | D178: -0.0264 | E178: 14.794 | F178: 29.3 | G178: 29.3 | H178: 0 | I178: 8.7 | J178: 9.5 | K178: 8.7 | L178: 8.4 | M178: 0 | N178: 0 | O178: 0 | P178: 0 | Q178: 18.3 | R178: 22.5 | S178: 29.1 | T178: 14.8 | U178: 15.1 | V178: 22 | W178: 20.9 | X178: 3 | Y178: 57.9 | Z178: 61.1 | AA178: 30 | AB178: 55.8 | AC178: 56.1 | AD178: 60.4 | AE178: 50 | AF178: =3776*V_5/60*(T_10-T_9)/A_Kollektorfeld -> 0 | AG178: =4128*V_7/60*(T_14-T_13) -> 61.92 | AH178: =4128/60*V_9*(T_19-T_11) -> 1032 | AI178: =Q_SZ+Q_TW_solar-Qpkt_KF_spez -> 1093.92 | AJ178: =4128/60*V_6*(T_18-T_17) -> 6604.8 | AK178: =4128/60*V_9*(T_20-T_19) -> 14792 | AL178: =3776*V_1/60*(T_2-T_9)/A_LBHTAR -> 0 | AM178: =3776*V_2/60*(T_4-T_9)/A_LBHT -> 0 | AN178: =3776*V_3/60*(T_6-T_9)/A_VFK_990 -> 0 | AO178: =3776*V_4/60*(T_8-T_9)/A_VTK_1140 -> 0
A179: 2015-12-03 | B179: 07:47:00 | C179: =Datum+Uhrzeit -> 2015-12-03T07:47:00 | D179: -0.0226 | E179: 13.323 | F179: 29.3 | G179: 29.3 | H179: 0 | I179: 8.7 | J179: 9.5 | K179: 8.7 | L179: 8.4 | M179: 0 | N179: 0 | O179: 0 | P179: 0 | Q179: 18.3 | R179: 22.5 | S179: 29.1 | T179: 14.9 | U179: 15.2 | V179: 22 | W179: 20.9 | X179: 0 | Y179: 57.9 | Z179: 61.2 | AA179: 30 | AB179: 55.8 | AC179: 56 | AD179: 60.8 | AE179: 40 | AF179: =3776*V_5/60*(T_10-T_9)/A_Kollektorfeld -> 0 | AG179: =4128*V_7/60*(T_14-T_13) -> 0 | AH179: =4128/60*V_9*(T_19-T_11) -> 550.4 | AI179: =Q_SZ+Q_TW_solar-Qpkt_KF_spez -> 550.4 | AJ179: =4128/60*V_6*(T_18-T_17) -> 6811.2 | AK179: =4128/60*V_9*(T_20-T_19) -> 13209.6 | AL179: =3776*V_1/60*(T_2-T_9)/A_LBHTAR -> 0 | AM179: =3776*V_2/60*(T_4-T_9)/A_LBHT -> 0 | AN179: =3776*V_3/60*(T_6-T_9)/A_VFK_990 -> 0 | AO179: =3776*V_4/60*(T_8-T_9)/A_VTK_1140 -> 0
A180: 2015-12-03 | B180: 07:48:00 | C180: =Datum+Uhrzeit -> 2015-12-03T07:48:00 | D180: -0.0124 | E180: 15.763 | F180: 29.3 | G180: 29.3 | H180: 0 | I180: 8.7 | J180: 9.5 | K180: 8.7 | L180: 8.3 | M180: 0 | N180: 0 | O180: 0 | P180: 0 | Q180: 18.3 | R180: 22.5 | S180: 29 | T180: 15 | U180: 15.2 | V180: 21.9 | W180: 20.9 | X180: 1 | Y180: 58.6 | Z180: 61.5 | AA180: 30 | AB180: 55.8 | AC180: 56 | AD180: 60.8 | AE180: 50 | AF180: =3776*V_5/60*(T_10-T_9)/A_Kollektorfeld -> 0 | AG180: =4128*V_7/60*(T_14-T_13) -> 13.76 | AH180: =4128/60*V_9*(T_19-T_11) -> 688 | AI180: =Q_SZ+Q_TW_solar-Qpkt_KF_spez -> 701.76 | AJ180: =4128/60*V_6*(T_18-T_17) -> 5985.6 | AK180: =4128/60*V_9*(T_20-T_19) -> 16512 | AL180: =3776*V_1/60*(T_2-T_9)/A_LBHTAR -> 0 | AM180: =3776*V_2/60*(T_4-T_9)/A_LBHT -> 0 | AN180: =3776*V_3/60*(T_6-T_9)/A_VFK_990 -> 0 | AO180: =3776*V_4/60*(T_8-T_9)/A_VTK_1140 -> 0
A181: 2015-12-03 | B181: 07:49:00 | C181: =Datum+Uhrzeit -> 2015-12-03T07:49:00 | D181: -0.0021 | E181: 17.254 | F181: 29.3 | G181: 29.3 | H181: 0 | I181: 8.7 | J181: 9.5 | K181: 8.7 | L181: 8.3 | M181: 0 | N181: 0 | O181: 0 | P181: 0 | Q181: 18.3 | R181: 22.5 | S181: 29.1 | T181: 14.9 | U181: 15.2 | V181: 21.9 | W181: 20.9 | X181: 0 | Y181: 58.9 | Z181: 61.6 | AA181: 30 | AB181: 55.7 | AC181: 56 | AD181: 60.7 | AE181: 50 | AF181: =3776*V_5/60*(T_10-T_9)/A_Kollektorfeld -> 0 | AG181: =4128*V_7/60*(T_14-T_13) -> 0 | AH181: =4128/60*V_9*(T_19-T_11) -> 1032 | AI181: =Q_SZ+Q_TW_solar-Qpkt_KF_spez -> 1032 | AJ181: =4128/60*V_6*(T_18-T_17) -> 5572.8 | AK181: =4128/60*V_9*(T_20-T_19) -> 16168 | AL181: =3776*V_1/60*(T_2-T_9)/A_LBHTAR -> 0 | AM181: =3776*V_2/60*(T_4-T_9)/A_LBHT -> 0 | AN181: =3776*V_3/60*(T_6-T_9)/A_VFK_990 -> 0 | AO181: =3776*V_4/60*(T_8-T_9)/A_VTK_1140 -> 0
A182: 2015-12-03 | B182: 07:50:00 | C182: =Datum+Uhrzeit -> 2015-12-03T07:50:00 | D182: 0.0084 | E182: 15.598 | F182: 29.3 | G182: 29.3 | H182: 0 | I182: 8.7 | J182: 9.6 | K182: 8.7 | L182: 8.3 | M182: 0 | N182: 0 | O182: 0 | P182: 0 | Q182: 18.3 | R182: 22.5 | S182: 29.1 | T182: 15 | U182: 15.2 | V182: 21.9 | W182: 20.9 | X182: 0 | Y182: 59.2 | Z182: 61.4 | AA182: 20 | AB182: 55.6 | AC182: 55.9 | AD182: 60.3 | AE182: 40 | AF182: =3776*V_5/60*(T_10-T_9)/A_Kollektorfeld -> 0 | AG182: =4128*V_7/60*(T_14-T_13) -> 0 | AH182: =4128/60*V_9*(T_19-T_11) -> 825.6 | AI182: =Q_SZ+Q_TW_solar-Qpkt_KF_spez -> 825.6 | AJ182: =4128/60*V_6*(T_18-T_17) -> 3027.2 | AK182: =4128/60*V_9*(T_20-T_19) -> 12108.8 | AL182: =3776*V_1/60*(T_2-T_9)/A_LBHTAR -> 0 | AM182: =3776*V_2/60*(T_4-T_9)/A_LBHT -> 0 | AN182: =3776*V_3/60*(T_6-T_9)/A_VFK_990 -> 0 | AO182: =3776*V_4/60*(T_8-T_9)/A_VTK_1140 -> 0
A183: 2015-12-03 | B183: 07:51:00 | C183: =Datum+Uhrzeit -> 2015-12-03T07:51:00 | D183: 0.02 | E183: 10.027 | F183: 29.3 | G183: 29.3 | H183: 0 | I183: 8.7 | J183: 9.6 | K183: 8.7 | L183: 8.3 | M183: 0 | N183: 0 | O183: 0 | P183: 0 | Q183: 18.3 | R183: 22.5 | S183: 29.1 | T183: 15 | U183: 15.2 | V183: 21.9 | W183: 20.8 | X183: 3 | Y183: 59.4 | Z183: 61.2 | AA183: 30 | AB183: 55.6 | AC183: 55.9 | AD183: 60 | AE183: 50 | AF183: =3776*V_5/60*(T_10-T_9)/A_Kollektorfeld -> 0 | AG183: =4128*V_7/60*(T_14-T_13) -> 41.28 | AH183: =4128/60*V_9*(T_19-T_11) -> 1032 | AI183: =Q_SZ+Q_TW_solar-Qpkt_KF_spez -> 1073.28 | AJ183: =4128/60*V_6*(T_18-T_17) -> 3715.2 | AK183: =4128/60*V_9*(T_20-T_19) -> 14104 | AL183: =3776*V_1/60*(T_2-T_9)/A_LBHTAR -> 0 | AM183: =3776*V_2/60*(T_4-T_9)/A_LBHT -> 0 | AN183: =3776*V_3/60*(T_6-T_9)/A_VFK_990 -> 0 | AO183: =3776*V_4/60*(T_8-T_9)/A_VTK_1140 -> 0
A184: 2015-12-03 | B184: 07:52:00 | C184: =Datum+Uhrzeit -> 2015-12-03T07:52:00 | D184: 0.0419 | E184: 16.339 | F184: 29.3 | G184: 29.3 | H184: 0 | I184: 8.7 | J184: 9.6 | K184: 8.7 | L184: 8.3 | M184: 0 | N184: 0 | O184: 0 | P184: 0 | Q184: 18.3 | R184: 22.5 | S184: 29.1 | T184: 15 | U184: 15.2 | V184: 21.9 | W184: 20.8 | X184: 0 | Y184: 58.5 | Z184: 60.9 | AA184: 30 | AB184: 55.6 | AC184: 55.8 | AD184: 59.9 | AE184: 50 | AF184: =3776*V_5/60*(T_10-T_9)/A_Kollektorfeld -> 0 | AG184: =4128*V_7/60*(T_14-T_13) -> 0 | AH184: =4128/60*V_9*(T_19-T_11) -> 688 | AI184: =Q_SZ+Q_TW_solar-Qpkt_KF_spez -> 688 | AJ184: =4128/60*V_6*(T_18-T_17) -> 4953.6 | AK184: =4128/60*V_9*(T_20-T_19) -> 14104 | AL184: =3776*V_1/60*(T_2-T_9)/A_LBHTAR -> 0 | AM184: =3776*V_2/60*(T_4-T_9)/A_LBHT -> 0 | AN184: =3776*V_3/60*(T_6-T_9)/A_VFK_990 -> 0 | AO184: =3776*V_4/60*(T_8-T_9)/A_VTK_1140 -> 0
A185: 2015-12-03 | B185: 07:53:00 | C185: =Datum+Uhrzeit -> 2015-12-03T07:53:00 | D185: 0.0522 | E185: 1.0556 | F185: 29.3 | G185: 29.3 | H185: 0 | I185: 8.7 | J185: 9.6 | K185: 8.7 | L185: 8.3 | M185: 0 | N185: 0 | O185: 0 | P185: 0 | Q185: 18.3 | R185: 22.5 | S185: 29.1 | T185: 15.1 | U185: 15.1 | V185: 21.9 | W185: 20.8 | X185: 2 | Y185: 58.8 | Z185: 60.6 | AA185: 30 | AB185: 55.7 | AC185: 55.9 | AD185: 59.8 | AE185: 40 | AF185: =3776*V_5/60*(T_10-T_9)/A_Kollektorfeld -> 0 | AG185: =4128*V_7/60*(T_14-T_13) -> 0 | AH185: =4128/60*V_9*(T_19-T_11) -> 550.4 | AI185: =Q_SZ+Q_TW_solar-Qpkt_KF_spez -> 550.4 | AJ185: =4128/60*V_6*(T_18-T_17) -> 3715.2 | AK185: =4128/60*V_9*(T_20-T_19) -> 10732.8 | AL185: =3776*V_1/60*(T_2-T_9)/A_LBHTAR -> 0 | AM185: =3776*V_2/60*(T_4-T_9)/A_LBHT -> 0 | AN185: =3776*V_3/60*(T_6-T_9)/A_VFK_990 -> 0 | AO185: =3776*V_4/60*(T_8-T_9)/A_VTK_1140 -> 0
A186: 2015-12-03 | B186: 07:54:00 | C186: =Datum+Uhrzeit -> 2015-12-03T07:54:00 | D186: 0.0676 | E186: 10.863 | F186: 29.3 | G186: 29.3 | H186: 0 | I186: 8.7 | J186: 9.6 | K186: 8.7 | L186: 8.3 | M186: 0 | N186: 0 | O186: 0 | P186: 0 | Q186: 18.3 | R186: 22.5 | S186: 29.1 | T186: 15.1 | U186: 15.2 | V186: 21.9 | W186: 20.8 | X186: 2 | Y186: 58.9 | Z186: 60.7 | AA186: 30 | AB186: 55.8 | AC186: 55.9 | AD186: 59.9 | AE186: 50 | AF186: =3776*V_5/60*(T_10-T_9)/A_Kollektorfeld -> 0 | AG186: =4128*V_7/60*(T_14-T_13) -> 13.76 | AH186: =4128/60*V_9*(T_19-T_11) -> 344 | AI186: =Q_SZ+Q_TW_solar-Qpkt_KF_spez -> 357.76 | AJ186: =4128/60*V_6*(T_18-T_17) -> 3715.2 | AK186: =4128/60*V_9*(T_20-T_19) -> 13760 | AL186: =3776*V_1/60*(T_2-T_9)/A_LBHTAR -> 0 | AM186: =3776*V_2/60*(T_4-T_9)/A_LBHT -> 0 | AN186: =3776*V_3/60*(T_6-T_9)/A_VFK_990 -> 0 | AO186: =3776*V_4/60*(T_8-T_9)/A_VTK_1140 -> 0
A187: 2015-12-03 | B187: 07:55:00 | C187: =Datum+Uhrzeit -> 2015-12-03T07:55:00 | D187: 0.0792 | E187: 14.351 | F187: 29.2 | G187: 29.3 | H187: 0 | I187: 8.7 | J187: 9.6 | K187: 8.7 | L187: 8.3 | M187: 0 | N187: 0 | O187: 0 | P187: 0 | Q187: 18.3 | R187: 22.5 | S187: 29 | T187: 15.1 | U187: 15.2 | V187: 21.9 | W187: 20.8 | X187: 1 | Y187: 58.9 | Z187: 60.8 | AA187: 30 | AB187: 55.8 | AC187: 56 | AD187: 60.1 | AE187: 50 | AF187: =3776*V_5/60*(T_10-T_9)/A_Kollektorfeld -> 0 | AG187: =4128*V_7/60*(T_14-T_13) -> 6.88 | AH187: =4128/60*V_9*(T_19-T_11) -> 688 | AI187: =Q_SZ+Q_TW_solar-Qpkt_KF_spez -> 694.88 | AJ187: =4128/60*V_6*(T_18-T_17) -> 3921.6 | AK187: =4128/60*V_9*(T_20-T_19) -> 14104 | AL187: =3776*V_1/60*(T_2-T_9)/A_LBHTAR -> 0 | AM187: =3776*V_2/60*(T_4-T_9)/A_LBHT -> 0 | AN187: =3776*V_3/60*(T_6-T_9)/A_VFK_990 -> 0 | AO187: =3776*V_4/60*(T_8-T_9)/A_VTK_1140 -> 0
A188: 2015-12-03 | B188: 07:56:00 | C188: =Datum+Uhrzeit -> 2015-12-03T07:56:00 | D188: 0.0985 | E188: 15.866 | F188: 29.2 | G188: 29.3 | H188: 0 | I188: 8.7 | J188: 9.6 | K188: 8.7 | L188: 8.3 | M188: 0 | N188: 0 | O188: 0 | P188: 0 | Q188: 18.3 | R188: 22.5 | S188: 29.1 | T188: 15.1 | U188: 15.2 | V188: 21.9 | W188: 20.8 | X188: 3 | Y188: 59.3 | Z188: 60.9 | AA188: 30 | AB188: 55.8 | AC188: 56 | AD188: 60 | AE188: 40 | AF188: =3776*V_5/60*(T_10-T_9)/A_Kollektorfeld -> 0 | AG188: =4128*V_7/60*(T_14-T_13) -> 20.64 | AH188: =4128/60*V_9*(T_19-T_11) -> 550.4 | AI188: =Q_SZ+Q_TW_solar-Qpkt_KF_spez -> 571.04 | AJ188: =4128/60*V_6*(T_18-T_17) -> 3302.4 | AK188: =4128/60*V_9*(T_20-T_19) -> 11008 | AL188: =3776*V_1/60*(T_2-T_9)/A_LBHTAR -> 0 | AM188: =3776*V_2/60*(T_4-T_9)/A_LBHT -> 0 | AN188: =3776*V_3/60*(T_6-T_9)/A_VFK_990 -> 0 | AO188: =3776*V_4/60*(T_8-T_9)/A_VTK_1140 -> 0
A189: 2015-12-03 | B189: 07:57:00 | C189: =Datum+Uhrzeit -> 2015-12-03T07:57:00 | D189: 0.1216 | E189: 16.339 | F189: 29.2 | G189: 29.3 | H189: 0 | I189: 8.7 | J189: 9.6 | K189: 8.7 | L189: 8.3 | M189: 0 | N189: 0 | O189: 0 | P189: 0 | Q189: 18.3 | R189: 22.5 | S189: 29.1 | T189: 15.2 | U189: 15.2 | V189: 21.8 | W189: 20.8 | X189: 1 | Y189: 58 | Z189: 60.6 | AA189: 30 | AB189: 55.7 | AC189: 56 | AD189: 60 | AE189: 50 | AF189: =3776*V_5/60*(T_10-T_9)/A_Kollektorfeld -> 0 | AG189: =4128*V_7/60*(T_14-T_13) -> 0 | AH189: =4128/60*V_9*(T_19-T_11) -> 1032 | AI189: =Q_SZ+Q_TW_solar-Qpkt_KF_spez -> 1032 | AJ189: =4128/60*V_6*(T_18-T_17) -> 5366.4 | AK189: =4128/60*V_9*(T_20-T_19) -> 13760 | AL189: =3776*V_1/60*(T_2-T_9)/A_LBHTAR -> 0 | AM189: =3776*V_2/60*(T_4-T_9)/A_LBHT -> 0 | AN189: =3776*V_3/60*(T_6-T_9)/A_VFK_990 -> 0 | AO189: =3776*V_4/60*(T_8-T_9)/A_VTK_1140 -> 0
A190: 2015-12-03 | B190: 07:58:00 | C190: =Datum+Uhrzeit -> 2015-12-03T07:58:00 | D190: 0.137 | E190: 15.485 | F190: 29.2 | G190: 29.3 | H190: 0 | I190: 8.7 | J190: 9.6 | K190: 8.7 | L190: 8.3 | M190: 0 | N190: 0 | O190: 0 | P190: 0 | Q190: 18.3 | R190: 22.5 | S190: 29.1 | T190: 15.2 | U190: 15.2 | V190: 21.8 | W190: 20.7 | X190: 4 | Y190: 58.2 | Z190: 60.5 | AA190: 20 | AB190: 55.6 | AC190: 55.9 | AD190: 59.8 | AE190: 50 | AF190: =3776*V_5/60*(T_10-T_9)/A_Kollektorfeld -> 0 | AG190: =4128*V_7/60*(T_14-T_13) -> 0 | AH190: =4128/60*V_9*(T_19-T_11) -> 1032 | AI190: =Q_SZ+Q_TW_solar-Qpkt_KF_spez -> 1032 | AJ190: =4128/60*V_6*(T_18-T_17) -> 3164.8 | AK190: =4128/60*V_9*(T_20-T_19) -> 13416 | AL190: =3776*V_1/60*(T_2-T_9)/A_LBHTAR -> 0 | AM190: =3776*V_2/60*(T_4-T_9)/A_LBHT -> 0 | AN190: =3776*V_3/60*(T_6-T_9)/A_VFK_990 -> 0 | AO190: =3776*V_4/60*(T_8-T_9)/A_VTK_1140 -> 0
A191: 2015-12-03 | B191: 07:59:00 | C191: =Datum+Uhrzeit -> 2015-12-03T07:59:00 | D191: 0.1576 | E191: 10.122 | F191: 29.2 | G191: 29.3 | H191: 0 | I191: 8.7 | J191: 9.6 | K191: 8.7 | L191: 8.3 | M191: 0 | N191: 0 | O191: 0 | P191: 0 | Q191: 18.3 | R191: 22.5 | S191: 29.1 | T191: 15.4 | U191: 15.2 | V191: 21.8 | W191: 20.7 | X191: 2 | Y191: 56.8 | Z191: 60 | AA191: 30 | AB191: 55.5 | AC191: 55.8 | AD191: 59.8 | AE191: 40 | AF191: =3776*V_5/60*(T_10-T_9)/A_Kollektorfeld -> 0 | AG191: =4128*V_7/60*(T_14-T_13) -> -27.52 | AH191: =4128/60*V_9*(T_19-T_11) -> 825.6 | AI191: =Q_SZ+Q_TW_solar-Qpkt_KF_spez -> 798.08 | AJ191: =4128/60*V_6*(T_18-T_17) -> 6604.8 | AK191: =4128/60*V_9*(T_20-T_19) -> 11008 | AL191: =3776*V_1/60*(T_2-T_9)/A_LBHTAR -> 0 | AM191: =3776*V_2/60*(T_4-T_9)/A_LBHT -> 0 | AN191: =3776*V_3/60*(T_6-T_9)/A_VFK_990 -> 0 | AO191: =3776*V_4/60*(T_8-T_9)/A_VTK_1140 -> 0
A192: 2015-12-03 | B192: 08:00:00 | C192: =Datum+Uhrzeit -> 2015-12-03T08:00:00 | D192: 0.1859 | E192: 15.207 | F192: 29.2 | G192: 29.3 | H192: 0 | I192: 8.7 | J192: 9.6 | K192: 8.7 | L192: 8.3 | M192: 0 | N192: 0 | O192: 0 | P192: 0 | Q192: 18.3 | R192: 22.5 | S192: 29.1 | T192: 15.5 | U192: 15.3 | V192: 21.8 | W192: 20.7 | X192: 0 | Y192: 58.5 | Z192: 60.3 | AA192: 30 | AB192: 55.5 | AC192: 55.8 | AD192: 60 | AE192: 50 | AF192: =3776*V_5/60*(T_10-T_9)/A_Kollektorfeld -> 0 | AG192: =4128*V_7/60*(T_14-T_13) -> 0 | AH192: =4128/60*V_9*(T_19-T_11) -> 1032 | AI192: =Q_SZ+Q_TW_solar-Qpkt_KF_spez -> 1032 | AJ192: =4128/60*V_6*(T_18-T_17) -> 3715.2 | AK192: =4128/60*V_9*(T_20-T_19) -> 14448 | AL192: =3776*V_1/60*(T_2-T_9)/A_LBHTAR -> 0 | AM192: =3776*V_2/60*(T_4-T_9)/A_LBHT -> 0 | AN192: =3776*V_3/60*(T_6-T_9)/A_VFK_990 -> 0 | AO192: =3776*V_4/60*(T_8-T_9)/A_VTK_1140 -> 0
A193: 2015-12-03 | B193: 08:01:00 | C193: =Datum+Uhrzeit -> 2015-12-03T08:01:00 | D193: 0.2308 | E193: 15.938 | F193: 29.2 | G193: 29.3 | H193: 0 | I193: 8.7 | J193: 9.6 | K193: 8.7 | L193: 8.3 | M193: 0 | N193: 0 | O193: 0 | P193: 0 | Q193: 18.3 | R193: 22.5 | S193: 29 | T193: 15.6 | U193: 15.4 | V193: 21.8 | W193: 20.7 | X193: 0 | Y193: 59 | Z193: 61 | AA193: 30 | AB193: 55.5 | AC193: 55.7 | AD193: 60.3 | AE193: 50 | AF193: =3776*V_5/60*(T_10-T_9)/A_Kollektorfeld -> 0 | AG193: =4128*V_7/60*(T_14-T_13) -> 0 | AH193: =4128/60*V_9*(T_19-T_11) -> 688 | AI193: =Q_SZ+Q_TW_solar-Qpkt_KF_spez -> 688 | AJ193: =4128/60*V_6*(T_18-T_17) -> 4128 | AK193: =4128/60*V_9*(T_20-T_19) -> 15824 | AL193: =3776*V_1/60*(T_2-T_9)/A_LBHTAR -> 0 | AM193: =3776*V_2/60*(T_4-T_9)/A_LBHT -> 0 | AN193: =3776*V_3/60*(T_6-T_9)/A_VFK_990 -> 0 | AO193: =3776*V_4/60*(T_8-T_9)/A_VTK_1140 -> 0
A194: 2015-12-03 | B194: 08:02:00 | C194: =Datum+Uhrzeit -> 2015-12-03T08:02:00 | D194: 0.277 | E194: 6.4668 | F194: 29.2 | G194: 29.3 | H194: 0 | I194: 8.7 | J194: 9.6 | K194: 8.7 | L194: 8.3 | M194: 0 | N194: 0 | O194: 0 | P194: 0 | Q194: 18.3 | R194: 22.5 | S194: 29.1 | T194: 15.5 | U194: 15.3 | V194: 21.8 | W194: 20.7 | X194: 1 | Y194: 59.4 | Z194: 61.3 | AA194: 30 | AB194: 55.5 | AC194: 55.7 | AD194: 60.5 | AE194: 40 | AF194: =3776*V_5/60*(T_10-T_9)/A_Kollektorfeld -> 0 | AG194: =4128*V_7/60*(T_14-T_13) -> -13.76 | AH194: =4128/60*V_9*(T_19-T_11) -> 550.4 | AI194: =Q_SZ+Q_TW_solar-Qpkt_KF_spez -> 536.64 | AJ194: =4128/60*V_6*(T_18-T_17) -> 3921.6 | AK194: =4128/60*V_9*(T_20-T_19) -> 13209.6 | AL194: =3776*V_1/60*(T_2-T_9)/A_LBHTAR -> 0 | AM194: =3776*V_2/60*(T_4-T_9)/A_LBHT -> 0 | AN194: =3776*V_3/60*(T_6-T_9)/A_VFK_990 -> 0 | AO194: =3776*V_4/60*(T_8-T_9)/A_VTK_1140 -> 0
A195: 2015-12-03 | B195: 08:03:00 | C195: =Datum+Uhrzeit -> 2015-12-03T08:03:00 | D195: 0.34 | E195: 16.678 | F195: 29.2 | G195: 29.3 | H195: 0 | I195: 8.7 | J195: 9.6 | K195: 8.7 | L195: 8.3 | M195: 0 | N195: 0 | O195: 0 | P195: 0 | Q195: 18.3 | R195: 22.5 | S195: 29.1 | T195: 15.6 | U195: 15.3 | V195: 21.8 | W195: 20.7 | X195: 1 | Y195: 59.4 | Z195: 61.5 | AA195: 30 | AB195: 55.8 | AC195: 55.9 | AD195: 60.6 | AE195: 50 | AF195: =3776*V_5/60*(T_10-T_9)/A_Kollektorfeld -> 0 | AG195: =4128*V_7/60*(T_14-T_13) -> -20.64 | AH195: =4128/60*V_9*(T_19-T_11) -> 344 | AI195: =Q_SZ+Q_TW_solar-Qpkt_KF_spez -> 323.36 | AJ195: =4128/60*V_6*(T_18-T_17) -> 4334.4 | AK195: =4128/60*V_9*(T_20-T_19) -> 16168 | AL195: =3776*V_1/60*(T_2-T_9)/A_LBHTAR -> 0 | AM195: =3776*V_2/60*(T_4-T_9)/A_LBHT -> 0 | AN195: =3776*V_3/60*(T_6-T_9)/A_VFK_990 -> 0 | AO195: =3776*V_4/60*(T_8-T_9)/A_VTK_1140 -> 0
A196: 2015-12-03 | B196: 08:04:00 | C196: =Datum+Uhrzeit -> 2015-12-03T08:04:00 | D196: 0.3914 | E196: 16.38 | F196: 29.2 | G196: 29.3 | H196: 0 | I196: 8.7 | J196: 9.6 | K196: 8.7 | L196: 8.3 | M196: 0 | N196: 0 | O196: 0 | P196: 0 | Q196: 18.3 | R196: 22.5 | S196: 29.1 | T196: 15.7 | U196: 15.4 | V196: 21.8 | W196: 20.7 | X196: 0 | Y196: 59.6 | Z196: 61.6 | AA196: 30 | AB196: 56 | AC196: 56.2 | AD196: 60.8 | AE196: 50 | AF196: =3776*V_5/60*(T_10-T_9)/A_Kollektorfeld -> 0 | AG196: =4128*V_7/60*(T_14-T_13) -> 0 | AH196: =4128/60*V_9*(T_19-T_11) -> 688 | AI196: =Q_SZ+Q_TW_solar-Qpkt_KF_spez -> 688 | AJ196: =4128/60*V_6*(T_18-T_17) -> 4128 | AK196: =4128/60*V_9*(T_20-T_19) -> 15824 | AL196: =3776*V_1/60*(T_2-T_9)/A_LBHTAR -> 0 | AM196: =3776*V_2/60*(T_4-T_9)/A_LBHT -> 0 | AN196: =3776*V_3/60*(T_6-T_9)/A_VFK_990 -> 0 | AO196: =3776*V_4/60*(T_8-T_9)/A_VTK_1140 -> 0
A197: 2015-12-03 | B197: 08:05:00 | C197: =Datum+Uhrzeit -> 2015-12-03T08:05:00 | D197: 0.4428 | E197: 15.701 | F197: 29.2 | G197: 29.3 | H197: 0 | I197: 8.7 | J197: 9.6 | K197: 8.7 | L197: 8.3 | M197: 0 | N197: 0 | O197: 0 | P197: 0 | Q197: 18.3 | R197: 22.5 | S197: 29.1 | T197: 15.7 | U197: 15.4 | V197: 21.8 | W197: 20.7 | X197: 0 | Y197: 59.7 | Z197: 61.6 | AA197: 30 | AB197: 56.1 | AC197: 56.3 | AD197: 60.7 | AE197: 40 | AF197: =3776*V_5/60*(T_10-T_9)/A_Kollektorfeld -> 0 | AG197: =4128*V_7/60*(T_14-T_13) -> 0 | AH197: =4128/60*V_9*(T_19-T_11) -> 550.4 | AI197: =Q_SZ+Q_TW_solar-Qpkt_KF_spez -> 550.4 | AJ197: =4128/60*V_6*(T_18-T_17) -> 3921.6 | AK197: =4128/60*V_9*(T_20-T_19) -> 12108.8 | AL197: =3776*V_1/60*(T_2-T_9)/A_LBHTAR -> 0 | AM197: =3776*V_2/60*(T_4-T_9)/A_LBHT -> 0 | AN197: =3776*V_3/60*(T_6-T_9)/A_VFK_990 -> 0 | AO197: =3776*V_4/60*(T_8-T_9)/A_VTK_1140 -> 0
A198: 2015-12-03 | B198: 08:06:00 | C198: =Datum+Uhrzeit -> 2015-12-03T08:06:00 | D198: 0.4851 | E198: 15.804 | F198: 29.2 | G198: 29.3 | H198: 0 | I198: 8.7 | J198: 9.6 | K198: 8.7 | L198: 8.3 | M198: 0 | N198: 0 | O198: 0 | P198: 0 | Q198: 18.3 | R198: 22.5 | S198: 29 | T198: 15.8 | U198: 15.5 | V198: 21.7 | W198: 20.7 | X198: 1 | Y198: 59.9 | Z198: 61.5 | AA198: 20 | AB198: 56 | AC198: 56.3 | AD198: 60.6 | AE198: 50 | AF198: =3776*V_5/60*(T_10-T_9)/A_Kollektorfeld -> 0 | AG198: =4128*V_7/60*(T_14-T_13) -> -20.64 | AH198: =4128/60*V_9*(T_19-T_11) -> 1032 | AI198: =Q_SZ+Q_TW_solar-Qpkt_KF_spez -> 1011.36 | AJ198: =4128/60*V_6*(T_18-T_17) -> 2201.6 | AK198: =4128/60*V_9*(T_20-T_19) -> 14792 | AL198: =3776*V_1/60*(T_2-T_9)/A_LBHTAR -> 0 | AM198: =3776*V_2/60*(T_4-T_9)/A_LBHT -> 0 | AN198: =3776*V_3/60*(T_6-T_9)/A_VFK_990 -> 0 | AO198: =3776*V_4/60*(T_8-T_9)/A_VTK_1140 -> 0
A199: 2015-12-03 | B199: 08:07:00 | C199: =Datum+Uhrzeit -> 2015-12-03T08:07:00 | D199: 0.5301 | E199: 16.091 | F199: 29.2 | G199: 29.3 | H199: 0 | I199: 8.7 | J199: 9.6 | K199: 8.7 | L199: 8.3 | M199: 0 | N199: 0 | O199: 0 | P199: 0 | Q199: 18.3 | R199: 22.5 | S199: 29.1 | T199: 15.8 | U199: 15.5 | V199: 21.7 | W199: 20.7 | X199: 0 | Y199: 59.9 | Z199: 61.5 | AA199: 30 | AB199: 55.9 | AC199: 56.2 | AD199: 60.5 | AE199: 50 | AF199: =3776*V_5/60*(T_10-T_9)/A_Kollektorfeld -> 0 | AG199: =4128*V_7/60*(T_14-T_13) -> 0 | AH199: =4128/60*V_9*(T_19-T_11) -> 1032 | AI199: =Q_SZ+Q_TW_solar-Qpkt_KF_spez -> 1032 | AJ199: =4128/60*V_6*(T_18-T_17) -> 3302.4 | AK199: =4128/60*V_9*(T_20-T_19) -> 14792 | AL199: =3776*V_1/60*(T_2-T_9)/A_LBHTAR -> 0 | AM199: =3776*V_2/60*(T_4-T_9)/A_LBHT -> 0 | AN199: =3776*V_3/60*(T_6-T_9)/A_VFK_990 -> 0 | AO199: =3776*V_4/60*(T_8-T_9)/A_VTK_1140 -> 0
A200: 2015-12-03 | B200: 08:08:00 | C200: =Datum+Uhrzeit -> 2015-12-03T08:08:00 | D200: 0.5853 | E200: 15.011 | F200: 29.2 | G200: 29.3 | H200: 0 | I200: 8.7 | J200: 9.6 | K200: 8.7 | L200: 8.3 | M200: 0 | N200: 0 | O200: 0 | P200: 0 | Q200: 18.3 | R200: 22.5 | S200: 29.1 | T200: 15.8 | U200: 15.5 | V200: 21.7 | W200: 20.7 | X200: 0 | Y200: 60 | Z200: 61.4 | AA200: 30 | AB200: 55.8 | AC200: 56.1 | AD200: 60.3 | AE200: 40 | AF200: =3776*V_5/60*(T_10-T_9)/A_Kollektorfeld -> 0 | AG200: =4128*V_7/60*(T_14-T_13) -> 0 | AH200: =4128/60*V_9*(T_19-T_11) -> 825.6 | AI200: =Q_SZ+Q_TW_solar-Qpkt_KF_spez -> 825.6 | AJ200: =4128/60*V_6*(T_18-T_17) -> 2889.6 | AK200: =4128/60*V_9*(T_20-T_19) -> 11558.4 | AL200: =3776*V_1/60*(T_2-T_9)/A_LBHTAR -> 0 | AM200: =3776*V_2/60*(T_4-T_9)/A_LBHT -> 0 | AN200: =3776*V_3/60*(T_6-T_9)/A_VFK_990 -> 0 | AO200: =3776*V_4/60*(T_8-T_9)/A_VTK_1140 -> 0
A201: 2015-12-03 | B201: 08:09:00 | C201: =Datum+Uhrzeit -> 2015-12-03T08:09:00 | D201: 0.643 | E201: 16.523 | F201: 29.2 | G201: 29.3 | H201: 0 | I201: 8.7 | J201: 9.6 | K201: 8.7 | L201: 8.3 | M201: 0 | N201: 0 | O201: 0 | P201: 0 | Q201: 18.3 | R201: 22.5 | S201: 29.1 | T201: 15.9 | U201: 15.6 | V201: 21.7 | W201: 20.7 | X201: 1 | Y201: 60 | Z201: 61.2 | AA201: 30 | AB201: 55.8 | AC201: 56.1 | AD201: 60.2 | AE201: 50 | AF201: =3776*V_5/60*(T_10-T_9)/A_Kollektorfeld -> 0 | AG201: =4128*V_7/60*(T_14-T_13) -> -20.64 | AH201: =4128/60*V_9*(T_19-T_11) -> 1032 | AI201: =Q_SZ+Q_TW_solar-Qpkt_KF_spez -> 1011.36 | AJ201: =4128/60*V_6*(T_18-T_17) -> 2476.8 | AK201: =4128/60*V_9*(T_20-T_19) -> 14104 | AL201: =3776*V_1/60*(T_2-T_9)/A_LBHTAR -> 0 | AM201: =3776*V_2/60*(T_4-T_9)/A_LBHT -> 0 | AN201: =3776*V_3/60*(T_6-T_9)/A_VFK_990 -> 0 | AO201: =3776*V_4/60*(T_8-T_9)/A_VTK_1140 -> 0
... 592 more rows

Sheet Tabelle1
